Workbook

Sheet 使い方
B2: 使い方 － 土木工事 見積システム
B4: １．見積書をつくる（見積予算シート）
B5: ・B5 に工事名を入れてください。内訳書のC4に自動で転記されます。
B6: ・「工種を追加」ボタン … 入力画面が開きます。大分類 → 中分類 → 工種名 → 詳細 を選んで
B7: 数量を入れ、「追加して閉じる」。歩掛の内訳ごと展開され、代価番号も自動で付きます。
B8: ・「仮設を追加」ボタン … 「仮設費」のすぐ下に1行足します。B列のプルダウンから選ぶと
B9: 項目名・仕様・単位・単価が入り、数量に1が入ります。
B10: ・追加した行の色 … 工種＝黄色 ／ 仮設＝水色
B12: ２．工種を増やす（工種マスタ）
B13: ・見積予算シートの「工種を新規登録」ボタンを押すと入力画面が開きます。
B14: 大分類・中分類・工種名・詳細・数量を入れ、歩掛の内訳を単価表から選びます。
B15: 「登録して見積に追加」を押すと、工種マスタに登録してそのまま見積にも入ります。
B16: 「登録して閉じる」なら登録だけ。見積予算のプルダウンにはすぐ反映されます。
B17: ・工種シートを直接編集した場合も、別のシートに移った時点で自動で反映されます。
B19: ３．単価を増やす（単価表シート）
B20: ・単価表シートの右上「単価を追加」ボタンを押すと入力画面が開きます。
B21: ・登録先（合材・砕石／その他材料／作業員／外注・処分費／機械・その他／工種ｅｔｃ．）を
B22: 選ぶと、空いているコードを自動で採番します。
B23: ・単価を直すと、その場で全工種の金額に反映されます。更新の操作は要りません。
B25: ４．内訳書
B26: ・工種を追加すると自動で行が増え、大分類ごとに小計が立ちます。
B27: ・J2「単価変動値」／ J3「単価まるめ単位」で調整できます。
B29: ５．困ったとき
B30: ・入力画面でプルダウンが出ない → 画面の下の「うまく選べないときはここ」を押してください。
B31: ・シートの追加・削除・複製はできません（ブックの構成を保護しています）。
B33: シートの色分け
B34: 青 … 単価表・見積予算・内訳書（見積を作るシート）
B35: 薄緑 … 撤去工事〜地盤改良工事（工種マスタ。歩掛を登録するシート）
B37: ６．製品版について（シリアル番号）
B38: ・無料版のままでも、そのままお使いいただけます（工種の追加3件まで／単価の追加は不可／1つの見積に入れられる工種5件まで）。
B39: ・シリアル番号を登録すると、この制限がすべてなくなります。下のボタン、または単価表シートの「製品版にする」から登録してください。
B40: ◆ 無料版 （工種の追加は 3 件まで／単価の追加はできません） 右の「購入方法のご案内」から製品版のお申し込みができます

Sheet 単価表
B1: 単 価 表 | F1: 変更日時 2022/10/20 | P1: ”変更日時”&" "&YEAR(M9)&"/"&MONTH(M9)&"/"&DAY(M9)
A2: コード | B2: 工 種 | C2: 詳 細 | D2: 単位 | E2: 数量 | F2: 単価 | G2: 使用単価 | H2: 変動単価 | I2: 定価 | J2: 摘要
A3: 合材・砕石 単価登録
A4: コード | B4: 工 種 | C4: 詳 細 | D4: 単位 | E4: 数量 | F4: 単価 | G4: 使用単価 | H4: 変動単価 | I4: 定価 | J4: 摘要 | K4: 変動率・・・・ | L4: 1.5
A5: 10100 | B5: 密粒13･20mm | D5: ｔ | F5: 14000 | G5: =IF($L$7=$F$4,F5,H5) -> 21000 | H5: =F5*$L$4 -> 21000 | I5: 0 | M5: =+F5+1500 -> 15500
A6: 10101 | B6: 再生密粒13･20mm | D6: ｔ | F6: 13000 | G6: 19500 | H6: 19500 | I6: 0 | J6: =IF(A5<A6,"(^o^)v","(*_*)") -> (^o^)v | M6: 14500
A7: 10102 | B7: 粗粒度20mm | D7: ｔ | F7: 13800 | G7: 20700 | H7: 20700 | I7: 0 | J7: (^o^)v | K7: 使用単価・・・ | L7: 変動単価 | M7: 15300 | N7: 単価
A8: 10103 | B8: 再生粗粒度20mm | D8: ｔ | F8: 12900 | G8: 19350 | H8: 19350 | I8: 0 | J8: (^o^)v | M8: 14400 | N8: 変動単価
A9: 10104 | B9: AS安定処理 | D9: ｔ | F9: 13600 | G9: 20400 | H9: 20400 | I9: 0 | J9: (^o^)v | M9: 15100
A10: 10105 | B10: 再生AS安定処理 | D10: ｔ | F10: 12800 | G10: 19200 | H10: 19200 | I10: 0 | J10: (^o^)v | K10: 只今の日時 | M10: 14300
A11: 10106 | B11: 密粒改質Ⅱ型 | D11: ｔ | F11: 16000 | G11: 24000 | H11: 24000 | I11: 0 | J11: (^o^)v | K11: =TODAY() -> 2026-08-14 | M11: 17500
A12: 10107 | B12: 粗粒改質Ⅱ型 | D12: ｔ | F12: 15800 | G12: 23700 | H12: 23700 | I12: 0 | J12: (^o^)v | M12: 17300
A13: 10108 | B13: 排水性合材 | D13: ｔ | F13: 17000 | G13: 25500 | H13: 25500 | I13: 0 | J13: (^o^)v | M13: 18500
F14: 1500 | G14: 2250 | H14: 2250 | I14: 0 | J14: (*_*) | M14: 3000
A15: 10109 | B15: 開粒度（2号） | D15: ｔ | F15: 14000 | G15: 21000 | H15: 21000 | I15: 0 | J15: (^o^)v | M15: 15500
A16: 10110 | B16: 再生細粒 | D16: ｔ | F16: 13200 | G16: 19800 | H16: 19800 | I16: 0 | J16: (^o^)v | M16: 14700
A17: 10111 | B17: 細粒度 | D17: ｔ | F17: 14200 | G17: 21300 | H17: 21300 | I17: 0 | J17: (^o^)v | M17: 15700
A18: 10112 | B18: 改質Ⅱ型開粒度（1号） | D18: ｔ | F18: 16000 | G18: 24000 | H18: 24000 | I18: 0 | J18: (^o^)v | M18: 17500
A19: 10113 | B19: 諸雑費 | C19: 寒水粉・定規・養生砂 | D19: ｍ2 | F19: 20 | G19: 30 | H19: 30 | I19: 0 | J19: (^o^)v
G20: 0 | H20: 0 | I20: 0 | J20: (*_*)
A21: 10114 | B21: 小型割増 | D21: ｔ | F21: 1500 | G21: 2250 | H21: 2250 | I21: 0 | J21: (^o^)v
A22: 10200 | B22: ="RC-40(ﾌﾟﾗﾝﾄ)"&C22&"大型" -> RC-40(ﾌﾟﾗﾝﾄ) 大型 | D22: ｔ | F22: 1500 | G22: 2250 | H22: 2250 | I22: 0 | J22: (^o^)v
A23: 10201 | B23: ="RC-40(ﾌﾟﾗﾝﾄ)"&C23&"小型" -> RC-40(ﾌﾟﾗﾝﾄ) 小型 | C23: =+C22 ->  | D23: ｔ | F23: 3000 | G23: 4500 | H23: 4500 | I23: 0 | J23: (^o^)v
A24: 10202 | B24: ="C-40 "&C24&"小型" -> C-40 小型 | C24: =+C23 ->  | D24: ｍ3 | F24: 10000 | G24: 15000 | H24: 15000 | I24: 0 | J24: (^o^)v
A25: 10203 | B25: ="C-40 "&C25&"大型" -> C-40 大型 | C25: =+C22 ->  | D25: ｍ3 | F25: 8000 | G25: 12000 | H25: 12000 | I25: 0 | J25: (^o^)v
A26: 10204 | B26: 再生砂 大型 | C26: =+C22 ->  | D26: ｍ3 | F26: 2000 | G26: 3000 | H26: 3000 | I26: 0 | J26: (^o^)v
A27: 10205 | B27: RC-40(建材店) 大型 | D27: ｔ | F27: 1200 | G27: 1800 | H27: 1800 | I27: 0 | J27: (^o^)v
A28: 10206 | B28: ="M-30 "&C28&"大型" -> M-30 大型 | C28: =+C22 ->  | D28: ｍ3 | F28: 2900 | G28: 4350 | H28: 4350 | J28: (^o^)v
A29: 10300 | B29: ="RM-40 (ﾌﾟﾗﾝﾄ)"&C29&"大型" -> RM-40 (ﾌﾟﾗﾝﾄ) 大型 | C29: =+C22 ->  | D29: ｔ | F29: 1700 | G29: 2550 | H29: 2550 | I29: 0 | J29: (^o^)v
A30: 10301 | B30: ="RM-40(ﾌﾟﾗﾝﾄ)"&C30&"小型" -> RM-40(ﾌﾟﾗﾝﾄ) 小型 | C30: =+C22 ->  | D30: ｔ | F30: 3200 | G30: 4800 | H30: 4800 | I30: 0 | J30: (^o^)v
G31: 0 | H31: 0 | I31: 0 | J31: (*_*)
A32: 10302 | B32: ="M-40 "&C32&"大型" -> M-40 大型 | C32: =+C28 ->  | D32: ｍ3 | F32: 3000 | G32: 4500 | H32: 4500 | I32: 0 | J32: (^o^)v
A33: 10303 | B33: ="M-40 "&C33&"小型" -> M-40 小型 | C33: =+C28 ->  | D33: ｍ3 | F33: 6000 | G33: 9000 | H33: 9000 | I33: 0 | J33: (^o^)v
G34: 0 | H34: 0 | I34: 0 | J34: (*_*)
A35: 10304 | B35: ="単粒度砕石 4号(20～40mm) "&C22&"大型" -> 単粒度砕石 4号(20～40mm) 大型 | D35: ｍ3 | F35: 4800 | G35: 7200 | H35: 7200 | I35: 0 | J35: (^o^)v
A36: 10305 | B36: ="M-30 "&C36&"小型" -> M-30 小型 | C36: =+C22 ->  | D36: ｍ3 | F36: 4900 | G36: 7350 | H36: 7350 | I36: 0 | J36: (^o^)v
A37: 10306 | B37: ="M-30 "&C37&"大型" -> M-30 大型 | C37: =+C22 ->  | D37: ｍ3 | F37: 3500 | G37: =IF($L$7=$F$4,F37,H37) -> 5250 | H37: =F37*$L$4 -> 5250 | I37: 0 | J37: (^o^)v
G38: 0 | H38: 0 | I38: 0 | J38: (*_*)
A39: 10307 | B39: ="単粒度砕石 5号(20mm) "&C26&"小型" -> 単粒度砕石 5号(20mm) 小型 | D39: ｍ3 | F39: 6800 | G39: 10200 | H39: 10200 | I39: 0 | J39: (^o^)v
G40: 0 | H40: 0 | I40: 0 | J40: (*_*)
G41: 0 | H41: 0 | I41: 0 | J41: (*_*)
G42: 0 | H42: 0 | I42: 0 | J42: (*_*)
G43: 0 | H43: 0 | I43: 0 | J43: (*_*)
A44: 10308 | B44: 中目砂 大型 | D44: ｍ3 | F44: 4600 | G44: 6900 | H44: 6900 | J44: (^o^)v
A45: 10309 | B45: 埋戻砂 大型 | D45: ｍ3 | F45: 5600 | G45: 8400 | H45: 8400 | J45: (^o^)v
A46: 10310 | B46: 遮断（山）砂 大型 | D46: ｍ3 | F46: 2600 | G46: 3900 | H46: 3900 | J46: (^o^)v
A47: 10311 | B47: 中目砂 小型 | D47: ｍ3 | F47: 7500 | G47: 11250 | H47: 11250 | J47: (^o^)v
A48: 10312 | B48: 埋戻砂 小型 | D48: ｍ3 | F48: 7300 | G48: 10950 | H48: 10950 | J48: (^o^)v
A49: 10313 | B49: 遮断砂 小型 | D49: ｍ3 | F49: 7300 | G49: 10950 | H49: 10950 | J49: (^o^)v
A50: 10400 | B50: 乳剤PK-3 | C50: 1.26㍑/ｍ2 | D50: ㍑ | F50: 100 | G50: 150 | H50: 150 | I50: 0 | J50: =IF(A46<A50,"(^o^)v","(*_*)") -> (^o^)v
A51: 10401 | B51: 乳剤PK-4 | C51: 0.43㍑/ｍ2 | D51: ㍑ | F51: 100 | G51: 150 | H51: 150 | I51: 0 | J51: =IF(A50<A51,"(^o^)v","(*_*)") -> (^o^)v
A52: 10402 | B52: 乳剤ﾍﾟﾈﾄｰﾙS・PKR | C52: ﾍﾟﾈﾄｰﾙS | D52: ㍑ | F52: 90 | G52: 135 | H52: 135 | J52: =IF(A51<A52,"(^o^)v","(*_*)") -> (^o^)v
A53: 10403 | B53: 乳剤 ﾀｯｸﾌｧｲﾝE | C53: PK-10 | D53: ㍑ | F53: 145 | G53: 217.5 | H53: 217.5 | J53: =IF(A52<A53,"(^o^)v","(*_*)") -> (^o^)v
A54: その他材料 単価登録
A55: コード | B55: 工 種 | C55: 詳 細 | D55: 単位 | E55: 数量 | F55: 単価 | G55: 使用単価 | H55: 変動単価 | I55: 定価 | J55: 摘要
A56: 10500 | B56: 生ｺﾝｸﾘｰﾄ 18-8 大型 | C56: 18-15 大型 | D56: ｍ3 | F56: 18600 | G56: =IF($L$7=$F$4,F56,H56) -> 27900 | H56: =F56*$L$4 -> 27900 | I56: 0 | J56: =IF(A53<A56,"(^o^)v","(*_*)") -> (^o^)v | L56: =+F56+800 -> 19400
A57: 10501 | B57: 生ｺﾝｸﾘｰﾄ 18-8 小型 | C57: 18-15 小型 | D57: ｍ3 | F57: 19600 | G57: 29400 | H57: 29400 | I57: 0 | J57: =IF(A56<A57,"(^o^)v","(*_*)") -> (^o^)v | L57: 20400
A58: 10502 | B58: 生ｺﾝｸﾘｰﾄ 21-8 大型 | C58: 21-15 大型 | D58: ｍ3 | F58: 19100 | G58: 28650 | H58: 28650 | J58: (^o^)v | L58: 19900
A59: 10503 | B59: 生ｺﾝｸﾘｰﾄ 21-8 小型 | C59: 21-15 小型 | D59: ｍ3 | F59: 20100 | G59: 30150 | H59: 30150 | J59: (^o^)v | L59: 20900
A60: 10504 | B60: 生ｺﾝｸﾘｰﾄ 舗装 大型 | C60: 35-12 大型 | D60: ｍ3 | F60: 21100 | G60: 31650 | H60: 31650 | J60: (^o^)v | L60: 21900
A61: 10505 | B61: 生ｺﾝｸﾘｰﾄ 舗装 小型 | C61: 35-12 小型 | D61: ｍ3 | F61: 22100 | G61: 33150 | H61: 33150 | J61: (^o^)v | L61: 22900
A62: 10506 | B62: 生ｺﾝｸﾘｰﾄ 擁壁 大型 | C62: 24-15 大型 | D62: ｍ3 | F62: 19600 | G62: 29400 | H62: 29400 | J62: (^o^)v | L62: 20400
A63: 10507 | B63: 生ｺﾝｸﾘｰﾄ 擁壁 小型 | C63: 24-15 小型 | D63: ｍ3 | F63: 20600 | G63: 30900 | H63: 30900 | J63: (^o^)v | L63: 21400
A64: 10508 | B64: 生ｺﾝｸﾘｰﾄ 30-18 | D64: ｍ3 | F64: 23000 | G64: 34500 | H64: 34500 | J64: (^o^)v
G65: 0 | H65: 0 | J65: (*_*)
G66: 0 | H66: 0 | J66: (*_*)
A67: 10509 | B67: 目地材，路盤紙，ﾒｯｼｭ | D67: ｍ2 | F67: 950 | G67: 1425 | H67: 1425 | J67: (^o^)v
A68: 10510 | B68: 路盤紙 | D68: ｍ2 | F68: 35 | G68: 52.5 | H68: 52.5 | J68: (^o^)v
A69: 10511 | B69: ﾒｯｼｭ | D69: ｍ2 | F69: 350 | G69: 525 | H69: 525 | J69: (^o^)v
G70: 0 | H70: 0 | J70: (*_*)
G71: 0 | H71: 0 | J71: (*_*)
A72: 10512 | B72: ｾﾒﾝﾄ 小口 | C72: 小口 | D72: 袋 | F72: 600 | G72: 900 | H72: 900 | J72: (^o^)v
A73: 10513 | B73: ｾﾒﾝﾄ 大口 | C73: 大口 90袋以上 | D73: 袋 | F73: 420 | G73: 630 | H73: 630 | I73: 0 | J73: (^o^)v
A74: 10514 | B74: 型枠 Ａ | D74: ｍ2 | F74: 1000 | G74: 1500 | H74: 1500 | J74: (^o^)v
A75: 10515 | B75: 型枠 Ｂ | D75: ｍ2 | F75: 2000 | G75: 3000 | H75: 3000 | J75: (^o^)v
A76: 10516 | B76: 型枠小型構造物 | D76: ｍ2 | F76: 4500 | G76: 6750 | H76: 6750 | J76: (^o^)v
A77: 10517 | D77: ｍ2 | G77: 0 | H77: 0 | J77: (^o^)v
A78: 10518 | B78: 型枠擁壁 | D78: ｍ2 | F78: 6500 | G78: 9750 | H78: 9750 | J78: (^o^)v
A79: 10519 | B79: 型枠擁壁役物 | D79: ｍ2 | F79: 7500 | G79: 11250 | H79: 11250 | J79: (^o^)v
A80: 10520 | B80: ﾓﾙﾀﾙ | C80: 1：3 | D80: ｍ3 | F80: 25000 | G80: 37500 | H80: 37500 | J80: (^o^)v
A81: 12100 | B81: 鉄筋工 小規模(ｔ) | C81: 材工共 | D81: ｔ | F81: 200000 | G81: 300000 | H81: 300000 | J81: (^o^)v
A82: 12101 | B82: 鉄筋工 小規模(kg) | C82: 材工共 | D82: kg | F82: 200 | G82: 300 | H82: 300 | J82: (^o^)v
A83: 12102 | B83: 鉄筋工 中規模(ｔ) | C83: 材工共 | D83: ｔ | F83: 190000 | G83: 285000 | H83: 285000 | J83: (^o^)v
A84: 12103 | B84: 鉄筋工 中規模(kg) | C84: 材工共 | D84: kg | F84: 190 | G84: 285 | H84: 285 | J84: (^o^)v
A85: 12104 | B85: 鉄筋工 大規模(ｔ) | C85: 材工共 | D85: ｔ | F85: 170000 | G85: 255000 | H85: 255000 | J85: (^o^)v
A86: 12105 | B86: 鉄筋材料・加工費 | D86: ｔ | G86: 0 | H86: 0 | J86: (^o^)v
G87: 0 | H87: 0 | J87: =IF(A85<A87,"(^o^)v","(*_*)") -> (*_*)
A88: 12500 | B88: VU100 片口 | C88: 取付管ｺﾞﾑ L=4000 | D88: 本 | F88: 1700 | G88: =IF($L$7=$F$4,F88,H88) -> 2550 | H88: =F88*$L$4 -> 2550 | J88: =IF(A87<A88,"(^o^)v","(*_*)") -> (^o^)v
A89: 12501 | B89: VU125 片口 | C89: 取付管ｺﾞﾑ L=4000 | D89: 本 | F89: 3200 | G89: 4800 | H89: 4800 | J89: (^o^)v
A90: 12502 | B90: VU150 片口 | C90: 取付管ｺﾞﾑ L=4000 | D90: 本 | F90: 3400 | G90: 5100 | H90: 5100 | J90: (^o^)v
A91: 12503 | B91: VU200 片口 | C91: 取付管ｺﾞﾑ L=4000 | D91: 本 | F91: 4800 | G91: 7200 | H91: 7200 | J91: (^o^)v
A92: 12504 | B92: VU250 片口 | C92: 取付管ｺﾞﾑ L=4000 | D92: 本 | F92: 7600 | G92: 11400 | H92: 11400 | J92: (^o^)v
A93: 12505 | B93: VP150 片口 | C93: L=4000 | D93: 本 | F93: 6600 | G93: 9900 | H93: 9900 | J93: (^o^)v
A94: 12506 | B94: VP200 片口 | C94: L=4000 | D94: 本 | F94: 10200 | G94: 15300 | H94: 15300 | J94: (^o^)v
A95: 12507 | B95: 有孔管VU100 接着片口 | C95: L=4000 | D95: 本 | F95: 2000 | G95: 3000 | H95: 3000 | J95: (^o^)v
A96: 12508 | B96: 有孔管VU150 接着片口 | C96: L=4000 | D96: 本 | F96: 3800 | G96: 5700 | H96: 5700 | J96: (^o^)v
A97: 12509 | B97: 有孔管VU200 接着片口 | C97: L=4000 | D97: 本 | F97: 5500 | G97: 8250 | H97: 8250 | J97: (^o^)v
G98: 0 | H98: 0 | J98: (*_*)
G99: 0 | H99: 0 | J99: (*_*)
G100: 0 | H100: 0 | J100: (*_*)
G101: 0 | H101: 0 | J101: (*_*)
G102: 0 | H102: 0 | J102: (*_*)
G103: 0 | H103: 0 | J103: (*_*)
G104: 0 | H104: 0 | J104: (*_*)
G105: 0 | H105: 0 | J105: (*_*)
G106: 0 | H106: 0 | J106: (*_*)
G107: 0 | H107: 0 | J107: (*_*)
G108: 0 | H108: 0 | J108: (*_*)
G109: 0 | H109: 0 | J109: (*_*)
G110: 0 | H110: 0 | J110: (*_*)
G111: 0 | H111: 0 | J111: (*_*)
G112: 0 | H112: 0 | J112: (*_*)
G113: 0 | H113: 0 | J113: (*_*)
G114: 0 | H114: 0 | J114: (*_*)
G115: 0 | H115: 0 | J115: (*_*)
G116: 0 | H116: 0 | J116: (*_*)
G117: 0 | H117: 0 | J117: (*_*)
G118: 0 | H118: 0 | J118: (*_*)
G119: 0 | H119: 0 | J119: (*_*)
G120: =IF($L$7=$F$4,F120,H120) -> 0 | H120: =F120*$L$4 -> 0 | J120: =IF(A119<A120,"(^o^)v","(*_*)") -> (*_*)
A121: 13000 | B121: 地先Aﾌﾞﾛｯｸ | C121: 120*120*600 19kg/本 | D121: 本 | F121: 400 | G121: 600 | H121: 600 | I121: 0 | J121: (^o^)v
A122: 13001 | B122: 地先Bﾌﾞﾛｯｸ | C122: 150*120*600 24kg/本 | D122: 本 | F122: 500 | G122: 750 | H122: 750 | I122: 0 | J122: (^o^)v
A123: 13002 | B123: 地先Cﾌﾞﾛｯｸ | C123: 150*150*600 31kg/本 | D123: 本 | F123: 550 | G123: 825 | H123: 825 | I123: 0 | J123: (^o^)v
A124: 13003 | B124: 公団ﾌﾞﾛｯｸ(K104) | C124: 100*100*600 26kg/本 | D124: 本 | F124: 600 | G124: 900 | H124: 900 | J124: (^o^)v
A125: 13004 | B125: 歩車Aﾌﾞﾛｯｸ | C125: 150/170*200*600 44kg/本 | D125: 本 | F125: 790 | G125: 1185 | H125: 1185 | J125: (^o^)v
A126: 13005 | B126: 歩車Aﾌﾞﾛｯｸ 平(10cm) | C126: 160/170*100*600 23kg/本 | D126: 本 | F126: 830 | G126: 1245 | H126: 1245 | I126: 0 | J126: (^o^)v
A127: 13006 | B127: 歩車Aﾌﾞﾛｯｸ 1本斜(10cm) | C127: 150/170*200*160/170*100*600 34kg/本 | D127: 本 | F127: 1340 | G127: 2010 | H127: 2010 | J127: (^o^)v
G128: 0 | H128: 0 | I128: 0 | J128: (*_*)
A129: 13007 | B129: 歩車Bﾌﾞﾛｯｸ | C129: 180/205*250*600 66kg/本 | D129: 本 | F129: 1140 | G129: 1710 | H129: 1710 | J129: (^o^)v
A130: 13008 | B130: 歩車Bﾌﾞﾛｯｸ 平(10cm) | C130: 195/205*100*600 28kg/本 | D130: 本 | F130: 980 | G130: 1470 | H130: 1470 | J130: (^o^)v
A131: 13009 | B131: 歩車Bﾌﾞﾛｯｸ 1本斜(10cm) | C131: 180/205*250*195/205*100*600 47kg/本 | D131: 本 | F131: 1830 | G131: 2745 | H131: 2745 | J131: (^o^)v
G132: 0 | H132: 0 | J132: (*_*)
A133: 13100 | B133: 植樹・並木ブロック | C133: C種 1号 150*180*900 58kg/本 | D133: 本 | F133: 1180 | G133: 1770 | H133: 1770 | J133: (^o^)v
A134: 13101 | B134: 植樹・並木ブロック | C134: C種 2号 150*180*600 39kg/本 | D134: 本 | F134: 820 | G134: 1230 | H134: 1230 | J134: (^o^)v
A135: 13102 | B135: 植樹・並木ブロック | C135: C種 3号 150*180*450 29kg/本 | D135: 本 | F135: 660 | G135: 990 | H135: 990 | J135: (^o^)v
A136: 13103 | B136: 植樹・並木ブロック(ｺｰﾅｰ) | C136: C種 5号 150*180*340 21kg/本 | D136: 本 | F136: 520 | G136: 780 | H136: 780 | J136: (^o^)v
G137: 0 | H137: 0 | J137: (*_*)
A138: 13200 | B138: Ｕ字側溝 150 | C138: 150*150*600 23kg/本 | D138: 本 | F138: 1120 | G138: 1680 | H138: 1680 | J138: (^o^)v
A139: 13201 | B139: Ｕ字側溝 180 | C139: 180*180*600 33kg/本 | D139: 本 | F139: 1190 | G139: 1785 | H139: 1785 | J139: (^o^)v
A140: 13202 | B140: Ｕ字側溝 240A | C140: 240*240*600 53kg/本 | D140: 本 | F140: 1360 | G140: 2040 | H140: 2040 | J140: (^o^)v
A141: 13203 | B141: Ｕ字側溝 300B | C141: 300*300*600 77kg/本 | D141: 本 | F141: 1560 | G141: 2340 | H141: 2340 | J141: (^o^)v
A142: 13204 | B142: Ｕ字側溝 300C | C142: 300*360*600 89kg/本 | D142: 本 | F142: 1850 | G142: 2775 | H142: 2775 | J142: (^o^)v
A143: 13205 | B143: 横断側溝 G付 | C143: U-250 T-25 | D143: 本 | G143: 0 | H143: 0 | J143: (^o^)v
G144: 0 | H144: 0 | J144: (*_*)
G145: 0 | H145: 0 | J145: (*_*)
G146: 0 | H146: 0 | J146: (*_*)
G147: 0 | H147: 0 | J147: (*_*)
G148: 0 | H148: 0 | J148: (*_*)
A149: 13206 | B149: CD桝 縁塊 300 | C149: 500*500*100 32kg/個 | D149: 個 | F149: 1980 | G149: 2970 | H149: 2970 | J149: (^o^)v
A150: 13207 | B150: CD桝 縁塊 450 | C150: 650*650*100 42kg/個 | D150: 個 | F150: 2650 | G150: 3975 | H150: 3975 | J150: (^o^)v
A151: 13208 | B151: CD桝 側塊300 (H150) | C151: 400*400*150 24kg/個 | D151: 個 | F151: 1550 | G151: 2325 | H151: 2325 | J151: (^o^)v
A152: 13209 | B152: CD桝 側塊300 (H300) | C152: 400*400*300 48kg/個 | D152: 個 | F152: 2200 | G152: =IF($L$7=$F$4,F152,H152) -> 3300 | H152: =F152*$L$4 -> 3300 | J152: =IF(A151<A152,"(^o^)v","(*_*)") -> (^o^)v
A153: 13210 | B153: CD桝 側塊450 (H150) | C153: 570*570*150 43kg/個 | D153: 個 | F153: 2650 | G153: 3975 | H153: 3975 | J153: (^o^)v
A154: 13211 | B154: CD桝 側塊450 (H300) | C154: 570*570*300 86kg/個 | D154: 個 | F154: 3750 | G154: 5625 | H154: 5625 | J154: (^o^)v
A155: 13212 | B155: CD桝□300ｸﾞﾚｰﾁﾝｸﾞ蓋 | C155: 普通目 T-2 | D155: 枚 | F155: 4000 | G155: 6000 | H155: 6000 | J155: (^o^)v
A156: 13213 | B156: CD桝□450ｸﾞﾚｰﾁﾝｸﾞ蓋 | C156: 普通目 T-2 | D156: 枚 | F156: 6800 | G156: 10200 | H156: 10200 | J156: (^o^)v
G157: 0 | H157: 0 | J157: (*_*)
G158: 0 | H158: 0 | J158: (*_*)
G159: 0 | H159: 0 | J159: (*_*)
G160: 0 | H160: 0 | J160: (*_*)
G161: 0 | H161: 0 | J161: (*_*)
G162: 0 | H162: 0 | J162: (*_*)
G163: 0 | H163: 0 | J163: (*_*)
G164: 0 | H164: 0 | J164: (*_*)
G165: 0 | H165: 0 | J165: (*_*)
G166: 0 | H166: 0 | J166: (*_*)
G167: 0 | H167: 0 | J167: (*_*)
G168: 0 | H168: 0 | J168: (*_*)
G169: 0 | H169: 0 | J169: (*_*)
G170: 0 | H170: 0 | J170: (*_*)
G171: 0 | H171: 0 | J171: (*_*)
G172: 0 | H172: 0 | J172: (*_*)
G173: 0 | H173: 0 | J173: (*_*)
G174: 0 | H174: 0 | J174: (*_*)
G175: 0 | H175: 0 | J175: (*_*)
G176: 0 | H176: 0 | J176: (*_*)
G177: 0 | H177: 0 | J177: (*_*)
G178: 0 | H178: 0 | J178: (*_*)
G179: 0 | H179: 0 | J179: (*_*)
G180: 0 | H180: 0 | J180: (*_*)
G181: 0 | H181: 0 | J181: (*_*)
G182: 0 | H182: 0 | J182: (*_*)
G183: 0 | H183: 0 | J183: (*_*)
G184: =IF($L$7=$F$4,F184,H184) -> 0 | H184: =F184*$L$4 -> 0 | J184: =IF(A183<A184,"(^o^)v","(*_*)") -> (*_*)
G185: 0 | H185: 0 | J185: (*_*)
G186: 0 | H186: 0 | J186: (*_*)
G187: 0 | H187: 0 | J187: (*_*)
G188: 0 | H188: 0 | J188: (*_*)
G189: 0 | H189: 0 | J189: (*_*)
G190: 0 | H190: 0 | J190: (*_*)
G191: 0 | H191: 0 | J191: (*_*)
G192: 0 | H192: 0 | J192: (*_*)
G193: 0 | H193: 0 | J193: (*_*)
G194: 0 | H194: 0 | J194: (*_*)
G195: 0 | H195: 0 | J195: (*_*)
G196: 0 | H196: 0 | J196: (*_*)
G197: 0 | H197: 0 | J197: (*_*)
G198: 0 | H198: 0 | J198: (*_*)
G199: 0 | H199: 0 | J199: (*_*)
G200: 0 | H200: 0 | J200: (*_*)
... 204 more rows

Sheet 見積予算
A1: 1
A3: コード | B3: 工種 | C3: 詳細 | D3: 数量 | E3: 単位 | F3: 単価 | G3: 金額 | I3: 代価番号 | J3: 削除 | K3: 未入力
B4: 直接工事費 | C4: LEVEL1
B5: ここに工事名を記入 | E5: =IF(ISBLANK(A5),"",LOOKUP(A5,単価表!$A$5:$A$1154,単価表!$D$5:$D$1154)) ->  | F5: =IF(ISBLANK(A5),"",LOOKUP(A5,単価表!$A$5:$A$1154,単価表!$G$5:$G$1154)) ->  | G5: =IF(ISBLANK(A5),"",ROUND(D5*F5,0)) ->  | J5: ダブルクリック
B6: =IF(ISBLANK(A6),"",LOOKUP(A6,単価表!$A$5:$A$1154,単価表!$B$5:$B$1154)) ->  | E6: =IF(ISBLANK(A6),"",LOOKUP(A6,単価表!$A$5:$A$1154,単価表!$D$5:$D$1154)) ->  | F6: =IF(ISBLANK(A6),"",LOOKUP(A6,単価表!$A$5:$A$1154,単価表!$G$5:$G$1154)) -> 
B7: =IF(ISBLANK(A7),"",LOOKUP(A7,単価表!$A$5:$A$1154,単価表!$B$5:$B$1154)) ->  | E7: =IF(ISBLANK(A7),"",LOOKUP(A7,単価表!$A$5:$A$1154,単価表!$D$5:$D$1154)) ->  | F7: =IF(ISBLANK(A7),"",LOOKUP(A7,単価表!$A$5:$A$1154,単価表!$G$5:$G$1154)) -> 
B8: =IF(ISBLANK(A8),"",LOOKUP(A8,単価表!$A$5:$A$1154,単価表!$B$5:$B$1154)) ->  | E8: =IF(ISBLANK(A8),"",LOOKUP(A8,単価表!$A$5:$A$1154,単価表!$D$5:$D$1154)) ->  | F8: =IF(ISBLANK(A8),"",LOOKUP(A8,単価表!$A$5:$A$1154,単価表!$G$5:$G$1154)) -> 
B9: =IF(ISBLANK(A9),"",LOOKUP(A9,単価表!$A$5:$A$1154,単価表!$B$5:$B$1154)) ->  | E9: =IF(ISBLANK(A9),"",LOOKUP(A9,単価表!$A$5:$A$1154,単価表!$D$5:$D$1154)) ->  | F9: =IF(ISBLANK(A9),"",LOOKUP(A9,単価表!$A$5:$A$1154,単価表!$G$5:$G$1154)) -> 
B10: =IF(ISBLANK(A10),"",LOOKUP(A10,単価表!$A$5:$A$1154,単価表!$B$5:$B$1154)) ->  | E10: =IF(ISBLANK(A10),"",LOOKUP(A10,単価表!$A$5:$A$1154,単価表!$D$5:$D$1154)) ->  | F10: =IF(ISBLANK(A10),"",LOOKUP(A10,単価表!$A$5:$A$1154,単価表!$G$5:$G$1154)) -> 
B11: 仮設工事費 | D11: 1 | E11: 式
A12: 2 | B12: 仮設費 | D12: 1 | E12: 式 | F12: =ROUNDUP(G12/D12,0) -> 0 | G12: =SUM(G13:G15) -> 0
G13: =D13*F13 -> 0
B14: 高速代 | C14: 3 | D14: =+$D$31*C14 -> 0 | E14: 台日 | F14: 8000 | G14: =D14*F14 -> 0
B15: 労務通勤 | C15: 1 | D15: =+$D$31*C15 -> 0 | E15: 日 | F15: 4500 | G15: =D15*F15 -> 0
B18: 現場管理費 | D18: 1 | E18: 式
A19: 3 | B19: 現場管理費 | D19: 1 | E19: 式 | F19: =ROUNDUP(G19/D19,0) -> 0 | G19: =SUM(G20:G22) -> 0
B20: 現場管理費 | C20: 現場代理人 | D20: =+D32 -> 0 | E20: ヶ月 | F20: 550000 | G20: =D20*F20 -> 0
B21: 通信費 | D21: =+D20 -> 0 | E21: ヶ月 | F21: 100000 | G21: =D21*F21 -> 0
B22: 保険・租税公課 | E22: 式 | F22: 100000 | G22: =D22*F22 -> 0
B26: 直接工事費計 | G26: =SUMIF(A:A,1,G:G) -> 0
B27: 仮設工事費計 | G27: =SUMIF(A:A,2,G:G) -> 0
B28: 現場経費計 | G28: =SUMIF(A:A,3,G:G) -> 0
B29: 一般管理費 | C29: 0 | G29: =ROUNDDOWN(SUMIF($B:$B,"直接工事費計",$G:$G)*C29/100,-4) -> 0
C30: 予定作業員数 | D30: =SUMIF(A:A,20100,D:D)+SUMIF(A:A,20505,D:D) -> 0 | F30: 人 | G30: ＮＥＴ金額
C31: 予定作業日数 | D31: =SUMIF(A:A,80000,D:D) -> 0 | F31: 日 | G31: =SUM(G26:G29) -> 0
C32: 工事期間 | D32: =+D31/22 -> 0 | E32: 月
F33: ｃｈｅｅｋ | G33: =IF(G26=SUM($G$6:INDEX($G:$G,MATCH("仮設工事費",$B:$B,0)-1))/2,"ＯＫ・・・","ＮＧ・・・") -> ＯＫ・・・

Sheet 内訳書
O1: 大分類グループ(VBA用)
B2: 工 事 費 内 訳 書 | J2: 単価変動値 | K2: 1.1
B3: NO | C3: 名 称 | D3: 仕 様 | E3: 数 量 | F3: 単位 | G3: 単価 | H3: 金額 | I3: 摘 要 | J3: 単価まるめ単位 | K3: 50 | L3: 代価番号
C4: =IF(見積予算!$B$5="ここに工事名を記入","",見積予算!$B$5) -> 
C6: =IF(L6="","",LOOKUP(L6,見積予算!$I$3:$I$523,見積予算!$B$3:$B$523)) ->  | D6: =IF(L6="","",LOOKUP(L6,見積予算!$I$3:$I$523,見積予算!$C$3:$C$523)) ->  | E6: =IF(L6="","",LOOKUP(L6,見積予算!$I$3:$I$523,見積予算!$D$3:$D$523)) ->  | F6: =IF(L6="","",LOOKUP(L6,見積予算!$I$3:$I$523,見積予算!$E$3:$E$523)) ->  | G6: =IF(J6="","",CEILING(J6,$K$3)) ->  | H6: =IF(G6="","",ROUND(E6*G6,0)) ->  | J6: =IF(E6="","",ROUNDUP(K6/E6*$K$2,-1)) ->  | K6: =IF(L6="","",LOOKUP(L6,見積予算!$I$3:$I$523,見積予算!$G$3:$G$523)) -> 
C7: =IF(L7="","",LOOKUP(L7,見積予算!$I$3:$I$523,見積予算!$B$3:$B$523)) ->  | D7: =IF(L7="","",LOOKUP(L7,見積予算!$I$3:$I$523,見積予算!$C$3:$C$523)) ->  | E7: =IF(L7="","",LOOKUP(L7,見積予算!$I$3:$I$523,見積予算!$D$3:$D$523)) ->  | F7: =IF(L7="","",LOOKUP(L7,見積予算!$I$3:$I$523,見積予算!$E$3:$E$523)) ->  | G7: =IF(J7="","",CEILING(J7,$K$3)) ->  | H7: =IF(G7="","",ROUND(E7*G7,0)) ->  | J7: =IF(E7="","",ROUNDUP(K7/E7*$K$2,-1)) ->  | K7: =IF(L7="","",LOOKUP(L7,見積予算!$I$3:$I$523,見積予算!$G$3:$G$523)) -> 
C8: =IF(L8="","",LOOKUP(L8,見積予算!$I$3:$I$523,見積予算!$B$3:$B$523)) ->  | D8: =IF(L8="","",LOOKUP(L8,見積予算!$I$3:$I$523,見積予算!$C$3:$C$523)) ->  | E8: =IF(L8="","",LOOKUP(L8,見積予算!$I$3:$I$523,見積予算!$D$3:$D$523)) ->  | F8: =IF(L8="","",LOOKUP(L8,見積予算!$I$3:$I$523,見積予算!$E$3:$E$523)) ->  | G8: =IF(J8="","",CEILING(J8,$K$3)) ->  | H8: =IF(G8="","",ROUND(E8*G8,0)) ->  | J8: =IF(E8="","",ROUNDUP(K8/E8*$K$2,-1)) ->  | K8: =IF(L8="","",LOOKUP(L8,見積予算!$I$3:$I$523,見積予算!$G$3:$G$523)) -> 
C9: =IF(L9="","",LOOKUP(L9,見積予算!$I$3:$I$523,見積予算!$B$3:$B$523)) ->  | D9: =IF(L9="","",LOOKUP(L9,見積予算!$I$3:$I$523,見積予算!$C$3:$C$523)) ->  | E9: =IF(L9="","",LOOKUP(L9,見積予算!$I$3:$I$523,見積予算!$D$3:$D$523)) ->  | F9: =IF(L9="","",LOOKUP(L9,見積予算!$I$3:$I$523,見積予算!$E$3:$E$523)) ->  | G9: =IF(J9="","",CEILING(J9,$K$3)) ->  | H9: =IF(G9="","",ROUND(E9*G9,0)) ->  | J9: =IF(E9="","",ROUNDUP(K9/E9*$K$2,-1)) ->  | K9: =IF(L9="","",LOOKUP(L9,見積予算!$I$3:$I$523,見積予算!$G$3:$G$523)) -> 
C10: 小 計 | H10: =SUM(H6:H9) -> 0
A12: 1 | C12: 直接工事費計 | H12: =SUMIF(C:C,"小 計",H:H) -> 0 | K12: =SUM(K4:INDEX(K:K,MATCH("直接工事費計",C:C,0)-1)) -> 0 | L12: =IF(K12=見積予算!G26,"・・・ＯＫ","・・・ＮＧ") -> ・・・ＯＫ | M12: 予算金額確認
A13: 2 | C13: 仮設工事費 | E13: 1 | F13: 式 | G13: 729000 | H13: =CEILING(J13,1000) -> 0 | J13: =+K13/E13*$K$2*0.9 -> 0 | K13: =SUMIF(見積予算!B:B,"仮設工事費計",見積予算!G:G) -> 0
A14: 3 | C14: 現場管理費 | E14: 1 | F14: 式 | G14: 729000 | H14: =CEILING(J14,1000) -> 0 | J14: =+K14/E14*$K$2*0.9 -> 0 | K14: =SUMIF(見積予算!B:B,"現場経費計",見積予算!G:G) -> 0
A15: 4 | C15: 一般管理費 | E15: 1 | F15: 式 | H15: =CEILING(SUM(H12)*K15,1000) -> 0 | K15: 0.2
A16: 5 | C16: 値引き | H16: 0 | K16: ↑諸経費変動値
C22: 合 計 | H22: =SUM(H12:H18) -> 0
J25: ="実行予算￥ "&TEXT(見積予算!G31,"0,0-") -> 実行予算￥ 00-

Sheet 工種リスト (hidden)
A1: No | B1: 大分類 | C1: 中分類 | D1: 工種名 | E1: 詳細 | F1: 既定数量 | G1: 単位 | H1: DBシート名 | I1: マスタファイル名 | J1: 開始行 | K1: 終了行 | L1: 表示ラベル | M1: 表示ラベル2
A2: 1 | B2: 撤去工事 | C2: 舗装版撤去 | D2: 既設舗装版撤去 | E2: AS：t=5cm AS廃材運搬処分共 | F2: 100 | G2: ｍ2 | H2: 撤去工事 | I2: 撤去工事 | J2: 6 | K2: 20 | L2: 撤去工事｜既設舗装版撤去｜AS：t=5cm AS廃材運搬処分共 | M2: 既設舗装版撤去｜AS：t=5cm AS廃材運搬処分共
A3: 2 | B3: 撤去工事 | C3: 構造物取壊し | D3: 構造物取壊し | E3: 廃材運搬処分共 | F3: 100 | G3: ｍ3 | H3: 撤去工事 | I3: 撤去工事 | J3: 21 | K3: 36 | L3: 撤去工事｜構造物取壊し｜ 廃材運搬処分共 | M3: 構造物取壊し｜ 廃材運搬処分共
A4: 3 | B4: 土工事 | C4: 切土工 | D4: 残土処分 | E4: 鋤取り土工含 発生土運搬処分共 | F4: 100 | G4: ｍ3 | H4: 土工事 | I4: 土工事 | J4: 6 | K4: 18 | L4: 土工事｜残土処分｜鋤取り土工含 発生土運搬処分共 | M4: 残土処分｜鋤取り土工含 発生土運搬処分共
A5: 4 | B5: 土工事 | C5: 床堀工 | D5: 根切り | E5: 人力土工 | F5: 10 | G5: ｍ3 | H5: 土工事 | I5: 土工事 | J5: 19 | K5: 27 | L5: 土工事｜根切り｜人力土工 | M5: 根切り｜人力土工
A6: 5 | B6: 土工事 | C6: 盛土工 | D6: 埋戻し | E6: 人力土工 | F6: 10 | G6: ｍ3 | H6: 土工事 | I6: 土工事 | J6: 28 | K6: 36 | L6: 土工事｜埋戻し｜人力土工 | M6: 埋戻し｜人力土工
A7: 6 | B7: 土工事 | C7: 埋戻工 | D7: 路体（流用土） | E7: 4.0≦W | F7: 100 | G7: ｍ3 | H7: 土工事 | I7: 土工事 | J7: 37 | K7: 47 | L7: 土工事｜路体（流用土）｜4.0≦W | M7: 路体（流用土）｜4.0≦W
A8: 7 | B8: 擁壁工事 | C8: RC擁壁 | D8: コンクリート立上り | E8: H=890 t=150 打放し 掘削土工共 | F8: 100 | G8: ｍ | H8: 擁壁工事 | I8: 擁壁工事 | J8: 6 | K8: 32 | L8: 擁壁工事｜コンクリート立上り｜H=890 t=150 打放し 掘削土工共 | M8: コンクリート立上り｜H=890 t=150 打放し 掘削土工共
A9: 8 | B9: 擁壁工事 | C9: 型枠CB | D9: 型枠CB擁壁 | E9: H=2.0ｍﾀｲﾌﾟ | F9: 10 | G9: ｍ | H9: 擁壁工事 | I9: 擁壁工事 | J9: 33 | K9: 87 | L9: 擁壁工事｜型枠CB擁壁｜H=2.0ｍﾀｲﾌﾟ | M9: 型枠CB擁壁｜H=2.0ｍﾀｲﾌﾟ
A10: 9 | B10: 擁壁工事 | C10: 石積擁壁 | D10: 石積擁壁工 | E10: H=2.00ｍ 65゜ 基礎共 | F10: 50 | G10: ｍ | H10: 擁壁工事 | I10: 擁壁工事 | J10: 88 | K10: 121 | L10: 擁壁工事｜石積擁壁工｜H=2.00ｍ 65゜ 基礎共 | M10: 石積擁壁工｜H=2.00ｍ 65゜ 基礎共
A11: 10 | B11: 擁壁工事 | C11: プレキャスト擁壁 | D11: プレキャスト擁壁 | E11: 地上高さ H=2.0ｍ | F11: 50 | G11: ｍ | H11: 擁壁工事 | I11: 擁壁工事 | J11: 122 | K11: 155 | L11: 擁壁工事｜プレキャスト擁壁｜地上高さ H=2.0ｍ | M11: プレキャスト擁壁｜地上高さ H=2.0ｍ
A12: 11 | B12: 排水工事 | C12: Ｌ型側溝工 | D12: Ｌ型側溝工 | E12: タイプ１ | F12: 100 | G12: ｍ | H12: 排水工事 | I12: 排水工事 | J12: 6 | K12: 32 | L12: 排水工事｜Ｌ型側溝工｜タイプ１ | M12: Ｌ型側溝工｜タイプ１
A13: 12 | B13: 排水工事 | C13: 集水桝 | D13: 雨水桝 | E13: ﾀｲﾌﾟ1 | F13: 1 | G13: 箇所 | H13: 排水工事 | I13: 排水工事 | J13: 33 | K13: 57 | L13: 排水工事｜雨水桝｜ﾀｲﾌﾟ1 | M13: 雨水桝｜ﾀｲﾌﾟ1
A14: 13 | B14: 排水工事 | C14: 組立人孔 | D14: 汚水人孔設置工 | E14: 組立２号人孔1箇所 | F14: 1 | G14: 箇所 | H14: 排水工事 | I14: 排水工事 | J14: 58 | K14: 79 | L14: 排水工事｜汚水人孔設置工｜組立２号人孔1箇所 | M14: 汚水人孔設置工｜組立２号人孔1箇所
A15: 14 | B15: 付帯工事 | C15: 縁石工 | D15: 地先境界ブロック | E15: 120*120*600 基礎共 | F15: 100 | G15: ｍ | H15: 付帯工事 | I15: 付帯工事 | J15: 6 | K15: 33 | L15: 付帯工事｜地先境界ブロック｜120*120*600 基礎共 | M15: 地先境界ブロック｜120*120*600 基礎共
A16: 15 | B16: 付帯工事 | C16: 囲障工事 | D16: 化粧CB２段積 | E16: H＝400 | F16: 100 | G16: ｍ | H16: 付帯工事 | I16: 付帯工事 | J16: 34 | K16: 58 | L16: 付帯工事｜化粧CB２段積｜H＝400 | M16: 化粧CB２段積｜H＝400
A17: 16 | B17: 舗装工事 | C17: 舗装打換工 | D17: 道路舗装打換工 | E17: AS：t=50 表層のみ 廃材運搬処分共 | F17: 100 | G17: ｍ2 | H17: 舗装工事 | I17: 舗装工事 | J17: 6 | K17: 39 | L17: 舗装工事｜道路舗装打換工｜AS：t=50 表層のみ 廃材運搬処分共 | M17: 道路舗装打換工｜AS：t=50 表層のみ 廃材運搬処分共
A18: 17 | B18: 舗装工事 | C18: 車道舗装 | D18: 下層路盤(車道・路肩部) | E18: 再生ｸﾗｯｼｬﾗﾝ RC-40 仕上り厚 400ｍｍ | F18: 100 | G18: ｍ2 | H18: 舗装工事 | I18: 舗装工事 | J18: 40 | K18: 56 | L18: 舗装工事｜下層路盤(車道・路肩部)｜再生ｸﾗｯｼｬﾗﾝ RC-40 仕上り厚 400ｍｍ | M18: 下層路盤(車道・路肩部)｜再生ｸﾗｯｼｬﾗﾝ RC-40 仕上り厚 400ｍｍ
A19: 18 | B19: 舗装工事 | C19: 歩道及び小規模舗装 | D19: 下層路盤(歩道部) | E19: 再生ｸﾗｯｼｬﾗﾝ RC-40 仕上り厚 100ｍｍ | F19: 100 | G19: ｍ2 | H19: 舗装工事 | I19: 舗装工事 | J19: 57 | K19: 71 | L19: 舗装工事｜下層路盤(歩道部)｜再生ｸﾗｯｼｬﾗﾝ RC-40 仕上り厚 100ｍｍ | M19: 下層路盤(歩道部)｜再生ｸﾗｯｼｬﾗﾝ RC-40 仕上り厚 100ｍｍ
A20: 19 | B20: 舗装工事 | C20: コンクリート舗装 | D20: 歩道コンクリート舗装工 | E20: CO：t=100 RC-40：t=100 | F20: 100 | G20: ｍ2 | H20: 舗装工事 | I20: 舗装工事 | J20: 72 | K20: 96 | L20: 舗装工事｜歩道コンクリート舗装工｜CO：t=100 RC-40：t=100 | M20: 歩道コンクリート舗装工｜CO：t=100 RC-40：t=100
A21: 20 | B21: 仮設工事 | C21: 仮囲工 | D21: 仮囲万能鋼板設置工 | E21: 安全鋼板(塗装品) H=2000 資材購入 | F21: 100 | G21: ｍ | H21: 仮設工事 | I21: 仮設工事 | J21: 6 | K21: 24 | L21: 仮設工事｜仮囲万能鋼板設置工｜安全鋼板(塗装品) H=2000 資材購入 | M21: 仮囲万能鋼板設置工｜安全鋼板(塗装品) H=2000 資材購入
A22: 21 | B22: 仮設工事 | C22: 山留め | D22: H鋼横矢板土留 | E22: H=3000 L=8.0ｍ | F22: 100 | G22: ｍ | H22: 仮設工事 | I22: 仮設工事 | J22: 25 | K22: 46 | L22: 仮設工事｜H鋼横矢板土留｜H=3000 L=8.0ｍ | M22: H鋼横矢板土留｜H=3000 L=8.0ｍ
A23: 22 | B23: 仮設工事 | C23: その他仮設 | D23: 木柵工 | E23: H=1300 | F23: 100 | G23: ｍ | H23: 仮設工事 | I23: 仮設工事 | J23: 47 | K23: 55 | L23: 仮設工事｜木柵工｜H=1300 | M23: 木柵工｜H=1300
A24: 23 | B24: 景観金物 | C24: メッシュフェンス | D24: メッシュフェンス | E24: H=1500 CB上施工 | F24: 100 | G24: ｍ | H24: 景観金物 | I24: 景観金物 | J24: 6 | K24: 19 | L24: 景観金物｜メッシュフェンス｜H=1500 CB上施工 | M24: メッシュフェンス｜H=1500 CB上施工
A25: 24 | B25: 景観金物 | C25: ネットフェンス | D25: ネットフェンス | E25: H=1200 □180*450独立基礎共 | F25: 100 | G25: ｍ | H25: 景観金物 | I25: 景観金物 | J25: 20 | K25: 26 | L25: 景観金物｜ネットフェンス｜H=1200 □180*450独立基礎共 | M25: ネットフェンス｜H=1200 □180*450独立基礎共
A26: 25 | B26: 景観金物 | C26: 独立基礎築造 | D26: フェンス独立基礎設置 | E26: □300*500 独立基礎共 | F26: 100 | G26: ｍ | H26: 景観金物 | I26: 景観金物 | J26: 27 | K26: 39 | L26: 景観金物｜フェンス独立基礎設置｜ □300*500 独立基礎共 | M26: フェンス独立基礎設置｜ □300*500 独立基礎共
A27: 26 | B27: 景観金物 | C27: バリカー設置 | D27: 車止めバリカー設置工 | E27: H800 φ89.1 基礎共 | F27: 10 | G27: 箇所 | H27: 景観金物 | I27: 景観金物 | J27: 40 | K27: 60 | L27: 景観金物｜車止めバリカー設置工｜H800 φ89.1 基礎共 | M27: 車止めバリカー設置工｜H800 φ89.1 基礎共
A28: 27 | B28: 景観金物 | C28: 横断防止柵 | D28: ガードパイプ柵 | F28: 37.5 | G28: ｍ | H28: 景観金物 | I28: 景観金物 | J28: 61 | K28: 83 | L28: 景観金物｜ガードパイプ柵｜ | M28: ガードパイプ柵｜
A29: 28 | B29: 植栽工事 | C29: 客土工 | D29: 客土 | E29: T300 良質土 | F29: 100 | G29: ｍ2 | H29: 植栽工事 | I29: 植栽工事 | J29: 7 | K29: 16 | L29: 植栽工事｜客土｜T300 良質土 | M29: 客土｜T300 良質土
A30: 29 | B30: 法面工事 | C30: 法面保護工 | D30: 法面整形工 | E30: 1:1.5～1:1.8 バックホウ整形(参考値・要精査) | F30: 100 | G30: ｍ2 | H30: 法面工事 | I30: 法面工事 | J30: 8 | K30: 13 | L30: 法面工事｜法面整形工｜1:1.5～1:1.8 バックホウ整形(参考値・要精査) | M30: 法面整形工｜1:1.5～1:1.8 バックホウ整形(参考値・要精査)
A31: 30 | B31: 法面工事 | C31: 法枠工 | D31: 現場打法枠工 | E31: プレキャスト法枠 1.0×1.0m格子(参考値・要精査) | F31: 100 | G31: ｍ2 | H31: 法面工事 | I31: 法面工事 | J31: 14 | K31: 19 | L31: 法面工事｜現場打法枠工｜プレキャスト法枠 1.0×1.0m格子(参考値・要精査) | M31: 現場打法枠工｜プレキャスト法枠 1.0×1.0m格子(参考値・要精査)
A32: 31 | B32: 地盤改良工事 | C32: 浅層・表層改良工 | D32: 表層地盤改良工 | E32: セメント系固化材 t=50cm 混合攪拌(参考値・要精査) | F32: 100 | G32: ｍ2 | H32: 地盤改良工事 | I32: 地盤改良工事 | J32: 8 | K32: 16 | L32: 地盤改良工事｜表層地盤改良工｜セメント系固化材 t=50cm 混合攪拌(参考値・要精査) | M32: 表層地盤改良工｜セメント系固化材 t=50cm 混合攪拌(参考値・要精査)
A33: 32 | B33: 地盤改良工事 | C33: 深層混合処理工 | D33: 深層混合処理工 | E33: 機械攪拌工法 L=8.0m(参考値・要精査) | F33: 10 | G33: 本 | H33: 地盤改良工事 | I33: 地盤改良工事 | J33: 17 | K33: 25 | L33: 地盤改良工事｜深層混合処理工｜機械攪拌工法 L=8.0m(参考値・要精査) | M33: 深層混合処理工｜機械攪拌工法 L=8.0m(参考値・要精査)
A34: 33 | B34: 地盤改良工事 | C34: サンドコンパクションパイル工 | D34: サンドコンパクションパイル工 | E34: φ400 L=6.0m(参考値・要精査) | F34: 10 | G34: 本 | H34: 地盤改良工事 | I34: 地盤改良工事 | J34: 26 | K34: 31 | L34: 地盤改良工事｜サンドコンパクションパイル工｜φ400 L=6.0m(参考値・要精査) | M34: サンドコンパクションパイル工｜φ400 L=6.0m(参考値・要精査)

Sheet 撤去工事
A1: 1
A3: コード | B3: 中分類 | C3: 工 種 | D3: 詳 細 | E3: 数量 | F3: 単位 | G3: 単価 | H3: 金額
C4: 撤去工事
A6: 1 | B6: 舗装版撤去 | C6: 既設舗装版撤去 | D6: AS：t=5cm AS廃材運搬処分共 | E6: 100 | F6: ｍ2 | G6: =ROUND(H6/E6,0) -> 895 | H6: =SUM(H7:INDEX(H7:H$36,IFERROR(MATCH(1,$A7:$A$36,0),ROWS($A7:$A$36)+1)-1)) -> 89495
C7: 既設舗装版撤去 | E7: =+E6 -> 100 | F7: ｍ2 | G7: =IF(E7=0,"",ROUND(SUM(H8:H13)/E7,0)) -> 354
A8: 80000 | C8: =IF(ISBLANK($A8),"",LOOKUP($A8,単価表!$A$5:$A$1162,単価表!$B$5:$B$1162)) -> 所要日数 | D8: 300 | E8: =CEILING(E7/D8,0.01) -> 0.34 | F8: 日 | G8: =IF(ISBLANK($A8),"",LOOKUP($A8,単価表!$A$5:$A$1162,単価表!$G$5:$G$1162)) -> 0 | H8: =IF(ISBLANK($A8),"",ROUND(E8*G8,0)) -> 0
A9: 90003 | C9: =IF(ISBLANK($A9),"",LOOKUP($A9,単価表!$A$5:$A$1162,単価表!$B$5:$B$1162)) -> ＡＳガラ（ｍ3） | D9: 0.05 | E9: =E7*D9 -> 5 | F9: ｍ3 | G9: =IF(ISBLANK($A9),"",LOOKUP($A9,単価表!$A$5:$A$1162,単価表!$G$5:$G$1162)) -> 0 | H9: 0
A10: 40012 | C10: =IF(ISBLANK($A10),"",LOOKUP($A10,単価表!$A$5:$A$1162,単価表!$B$5:$B$1162)) -> 小旋回0.18ﾊﾞｯｸﾎｳ | D10: =IF(ISBLANK($A10),"",IF(LOOKUP($A10,単価表!$A$5:$A$1162,単価表!$C$5:$C$1162)=0,"",LOOKUP($A10,単価表!$A$5:$A$1162,単価表!$C$5:$C$1162))) ->  | E10: =+E8 -> 0.34 | F10: 台 | G10: =IF(ISBLANK($A10),"",LOOKUP($A10,単価表!$A$5:$A$1162,単価表!$G$5:$G$1162)) -> 11250 | H10: 3825
A11: 41002 | C11: =IF(ISBLANK($A11),"",LOOKUP($A11,単価表!$A$5:$A$1162,単価表!$B$5:$B$1162)) -> 自社ﾀﾞﾝﾌﾟ | D11: =IF(ISBLANK($A11),"",IF(LOOKUP($A11,単価表!$A$5:$A$1162,単価表!$C$5:$C$1162)=0,"",LOOKUP($A11,単価表!$A$5:$A$1162,単価表!$C$5:$C$1162))) ->  | E11: =+E8 -> 0.34 | F11: 台 | G11: =IF(ISBLANK($A11),"",LOOKUP($A11,単価表!$A$5:$A$1162,単価表!$G$5:$G$1162)) -> 9000 | H11: 3060
A12: 40000 | C12: =IF(ISBLANK($A12),"",LOOKUP($A12,単価表!$A$5:$A$1162,単価表!$B$5:$B$1162)) -> 油脂燃料 | D12: =IF(ISBLANK($A12),"",IF(LOOKUP($A12,単価表!$A$5:$A$1162,単価表!$C$5:$C$1162)=0,"",LOOKUP($A12,単価表!$A$5:$A$1162,単価表!$C$5:$C$1162))) ->  | E12: =SUM(E10:E11) -> 0.68 | F12: 台日 | G12: =IF(ISBLANK($A12),"",LOOKUP($A12,単価表!$A$5:$A$1162,単価表!$G$5:$G$1162)) -> 1500 | H12: 1020
A13: 20100 | C13: =IF(ISBLANK($A13),"",LOOKUP($A13,単価表!$A$5:$A$1162,単価表!$B$5:$B$1162)) -> 作業員 昼間 | D13: 2 | E13: =E8*D13 -> 0.68 | F13: 人 | G13: =IF(ISBLANK($A13),"",LOOKUP($A13,単価表!$A$5:$A$1162,単価表!$G$5:$G$1162)) -> 40500 | H13: 27540
C14: 運搬処分費 | D14: ＡＳ殻 最終処分地へ | E14: =+E9 -> 5 | F14: ｍ3 | G14: =IF(E14=0,"",ROUND(SUM(H15:H20)/E14,0)) -> 10810
A15: 30207 | C15: =IF(ISBLANK($A15),"",LOOKUP($A15,単価表!$A$5:$A$1162,単価表!$B$5:$B$1162)) -> AS殻処分 | D15: =TEXT(E15/3,"0.0台分 3ｔダンプ") -> 3.9台分 3tダンプ | E15: =E14*2.35 -> 11.75 | F15: ｔ | G15: =IF(ISBLANK($A15),"",LOOKUP($A15,単価表!$A$5:$A$1162,単価表!$G$5:$G$1162)) -> 1200 | H15: =IF(ISBLANK($A15),"",ROUND(E15*G15,0)) -> 14100
A16: 41002 | C16: =IF(ISBLANK($A16),"",LOOKUP($A16,単価表!$A$5:$A$1162,単価表!$B$5:$B$1162)) -> 自社ﾀﾞﾝﾌﾟ | D16: 5 | E16: =+E15/3/D16 -> 0.7833333333 | F16: 台 | G16: =IF(ISBLANK($A16),"",LOOKUP($A16,単価表!$A$5:$A$1162,単価表!$G$5:$G$1162)) -> 9000 | H16: =IF(ISBLANK($A16),"",ROUND(E16*G16,0)) -> 7050
A17: 40000 | C17: =IF(ISBLANK($A17),"",LOOKUP($A17,単価表!$A$5:$A$1162,単価表!$B$5:$B$1162)) -> 油脂燃料 | D17: =IF(ISBLANK($A17),"",IF(LOOKUP($A17,単価表!$A$5:$A$1162,単価表!$C$5:$C$1162)=0,"",LOOKUP($A17,単価表!$A$5:$A$1162,単価表!$C$5:$C$1162))) ->  | E17: =SUM(E16) -> 0.7833333333 | F17: 台日 | G17: =IF(ISBLANK($A17),"",LOOKUP($A17,単価表!$A$5:$A$1162,単価表!$G$5:$G$1162)) -> 1500 | H17: =IF(ISBLANK($A17),"",ROUND(E17*G17,0)) -> 1175
A18: 20100 | C18: =IF(ISBLANK($A18),"",LOOKUP($A18,単価表!$A$5:$A$1162,単価表!$B$5:$B$1162)) -> 作業員 昼間 | D18: 運転手 | E18: =+E16 -> 0.7833333333 | F18: 人 | G18: =IF(ISBLANK($A18),"",LOOKUP($A18,単価表!$A$5:$A$1162,単価表!$G$5:$G$1162)) -> 40500 | H18: =IF(ISBLANK($A18),"",ROUND(E18*G18,0)) -> 31725
A21: 1 | B21: 構造物取壊し | C21: 構造物取壊し | D21: 廃材運搬処分共 | E21: 100 | F21: ｍ3 | G21: =ROUND(H21/E21,0) -> 28796 | H21: =SUM(H22:INDEX(H22:H$36,IFERROR(MATCH(1,$A22:$A$36,0),ROWS($A22:$A$36)+1)-1)) -> 2879615
C22: 構造物取壊し | E22: =+E21 -> 100 | F22: ｍ3 | G22: =IF(E22=0,"",ROUND(SUM(H23:H30)/E22,0)) -> 6839
A23: 80000 | C23: =IF(ISBLANK($A23),"",LOOKUP($A23,単価表!$A$5:$A$1162,単価表!$B$5:$B$1162)) -> 所要日数 | D23: 30 | E23: =CEILING(E22/D23,0.01) -> 3.34 | F23: 日 | G23: =IF(ISBLANK($A23),"",LOOKUP($A23,単価表!$A$5:$A$1162,単価表!$G$5:$G$1162)) -> 0 | H23: =IF(ISBLANK($A23),"",ROUND(E23*G23,0)) -> 0
A24: 90004 | C24: =IF(ISBLANK($A24),"",LOOKUP($A24,単価表!$A$5:$A$1162,単価表!$B$5:$B$1162)) -> ＣＯガラ（ｍ3） | D24: =TEXT(E24*2.35/3,"0.0台分 3ｔダンプ") -> 78.3台分 3tダンプ | E24: =E22 -> 100 | F24: ｍ3 | G24: =IF(ISBLANK($A24),"",LOOKUP($A24,単価表!$A$5:$A$1162,単価表!$G$5:$G$1162)) -> 0 | H24: 0
A25: 40012 | C25: =IF(ISBLANK($A25),"",LOOKUP($A25,単価表!$A$5:$A$1162,単価表!$B$5:$B$1162)) -> 小旋回0.18ﾊﾞｯｸﾎｳ | D25: 1 | E25: =+E23*D25 -> 3.34 | F25: 台 | G25: =IF(ISBLANK($A25),"",LOOKUP($A25,単価表!$A$5:$A$1162,単価表!$G$5:$G$1162)) -> 11250 | H25: 37575
A26: 40023 | C26: =IF(ISBLANK($A26),"",LOOKUP($A26,単価表!$A$5:$A$1162,単価表!$B$5:$B$1162)) -> 諸機械 発電器,ｅｔｃ | D26: 1 | E26: =+E23*D26 -> 3.34 | F26: 台 | G26: =IF(ISBLANK($A26),"",LOOKUP($A26,単価表!$A$5:$A$1162,単価表!$G$5:$G$1162)) -> 2250 | H26: 7515
A27: 40022 | C27: =IF(ISBLANK($A27),"",LOOKUP($A27,単価表!$A$5:$A$1162,単価表!$B$5:$B$1162)) -> 諸機械 ｴｱｰｺﾝﾌﾟﾚｯｻｰ | D27: 1 | E27: =+E23*D27 -> 3.34 | F27: 台 | G27: =IF(ISBLANK($A27),"",LOOKUP($A27,単価表!$A$5:$A$1162,単価表!$G$5:$G$1162)) -> 3750 | H27: 12525
A28: 41002 | C28: =IF(ISBLANK($A28),"",LOOKUP($A28,単価表!$A$5:$A$1162,単価表!$B$5:$B$1162)) -> 自社ﾀﾞﾝﾌﾟ | D28: 2 | E28: =+E23*D28 -> 6.68 | F28: 台 | G28: =IF(ISBLANK($A28),"",LOOKUP($A28,単価表!$A$5:$A$1162,単価表!$G$5:$G$1162)) -> 9000 | H28: 60120
A29: 40000 | C29: =IF(ISBLANK($A29),"",LOOKUP($A29,単価表!$A$5:$A$1162,単価表!$B$5:$B$1162)) -> 油脂燃料 | D29: =IF(ISBLANK($A29),"",IF(LOOKUP($A29,単価表!$A$5:$A$1162,単価表!$C$5:$C$1162)=0,"",LOOKUP($A29,単価表!$A$5:$A$1162,単価表!$C$5:$C$1162))) ->  | E29: =SUM(E25:E28) -> 16.7 | F29: 台日 | G29: =IF(ISBLANK($A29),"",LOOKUP($A29,単価表!$A$5:$A$1162,単価表!$G$5:$G$1162)) -> 1500 | H29: 25050
A30: 20100 | C30: =IF(ISBLANK($A30),"",LOOKUP($A30,単価表!$A$5:$A$1162,単価表!$B$5:$B$1162)) -> 作業員 昼間 | D30: 4 | E30: =E23*D30 -> 13.36 | F30: 人 | G30: =IF(ISBLANK($A30),"",LOOKUP($A30,単価表!$A$5:$A$1162,単価表!$G$5:$G$1162)) -> 40500 | H30: 541080
C31: 運搬処分費 | D31: ＣＯ殻 仮置場へ | E31: =+E24 -> 100 | F31: ｍ3 | G31: =IF(E31=0,"",ROUND(SUM(H32:H36)/E31,0)) -> 21958
A32: 30205 | C32: =IF(ISBLANK($A32),"",LOOKUP($A32,単価表!$A$5:$A$1162,単価表!$B$5:$B$1162)) -> 無筋CO殻処分(指定) | E32: =E31*2.35 -> 235 | F32: ｔ | G32: =IF(ISBLANK($A32),"",LOOKUP($A32,単価表!$A$5:$A$1162,単価表!$G$5:$G$1162)) -> 2700 | H32: =IF(ISBLANK($A32),"",ROUND(E32*G32,0)) -> 634500
A33: 41002 | C33: =IF(ISBLANK($A33),"",LOOKUP($A33,単価表!$A$5:$A$1162,単価表!$B$5:$B$1162)) -> 自社ﾀﾞﾝﾌﾟ | D33: 4 | E33: =+E32/3/D33 -> 19.58333333 | F33: 台 | G33: =IF(ISBLANK($A33),"",LOOKUP($A33,単価表!$A$5:$A$1162,単価表!$G$5:$G$1162)) -> 9000 | H33: =IF(ISBLANK($A33),"",ROUND(E33*G33,0)) -> 176250
A34: 40000 | C34: =IF(ISBLANK($A34),"",LOOKUP($A34,単価表!$A$5:$A$1162,単価表!$B$5:$B$1162)) -> 油脂燃料 | D34: =IF(ISBLANK($A34),"",IF(LOOKUP($A34,単価表!$A$5:$A$1162,単価表!$C$5:$C$1162)=0,"",LOOKUP($A34,単価表!$A$5:$A$1162,単価表!$C$5:$C$1162))) ->  | E34: =SUM(E33) -> 19.58333333 | F34: 台日 | G34: =IF(ISBLANK($A34),"",LOOKUP($A34,単価表!$A$5:$A$1162,単価表!$G$5:$G$1162)) -> 1500 | H34: =IF(ISBLANK($A34),"",ROUND(E34*G34,0)) -> 29375
A35: 20100 | C35: =IF(ISBLANK($A35),"",LOOKUP($A35,単価表!$A$5:$A$1162,単価表!$B$5:$B$1162)) -> 作業員 昼間 | D35: 運転手 | E35: =+E33 -> 19.58333333 | F35: 人 | G35: =IF(ISBLANK($A35),"",LOOKUP($A35,単価表!$A$5:$A$1162,単価表!$G$5:$G$1162)) -> 40500 | H35: =IF(ISBLANK($A35),"",ROUND(E35*G35,0)) -> 793125
A36: 40052 | C36: =IF(ISBLANK($A36),"",LOOKUP($A36,単価表!$A$5:$A$1162,単価表!$B$5:$B$1162)) -> 大型ﾀﾞﾝﾌﾟ （代引） | E36: =CEILING(E32/9.5,1) -> 25 | F36: 台 | G36: =IF(ISBLANK($A36),"",LOOKUP($A36,単価表!$A$5:$A$1162,単価表!$G$5:$G$1162)) -> 22500 | H36: =IF(ISBLANK($A36),"",ROUND(E36*G36,0)) -> 562500

Sheet 土工事
A1: 1
A3: コード | B3: 中分類 | C3: 工 種 | D3: 詳 細 | E3: 数量 | F3: 単位 | G3: 単価 | H3: 金額
C4: 土工事
A6: 1 | B6: 切土工 | C6: 残土処分 | D6: 鋤取り土工含 発生土運搬処分共 | E6: 100 | F6: ｍ3 | G6: =ROUND(H6/E6,0) -> 18309 | H6: =SUM(H7:INDEX(H7:H$47,IFERROR(MATCH(1,$A7:$A$47,0),ROWS($A7:$A$47)+1)-1)) -> 1830862
C7: 鋤取り | E7: =+E6 -> 100 | F7: ｍ3 | G7: =IF(E7=0,"",ROUND(SUM(H8:H13)/E7,0)) -> 3407
A8: 80000 | C8: =IF(ISBLANK($A8),"",LOOKUP($A8,単価表!$A$5:$A$1162,単価表!$B$5:$B$1162)) -> 所要日数 | D8: 30 | E8: =CEILING(E7/D8,0.01) -> 3.34 | F8: 日 | G8: =IF(ISBLANK($A8),"",LOOKUP($A8,単価表!$A$5:$A$1162,単価表!$G$5:$G$1162)) -> 0 | H8: =IF(ISBLANK($A8),"",ROUND(E8*G8,0)) -> 0
A9: 90000 | C9: =IF(ISBLANK($A9),"",LOOKUP($A9,単価表!$A$5:$A$1162,単価表!$B$5:$B$1162)) -> 掘削・鋤取発生土（ｍ3） | E9: =E7 -> 100 | F9: ｍ3 | G9: =IF(ISBLANK($A9),"",LOOKUP($A9,単価表!$A$5:$A$1162,単価表!$G$5:$G$1162)) -> 0 | H9: 0
A10: 40011 | C10: =IF(ISBLANK($A10),"",LOOKUP($A10,単価表!$A$5:$A$1162,単価表!$B$5:$B$1162)) -> 小旋回0.12ﾊﾞｯｸﾎｳ | D10: 1 | E10: =+E8*D10 -> 3.34 | F10: 台 | G10: =IF(ISBLANK($A10),"",LOOKUP($A10,単価表!$A$5:$A$1162,単価表!$G$5:$G$1162)) -> 9000 | H10: 30060
A11: 41002 | C11: =IF(ISBLANK($A11),"",LOOKUP($A11,単価表!$A$5:$A$1162,単価表!$B$5:$B$1162)) -> 自社ﾀﾞﾝﾌﾟ | D11: 1 | E11: =+E8*D11 -> 3.34 | F11: 台 | G11: =IF(ISBLANK($A11),"",LOOKUP($A11,単価表!$A$5:$A$1162,単価表!$G$5:$G$1162)) -> 9000 | H11: 30060
A12: 40000 | C12: =IF(ISBLANK($A12),"",LOOKUP($A12,単価表!$A$5:$A$1162,単価表!$B$5:$B$1162)) -> 油脂燃料 | D12: =IF(ISBLANK($A12),"",IF(LOOKUP($A12,単価表!$A$5:$A$1162,単価表!$C$5:$C$1162)=0,"",LOOKUP($A12,単価表!$A$5:$A$1162,単価表!$C$5:$C$1162))) ->  | E12: =SUM(E10:E11) -> 6.68 | F12: 台日 | G12: =IF(ISBLANK($A12),"",LOOKUP($A12,単価表!$A$5:$A$1162,単価表!$G$5:$G$1162)) -> 1500 | H12: 10020
A13: 20100 | C13: =IF(ISBLANK($A13),"",LOOKUP($A13,単価表!$A$5:$A$1162,単価表!$B$5:$B$1162)) -> 作業員 昼間 | D13: 2 | E13: =E8*D13 -> 6.68 | F13: 人 | G13: =IF(ISBLANK($A13),"",LOOKUP($A13,単価表!$A$5:$A$1162,単価表!$G$5:$G$1162)) -> 40500 | H13: 270540
C14: 運搬処分費 | D14: 残土 最終処分地へ | E14: =+E9 -> 100 | F14: ｍ3 | G14: =IF(E14=0,"",ROUND(SUM(H15:H18)/E14,0)) -> 14902
A15: 30201 | C15: =IF(ISBLANK($A15),"",LOOKUP($A15,単価表!$A$5:$A$1162,単価表!$B$5:$B$1162)) -> 残土処分 4ｔ | E15: =E14/2.2 -> 45.45454545 | F15: 台 | G15: =IF(ISBLANK($A15),"",LOOKUP($A15,単価表!$A$5:$A$1162,単価表!$G$5:$G$1162)) -> 18000 | H15: =IF(ISBLANK($A15),"",ROUND(E15*G15,0)) -> 818182
A16: 40047 | C16: =IF(ISBLANK($A16),"",LOOKUP($A16,単価表!$A$5:$A$1162,単価表!$B$5:$B$1162)) -> 4ｔﾀﾞﾝﾌﾟ 常傭 | D16: 3 | E16: =CEILING(E15/D16,1) -> 16 | F16: 台 | G16: =IF(ISBLANK($A16),"",LOOKUP($A16,単価表!$A$5:$A$1162,単価表!$G$5:$G$1162)) -> 42000 | H16: =IF(ISBLANK($A16),"",ROUND(E16*G16,0)) -> 672000
A19: 1 | B19: 床堀工 | C19: 根切り | D19: 人力土工 | E19: 10 | F19: ｍ3 | G19: =ROUND(H19/E19,0) -> 18753 | H19: =SUM(H20:INDEX(H20:H$47,IFERROR(MATCH(1,$A20:$A$47,0),ROWS($A20:$A$47)+1)-1)) -> 187530
C20: 人力床堀 | D20: 人力のみ | E20: =+E19 -> 10 | F20: ｍ3 | G20: =IF(E20=0,"",ROUND(SUM(H21:H27)/E20,0)) -> 18753
A21: 80000 | C21: =IF(ISBLANK($A21),"",LOOKUP($A21,単価表!$A$5:$A$1162,単価表!$B$5:$B$1162)) -> 所要日数 | D21: 5 | E21: =CEILING(E20/D21,0.01) -> 2 | F21: 日 | G21: =IF(ISBLANK($A21),"",LOOKUP($A21,単価表!$A$5:$A$1162,単価表!$G$5:$G$1162)) -> 0 | H21: =IF(ISBLANK($A21),"",ROUND(E21*G21,0)) -> 0
A22: 41002 | C22: =IF(ISBLANK($A22),"",LOOKUP($A22,単価表!$A$5:$A$1162,単価表!$B$5:$B$1162)) -> 自社ﾀﾞﾝﾌﾟ | D22: =IF(ISBLANK($A22),"",IF(LOOKUP($A22,単価表!$A$5:$A$1162,単価表!$C$5:$C$1162)=0,"",LOOKUP($A22,単価表!$A$5:$A$1162,単価表!$C$5:$C$1162))) ->  | E22: =+E21 -> 2 | F22: 台 | G22: =IF(ISBLANK($A22),"",LOOKUP($A22,単価表!$A$5:$A$1162,単価表!$G$5:$G$1162)) -> 9000 | H22: =IF(ISBLANK($A22),"",ROUND(E22*G22,0)) -> 18000
A23: 40001 | C23: =IF(ISBLANK($A23),"",LOOKUP($A23,単価表!$A$5:$A$1162,単価表!$B$5:$B$1162)) -> ﾗﾝﾏｰ･ﾌﾟﾚｰﾄ | D23: =IF(ISBLANK($A23),"",IF(LOOKUP($A23,単価表!$A$5:$A$1162,単価表!$C$5:$C$1162)=0,"",LOOKUP($A23,単価表!$A$5:$A$1162,単価表!$C$5:$C$1162))) ->  | E23: =+E21 -> 2 | F23: 台 | G23: =IF(ISBLANK($A23),"",LOOKUP($A23,単価表!$A$5:$A$1162,単価表!$G$5:$G$1162)) -> 765 | H23: =IF(ISBLANK($A23),"",ROUND(E23*G23,0)) -> 1530
A24: 40000 | C24: =IF(ISBLANK($A24),"",LOOKUP($A24,単価表!$A$5:$A$1162,単価表!$B$5:$B$1162)) -> 油脂燃料 | E24: =SUM(E22:E23) -> 4 | F24: 台日 | G24: =IF(ISBLANK($A24),"",LOOKUP($A24,単価表!$A$5:$A$1162,単価表!$G$5:$G$1162)) -> 1500 | H24: =IF(ISBLANK($A24),"",ROUND(E24*G24,0)) -> 6000
A25: 20100 | C25: =IF(ISBLANK($A25),"",LOOKUP($A25,単価表!$A$5:$A$1162,単価表!$B$5:$B$1162)) -> 作業員 昼間 | D25: 2 | E25: =E21*D25 -> 4 | F25: 人 | G25: =IF(ISBLANK($A25),"",LOOKUP($A25,単価表!$A$5:$A$1162,単価表!$G$5:$G$1162)) -> 40500 | H25: =IF(ISBLANK($A25),"",ROUND(E25*G25,0)) -> 162000
A28: 1 | B28: 盛土工 | C28: 埋戻し | D28: 人力土工 | E28: 10 | F28: ｍ3 | G28: =ROUND(H28/E28,0) -> 13408 | H28: =SUM(H29:INDEX(H29:H$47,IFERROR(MATCH(1,$A29:$A$47,0),ROWS($A29:$A$47)+1)-1)) -> 134084
C29: 埋戻し | D29: 人力のみ | E29: =+E28 -> 10 | F29: ｍ3 | G29: =IF(E29=0,"",ROUND(SUM(H30:H36)/E29,0)) -> 13408
A30: 80000 | C30: =IF(ISBLANK($A30),"",LOOKUP($A30,単価表!$A$5:$A$1162,単価表!$B$5:$B$1162)) -> 所要日数 | D30: 7 | E30: =CEILING(E29/D30,0.01) -> 1.43 | F30: 日 | G30: =IF(ISBLANK($A30),"",LOOKUP($A30,単価表!$A$5:$A$1162,単価表!$G$5:$G$1162)) -> 0 | H30: =IF(ISBLANK($A30),"",ROUND(E30*G30,0)) -> 0
A31: 41002 | C31: =IF(ISBLANK($A31),"",LOOKUP($A31,単価表!$A$5:$A$1162,単価表!$B$5:$B$1162)) -> 自社ﾀﾞﾝﾌﾟ | D31: =IF(ISBLANK($A31),"",IF(LOOKUP($A31,単価表!$A$5:$A$1162,単価表!$C$5:$C$1162)=0,"",LOOKUP($A31,単価表!$A$5:$A$1162,単価表!$C$5:$C$1162))) ->  | E31: =+E30 -> 1.43 | F31: 台 | G31: =IF(ISBLANK($A31),"",LOOKUP($A31,単価表!$A$5:$A$1162,単価表!$G$5:$G$1162)) -> 9000 | H31: =IF(ISBLANK($A31),"",ROUND(E31*G31,0)) -> 12870
A32: 40001 | C32: =IF(ISBLANK($A32),"",LOOKUP($A32,単価表!$A$5:$A$1162,単価表!$B$5:$B$1162)) -> ﾗﾝﾏｰ･ﾌﾟﾚｰﾄ | D32: =IF(ISBLANK($A32),"",IF(LOOKUP($A32,単価表!$A$5:$A$1162,単価表!$C$5:$C$1162)=0,"",LOOKUP($A32,単価表!$A$5:$A$1162,単価表!$C$5:$C$1162))) ->  | E32: =+E30 -> 1.43 | F32: 台 | G32: =IF(ISBLANK($A32),"",LOOKUP($A32,単価表!$A$5:$A$1162,単価表!$G$5:$G$1162)) -> 765 | H32: =IF(ISBLANK($A32),"",ROUND(E32*G32,0)) -> 1094
A33: 40000 | C33: =IF(ISBLANK($A33),"",LOOKUP($A33,単価表!$A$5:$A$1162,単価表!$B$5:$B$1162)) -> 油脂燃料 | E33: =SUM(E31:E32) -> 2.86 | F33: 台日 | G33: =IF(ISBLANK($A33),"",LOOKUP($A33,単価表!$A$5:$A$1162,単価表!$G$5:$G$1162)) -> 1500 | H33: =IF(ISBLANK($A33),"",ROUND(E33*G33,0)) -> 4290
A34: 20100 | C34: =IF(ISBLANK($A34),"",LOOKUP($A34,単価表!$A$5:$A$1162,単価表!$B$5:$B$1162)) -> 作業員 昼間 | D34: 2 | E34: =E30*D34 -> 2.86 | F34: 人 | G34: =IF(ISBLANK($A34),"",LOOKUP($A34,単価表!$A$5:$A$1162,単価表!$G$5:$G$1162)) -> 40500 | H34: =IF(ISBLANK($A34),"",ROUND(E34*G34,0)) -> 115830
A37: 1 | B37: 埋戻工 | C37: 路体（流用土） | D37: 4.0≦W | E37: 100 | F37: ｍ3 | G37: =ROUND(H37/E37,0) -> 1425 | H37: =SUM(H38:INDEX(H38:H$47,IFERROR(MATCH(1,$A38:$A$47,0),ROWS($A38:$A$47)+1)-1)) -> 142484
C38: 埋戻A 埋戻幅 W2≧4ｍ | D38: (中規模土工)現場発生土 振動ローラー・ブルドーザー | E38: =+E37 -> 100 | F38: ｍ3 | G38: =IF(E38=0,"",ROUND(SUM(H39:H47)/E38,0)) -> 1425
A39: 80000 | C39: =IF(ISBLANK($A39),"",LOOKUP($A39,単価表!$A$5:$A$1162,単価表!$B$5:$B$1162)) -> 所要日数 | D39: 160 | E39: =CEILING(E38/D39,0.01) -> 0.63 | F39: 日 | G39: =IF(ISBLANK($A39),"",LOOKUP($A39,単価表!$A$5:$A$1162,単価表!$G$5:$G$1162)) -> 0 | H39: =IF(ISBLANK($A39),"",ROUND(E39*G39,0)) -> 0
A40: 40021 | C40: =IF(ISBLANK($A40),"",LOOKUP($A40,単価表!$A$5:$A$1162,単価表!$B$5:$B$1162)) -> 0.7 ﾊﾞｯｸﾎｳ | D40: =IF(ISBLANK($A40),"",IF(LOOKUP($A40,単価表!$A$5:$A$1162,単価表!$C$5:$C$1162)=0,"",LOOKUP($A40,単価表!$A$5:$A$1162,単価表!$C$5:$C$1162))) ->  | E40: =+E39 -> 0.63 | F40: 台 | G40: =IF(ISBLANK($A40),"",LOOKUP($A40,単価表!$A$5:$A$1162,単価表!$G$5:$G$1162)) -> 24000 | H40: 15120
A41: 99999 | C41: 大型油脂燃料 | E41: =+E40 -> 0.63 | F41: 台日 | G41: 10000 | H41: 6300
A42: 40008 | C42: =IF(ISBLANK($A42),"",LOOKUP($A42,単価表!$A$5:$A$1162,単価表!$B$5:$B$1162)) -> ﾌﾞﾙﾄﾞｰｻﾞｰ3ｔ（Ｄ20） ゴム | D42: =IF(ISBLANK($A42),"",IF(LOOKUP($A42,単価表!$A$5:$A$1162,単価表!$C$5:$C$1162)=0,"",LOOKUP($A42,単価表!$A$5:$A$1162,単価表!$C$5:$C$1162))) -> 3ｔ | E42: =+E39 -> 0.63 | F42: 台 | G42: =IF(ISBLANK($A42),"",LOOKUP($A42,単価表!$A$5:$A$1162,単価表!$G$5:$G$1162)) -> 9300 | H42: 5859
A43: 40006 | C43: =IF(ISBLANK($A43),"",LOOKUP($A43,単価表!$A$5:$A$1162,単価表!$B$5:$B$1162)) -> 4ｔ鉄輪ﾛｰﾗｰ | D43: =IF(ISBLANK($A43),"",IF(LOOKUP($A43,単価表!$A$5:$A$1162,単価表!$C$5:$C$1162)=0,"",LOOKUP($A43,単価表!$A$5:$A$1162,単価表!$C$5:$C$1162))) -> ４ｔ | E43: =+E39 -> 0.63 | F43: 台 | G43: =IF(ISBLANK($A43),"",LOOKUP($A43,単価表!$A$5:$A$1162,単価表!$G$5:$G$1162)) -> 5100 | H43: 3213
A44: 40001 | C44: =IF(ISBLANK($A44),"",LOOKUP($A44,単価表!$A$5:$A$1162,単価表!$B$5:$B$1162)) -> ﾗﾝﾏｰ･ﾌﾟﾚｰﾄ | D44: =IF(ISBLANK($A44),"",IF(LOOKUP($A44,単価表!$A$5:$A$1162,単価表!$C$5:$C$1162)=0,"",LOOKUP($A44,単価表!$A$5:$A$1162,単価表!$C$5:$C$1162))) ->  | E44: =+E39 -> 0.63 | F44: 台 | G44: =IF(ISBLANK($A44),"",LOOKUP($A44,単価表!$A$5:$A$1162,単価表!$G$5:$G$1162)) -> 765 | H44: 482
A45: 41002 | C45: =IF(ISBLANK($A45),"",LOOKUP($A45,単価表!$A$5:$A$1162,単価表!$B$5:$B$1162)) -> 自社ﾀﾞﾝﾌﾟ | D45: =IF(ISBLANK($A45),"",IF(LOOKUP($A45,単価表!$A$5:$A$1162,単価表!$C$5:$C$1162)=0,"",LOOKUP($A45,単価表!$A$5:$A$1162,単価表!$C$5:$C$1162))) ->  | E45: =+E39 -> 0.63 | F45: 台 | G45: =IF(ISBLANK($A45),"",LOOKUP($A45,単価表!$A$5:$A$1162,単価表!$G$5:$G$1162)) -> 9000 | H45: 5670
A46: 40000 | C46: =IF(ISBLANK($A46),"",LOOKUP($A46,単価表!$A$5:$A$1162,単価表!$B$5:$B$1162)) -> 油脂燃料 | E46: =SUM(E42:E45) -> 2.52 | F46: 台日 | G46: =IF(ISBLANK($A46),"",LOOKUP($A46,単価表!$A$5:$A$1162,単価表!$G$5:$G$1162)) -> 1500 | H46: 3780
A47: 20100 | C47: =IF(ISBLANK($A47),"",LOOKUP($A47,単価表!$A$5:$A$1162,単価表!$B$5:$B$1162)) -> 作業員 昼間 | D47: 4 | E47: =E39*D47 -> 2.52 | F47: 人 | G47: =IF(ISBLANK($A47),"",LOOKUP($A47,単価表!$A$5:$A$1162,単価表!$G$5:$G$1162)) -> 40500 | H47: 102060

Sheet 擁壁工事
A1: 1
A3: コード | B3: 中分類 | C3: 工 種 | D3: 詳 細 | E3: 数量 | F3: 単位 | G3: 単価 | H3: 金額
C4: 擁壁工事
A6: 1 | B6: RC擁壁 | C6: コンクリート立上り | D6: H=890 t=150 打放し 掘削土工共 | E6: 100 | F6: ｍ | G6: =ROUND(H6/E6,0) -> 21093 | H6: =SUM(H7:INDEX(H7:H$155,IFERROR(MATCH(1,$A7:$A$155,0),ROWS($A7:$A$155)+1)-1)) -> 2109291
C7: 掘削及び基礎工 | D7: W550 RC:t=150 FC:t=50 | E7: =+E6 -> 100 | F7: ｍ | G7: =IF(E7=0,"",ROUND(SUM(H8:H18)/E7,0)) -> 4799
A8: 80000 | C8: =IF(ISBLANK($A8),"",LOOKUP($A8,単価表!$A$5:$A$1162,単価表!$B$5:$B$1162)) -> 所要日数 | D8: 50 | E8: =CEILING(E7/D8,0.01) -> 2 | F8: 日 | G8: =IF(ISBLANK($A8),"",LOOKUP($A8,単価表!$A$5:$A$1162,単価表!$G$5:$G$1162)) -> 0 | H8: =IF(ISBLANK($A8),"",ROUND(E8*G8,0)) -> 0
A9: 90000 | C9: =IF(ISBLANK($A9),"",LOOKUP($A9,単価表!$A$5:$A$1162,単価表!$B$5:$B$1162)) -> 掘削・鋤取発生土（ｍ3） | E9: =CEILING(E7*(0.55*0.2+0.15*0.5+0.15*0.6),0.01) -> 27.5 | F9: ｍ3 | G9: =IF(ISBLANK($A9),"",LOOKUP($A9,単価表!$A$5:$A$1162,単価表!$G$5:$G$1162)) -> 0 | H9: 0
A10: 10201 | C10: =IF(ISBLANK($A10),"",LOOKUP($A10,単価表!$A$5:$A$1162,単価表!$B$5:$B$1162)) -> RC-40(ﾌﾟﾗﾝﾄ) 小型 | D10: =0.55*0.15*1.7*1.28 -> 0.17952 | E10: =CEILING(E7*D10,0.01) -> 17.96 | F10: ｔ | G10: =IF(ISBLANK($A10),"",LOOKUP($A10,単価表!$A$5:$A$1162,単価表!$G$5:$G$1162)) -> 4500 | H10: 80820
A11: 10514 | C11: =IF(ISBLANK($A11),"",LOOKUP($A11,単価表!$A$5:$A$1162,単価表!$B$5:$B$1162)) -> 型枠 Ａ | D11: =0.05*2 -> 0.1 | E11: =CEILING(E7*D11,0.01) -> 10 | F11: ｍ2 | G11: =IF(ISBLANK($A11),"",LOOKUP($A11,単価表!$A$5:$A$1162,単価表!$G$5:$G$1162)) -> 1500 | H11: 15000
A12: 10501 | C12: =IF(ISBLANK($A12),"",LOOKUP($A12,単価表!$A$5:$A$1162,単価表!$B$5:$B$1162)) -> 生ｺﾝｸﾘｰﾄ 18-8 小型 | D12: =0.55*0.05*1.04 -> 0.0286 | E12: =CEILING(E7*D12,0.01) -> 2.86 | F12: ｍ3 | G12: =IF(ISBLANK($A12),"",LOOKUP($A12,単価表!$A$5:$A$1162,単価表!$G$5:$G$1162)) -> 29400 | H12: 84084
A13: 40014 | C13: =IF(ISBLANK($A13),"",LOOKUP($A13,単価表!$A$5:$A$1162,単価表!$B$5:$B$1162)) -> 超小旋回0.12ﾊﾞｯｸﾎｳ | D13: =IF(ISBLANK($A13),"",IF(LOOKUP($A13,単価表!$A$5:$A$1162,単価表!$C$5:$C$1162)=0,"",LOOKUP($A13,単価表!$A$5:$A$1162,単価表!$C$5:$C$1162))) ->  | E13: =+E8 -> 2 | F13: 台 | G13: =IF(ISBLANK($A13),"",LOOKUP($A13,単価表!$A$5:$A$1162,単価表!$G$5:$G$1162)) -> 10500 | H13: 21000
A14: 41002 | C14: =IF(ISBLANK($A14),"",LOOKUP($A14,単価表!$A$5:$A$1162,単価表!$B$5:$B$1162)) -> 自社ﾀﾞﾝﾌﾟ | D14: =IF(ISBLANK($A14),"",IF(LOOKUP($A14,単価表!$A$5:$A$1162,単価表!$C$5:$C$1162)=0,"",LOOKUP($A14,単価表!$A$5:$A$1162,単価表!$C$5:$C$1162))) ->  | E14: =+E8 -> 2 | F14: 台 | G14: =IF(ISBLANK($A14),"",LOOKUP($A14,単価表!$A$5:$A$1162,単価表!$G$5:$G$1162)) -> 9000 | H14: 18000
A15: 40023 | C15: =IF(ISBLANK($A15),"",LOOKUP($A15,単価表!$A$5:$A$1162,単価表!$B$5:$B$1162)) -> 諸機械 発電器,ｅｔｃ | E15: =+E8 -> 2 | F15: 台 | G15: =IF(ISBLANK($A15),"",LOOKUP($A15,単価表!$A$5:$A$1162,単価表!$G$5:$G$1162)) -> 2250 | H15: 4500
A16: 40001 | C16: =IF(ISBLANK($A16),"",LOOKUP($A16,単価表!$A$5:$A$1162,単価表!$B$5:$B$1162)) -> ﾗﾝﾏｰ･ﾌﾟﾚｰﾄ | E16: =+E8 -> 2 | F16: 台 | G16: =IF(ISBLANK($A16),"",LOOKUP($A16,単価表!$A$5:$A$1162,単価表!$G$5:$G$1162)) -> 765 | H16: 1530
A17: 40000 | C17: =IF(ISBLANK($A17),"",LOOKUP($A17,単価表!$A$5:$A$1162,単価表!$B$5:$B$1162)) -> 油脂燃料 | E17: =SUM(E13:E16) -> 8 | F17: 台日 | G17: =IF(ISBLANK($A17),"",LOOKUP($A17,単価表!$A$5:$A$1162,単価表!$G$5:$G$1162)) -> 1500 | H17: 12000
A18: 20100 | C18: =IF(ISBLANK($A18),"",LOOKUP($A18,単価表!$A$5:$A$1162,単価表!$B$5:$B$1162)) -> 作業員 昼間 | D18: 3 | E18: =+E8*D18 -> 6 | F18: 人 | G18: =IF(ISBLANK($A18),"",LOOKUP($A18,単価表!$A$5:$A$1162,単価表!$G$5:$G$1162)) -> 40500 | H18: 243000
C19: 躯体打設及び埋戻 | E19: =+E6 -> 100 | F19: ｍ | G19: =IF(E19=0,"",ROUND(SUM(H20:H32)/E19,0)) -> 16294
A20: 80000 | C20: =IF(ISBLANK($A20),"",LOOKUP($A20,単価表!$A$5:$A$1162,単価表!$B$5:$B$1162)) -> 所要日数 | D20: 40 | E20: =CEILING(E19/D20,0.01) -> 2.5 | F20: 日 | G20: =IF(ISBLANK($A20),"",LOOKUP($A20,単価表!$A$5:$A$1162,単価表!$G$5:$G$1162)) -> 0 | H20: =IF(ISBLANK($A20),"",ROUND(E20*G20,0)) -> 0
A21: 10518 | C21: =IF(ISBLANK($A21),"",LOOKUP($A21,単価表!$A$5:$A$1162,単価表!$B$5:$B$1162)) -> 型枠擁壁 | D21: =0.55*0.15*1.28 -> 0.1056 | E21: =CEILING(E19*D21,0.01) -> 10.56 | F21: ｍ2 | G21: =IF(ISBLANK($A21),"",LOOKUP($A21,単価表!$A$5:$A$1162,単価表!$G$5:$G$1162)) -> 9750 | H21: 102960
A22: 12101 | C22: =IF(ISBLANK($A22),"",LOOKUP($A22,単価表!$A$5:$A$1162,単価表!$B$5:$B$1162)) -> 鉄筋工 小規模(kg) | D22: =1.44*9.95*1.04 -> 14.90112 | E22: =CEILING(E19*D22,0.01) -> 1490.12 | F22: kg | G22: =IF(ISBLANK($A22),"",LOOKUP($A22,単価表!$A$5:$A$1162,単価表!$G$5:$G$1162)) -> 300 | H22: 447036
A23: 10507 | C23: =IF(ISBLANK($A23),"",LOOKUP($A23,単価表!$A$5:$A$1162,単価表!$B$5:$B$1162)) -> 生ｺﾝｸﾘｰﾄ 擁壁 小型 | D23: =(0.55+0.89)*0.15*1.04 -> 0.22464 | E23: =CEILING(E19*D23,0.01) -> 22.47 | F23: ｍ3 | G23: =IF(ISBLANK($A23),"",LOOKUP($A23,単価表!$A$5:$A$1162,単価表!$G$5:$G$1162)) -> 30900 | H23: 694323
A24: 99999 | C24: 諸雑費 | D24: ボイド等 | E24: =+E19 -> 100 | F24: ｍ | G24: 100 | H24: 10000
A25: 40014 | C25: =IF(ISBLANK($A25),"",LOOKUP($A25,単価表!$A$5:$A$1162,単価表!$B$5:$B$1162)) -> 超小旋回0.12ﾊﾞｯｸﾎｳ | D25: =IF(ISBLANK($A25),"",IF(LOOKUP($A25,単価表!$A$5:$A$1162,単価表!$C$5:$C$1162)=0,"",LOOKUP($A25,単価表!$A$5:$A$1162,単価表!$C$5:$C$1162))) ->  | E25: =+E20 -> 2.5 | F25: 台 | G25: =IF(ISBLANK($A25),"",LOOKUP($A25,単価表!$A$5:$A$1162,単価表!$G$5:$G$1162)) -> 10500 | H25: 26250
A26: 41002 | C26: =IF(ISBLANK($A26),"",LOOKUP($A26,単価表!$A$5:$A$1162,単価表!$B$5:$B$1162)) -> 自社ﾀﾞﾝﾌﾟ | D26: =IF(ISBLANK($A26),"",IF(LOOKUP($A26,単価表!$A$5:$A$1162,単価表!$C$5:$C$1162)=0,"",LOOKUP($A26,単価表!$A$5:$A$1162,単価表!$C$5:$C$1162))) ->  | E26: =+E20 -> 2.5 | F26: 台 | G26: =IF(ISBLANK($A26),"",LOOKUP($A26,単価表!$A$5:$A$1162,単価表!$G$5:$G$1162)) -> 9000 | H26: 22500
A27: 40023 | C27: =IF(ISBLANK($A27),"",LOOKUP($A27,単価表!$A$5:$A$1162,単価表!$B$5:$B$1162)) -> 諸機械 発電器,ｅｔｃ | E27: =+E20 -> 2.5 | F27: 台 | G27: =IF(ISBLANK($A27),"",LOOKUP($A27,単価表!$A$5:$A$1162,単価表!$G$5:$G$1162)) -> 2250 | H27: 5625
A28: 40001 | C28: =IF(ISBLANK($A28),"",LOOKUP($A28,単価表!$A$5:$A$1162,単価表!$B$5:$B$1162)) -> ﾗﾝﾏｰ･ﾌﾟﾚｰﾄ | E28: =+E20 -> 2.5 | F28: 台 | G28: =IF(ISBLANK($A28),"",LOOKUP($A28,単価表!$A$5:$A$1162,単価表!$G$5:$G$1162)) -> 765 | H28: 1913
A29: 40000 | C29: =IF(ISBLANK($A29),"",LOOKUP($A29,単価表!$A$5:$A$1162,単価表!$B$5:$B$1162)) -> 油脂燃料 | E29: =SUM(E25:E28) -> 10 | F29: 台日 | G29: =IF(ISBLANK($A29),"",LOOKUP($A29,単価表!$A$5:$A$1162,単価表!$G$5:$G$1162)) -> 1500 | H29: 15000
A30: 20100 | C30: =IF(ISBLANK($A30),"",LOOKUP($A30,単価表!$A$5:$A$1162,単価表!$B$5:$B$1162)) -> 作業員 昼間 | D30: 3 | E30: =+E20*D30 -> 7.5 | F30: 人 | G30: =IF(ISBLANK($A30),"",LOOKUP($A30,単価表!$A$5:$A$1162,単価表!$G$5:$G$1162)) -> 40500 | H30: 303750
A33: 1 | B33: 型枠CB | C33: 型枠CB擁壁 | D33: H=2.0ｍﾀｲﾌﾟ | E33: 10 | F33: ｍ | G33: =ROUND(H33/E33,0) -> 153115 | H33: =SUM(H34:INDEX(H34:H$155,IFERROR(MATCH(1,$A34:$A$155,0),ROWS($A34:$A$155)+1)-1)) -> 1531151
C34: 基礎工 | D34: W2700 RC:t=150 FC:t=50 | E34: =+E33 -> 10 | F34: ｍ | G34: =IF(E34=0,"",ROUND(SUM(H35:H44)/E34,0)) -> 12122
A35: 80000 | C35: =IF(ISBLANK($A35),"",LOOKUP($A35,単価表!$A$5:$A$1162,単価表!$B$5:$B$1162)) -> 所要日数 | D35: 40 | E35: =CEILING(E34/D35,0.01) -> 0.25 | F35: 日 | G35: =IF(ISBLANK($A35),"",LOOKUP($A35,単価表!$A$5:$A$1162,単価表!$G$5:$G$1162)) -> 0 | H35: =IF(ISBLANK($A35),"",ROUND(E35*G35,0)) -> 0
A36: 10201 | C36: =IF(ISBLANK($A36),"",LOOKUP($A36,単価表!$A$5:$A$1162,単価表!$B$5:$B$1162)) -> RC-40(ﾌﾟﾗﾝﾄ) 小型 | D36: =2.7*0.15*1.7*1.28 -> 0.88128 | E36: =CEILING(E34*D36,0.01) -> 8.82 | F36: ｔ | G36: =IF(ISBLANK($A36),"",LOOKUP($A36,単価表!$A$5:$A$1162,単価表!$G$5:$G$1162)) -> 4500 | H36: 39690
A37: 10514 | C37: =IF(ISBLANK($A37),"",LOOKUP($A37,単価表!$A$5:$A$1162,単価表!$B$5:$B$1162)) -> 型枠 Ａ | D37: =0.05*2 -> 0.1 | E37: =CEILING(E34*D37,0.01) -> 1 | F37: ｍ2 | G37: =IF(ISBLANK($A37),"",LOOKUP($A37,単価表!$A$5:$A$1162,単価表!$G$5:$G$1162)) -> 1500 | H37: 1500
A38: 10501 | C38: =IF(ISBLANK($A38),"",LOOKUP($A38,単価表!$A$5:$A$1162,単価表!$B$5:$B$1162)) -> 生ｺﾝｸﾘｰﾄ 18-8 小型 | D38: =2.7*0.05*1.06 -> 0.1431 | E38: =CEILING(E34*D38,0.01) -> 1.44 | F38: ｍ3 | G38: =IF(ISBLANK($A38),"",LOOKUP($A38,単価表!$A$5:$A$1162,単価表!$G$5:$G$1162)) -> 29400 | H38: 42336
A39: 40012 | C39: =IF(ISBLANK($A39),"",LOOKUP($A39,単価表!$A$5:$A$1162,単価表!$B$5:$B$1162)) -> 小旋回0.18ﾊﾞｯｸﾎｳ | D39: =IF(ISBLANK($A39),"",IF(LOOKUP($A39,単価表!$A$5:$A$1162,単価表!$C$5:$C$1162)=0,"",LOOKUP($A39,単価表!$A$5:$A$1162,単価表!$C$5:$C$1162))) ->  | E39: =+E35 -> 0.25 | F39: 台 | G39: =IF(ISBLANK($A39),"",LOOKUP($A39,単価表!$A$5:$A$1162,単価表!$G$5:$G$1162)) -> 11250 | H39: 2813
A40: 41002 | C40: =IF(ISBLANK($A40),"",LOOKUP($A40,単価表!$A$5:$A$1162,単価表!$B$5:$B$1162)) -> 自社ﾀﾞﾝﾌﾟ | D40: =IF(ISBLANK($A40),"",IF(LOOKUP($A40,単価表!$A$5:$A$1162,単価表!$C$5:$C$1162)=0,"",LOOKUP($A40,単価表!$A$5:$A$1162,単価表!$C$5:$C$1162))) ->  | E40: =+E35 -> 0.25 | F40: 台 | G40: =IF(ISBLANK($A40),"",LOOKUP($A40,単価表!$A$5:$A$1162,単価表!$G$5:$G$1162)) -> 9000 | H40: 2250
A41: 40023 | C41: =IF(ISBLANK($A41),"",LOOKUP($A41,単価表!$A$5:$A$1162,単価表!$B$5:$B$1162)) -> 諸機械 発電器,ｅｔｃ | E41: =+E35 -> 0.25 | F41: 台 | G41: =IF(ISBLANK($A41),"",LOOKUP($A41,単価表!$A$5:$A$1162,単価表!$G$5:$G$1162)) -> 2250 | H41: 563
A42: 40001 | C42: =IF(ISBLANK($A42),"",LOOKUP($A42,単価表!$A$5:$A$1162,単価表!$B$5:$B$1162)) -> ﾗﾝﾏｰ･ﾌﾟﾚｰﾄ | E42: =+E35 -> 0.25 | F42: 台 | G42: =IF(ISBLANK($A42),"",LOOKUP($A42,単価表!$A$5:$A$1162,単価表!$G$5:$G$1162)) -> 765 | H42: 191
A43: 40000 | C43: =IF(ISBLANK($A43),"",LOOKUP($A43,単価表!$A$5:$A$1162,単価表!$B$5:$B$1162)) -> 油脂燃料 | E43: =SUM(E39:E42) -> 1 | F43: 台日 | G43: =IF(ISBLANK($A43),"",LOOKUP($A43,単価表!$A$5:$A$1162,単価表!$G$5:$G$1162)) -> 1500 | H43: 1500
A44: 20100 | C44: =IF(ISBLANK($A44),"",LOOKUP($A44,単価表!$A$5:$A$1162,単価表!$B$5:$B$1162)) -> 作業員 昼間 | D44: 3 | E44: =+E35*D44 -> 0.75 | F44: 人 | G44: =IF(ISBLANK($A44),"",LOOKUP($A44,単価表!$A$5:$A$1162,単価表!$G$5:$G$1162)) -> 40500 | H44: 30375
C45: 耐圧版打設 | E45: =+E33 -> 10 | F45: ｍ | G45: =IF(E45=0,"",ROUND(SUM(H46:H57)/E45,0)) -> 69405
A46: 80000 | C46: =IF(ISBLANK($A46),"",LOOKUP($A46,単価表!$A$5:$A$1162,単価表!$B$5:$B$1162)) -> 所要日数 | D46: 8.4 | E46: =CEILING(E45/D46,0.01) -> 1.2 | F46: 日 | G46: =IF(ISBLANK($A46),"",LOOKUP($A46,単価表!$A$5:$A$1162,単価表!$G$5:$G$1162)) -> 0 | H46: =IF(ISBLANK($A46),"",ROUND(E46*G46,0)) -> 0
A47: 10518 | C47: =IF(ISBLANK($A47),"",LOOKUP($A47,単価表!$A$5:$A$1162,単価表!$B$5:$B$1162)) -> 型枠擁壁 | D47: =0.3*2*1.05 -> 0.63 | E47: =CEILING(E45*D47,0.01) -> 6.3 | F47: ｍ2 | G47: =IF(ISBLANK($A47),"",LOOKUP($A47,単価表!$A$5:$A$1162,単価表!$G$5:$G$1162)) -> 9750 | H47: 61425
A48: 12101 | C48: =IF(ISBLANK($A48),"",LOOKUP($A48,単価表!$A$5:$A$1162,単価表!$B$5:$B$1162)) -> 鉄筋工 小規模(kg) | D48: =2.5*(9.95+1.56)*1.4 -> 40.285 | E48: =CEILING(E45*D48,0.1) -> 402.9 | F48: kg | G48: =IF(ISBLANK($A48),"",LOOKUP($A48,単価表!$A$5:$A$1162,単価表!$G$5:$G$1162)) -> 300 | H48: 120870
A49: 10501 | C49: =IF(ISBLANK($A49),"",LOOKUP($A49,単価表!$A$5:$A$1162,単価表!$B$5:$B$1162)) -> 生ｺﾝｸﾘｰﾄ 18-8 小型 | D49: =2.5*0.26*1.06 -> 0.689 | E49: =CEILING(E45*D49,0.5) -> 7 | F49: ｍ3 | G49: =IF(ISBLANK($A49),"",LOOKUP($A49,単価表!$A$5:$A$1162,単価表!$G$5:$G$1162)) -> 29400 | H49: 205800
A50: 99999 | C50: 諸雑費 | D50: ボイド等 | E50: =+E45 -> 10 | F50: ｍ | G50: 100 | H50: 1000
A51: 40049 | C51: =IF(ISBLANK($A51),"",LOOKUP($A51,単価表!$A$5:$A$1162,単価表!$B$5:$B$1162)) -> ﾎﾟﾝﾌﾟ車 | D51: 6 | E51: =SUM(E49:E49)/D51 -> 1.166666667 | F51: 台 | G51: =IF(ISBLANK($A51),"",LOOKUP($A51,単価表!$A$5:$A$1162,単価表!$G$5:$G$1162)) -> 67500 | H51: 78750
A52: 99999 | C52: 足場組立 | D52: =2*2 -> 4 | E52: =CEILING(E45*D52,0.01) -> 40 | F52: 掛ｍ2 | G52: 1200 | H52: 48000
A53: 40012 | C53: =IF(ISBLANK($A53),"",LOOKUP($A53,単価表!$A$5:$A$1162,単価表!$B$5:$B$1162)) -> 小旋回0.18ﾊﾞｯｸﾎｳ | D53: =IF(ISBLANK($A53),"",IF(LOOKUP($A53,単価表!$A$5:$A$1162,単価表!$C$5:$C$1162)=0,"",LOOKUP($A53,単価表!$A$5:$A$1162,単価表!$C$5:$C$1162))) ->  | E53: =+E46 -> 1.2 | F53: 台 | G53: =IF(ISBLANK($A53),"",LOOKUP($A53,単価表!$A$5:$A$1162,単価表!$G$5:$G$1162)) -> 11250 | H53: 13500
A54: 41002 | C54: =IF(ISBLANK($A54),"",LOOKUP($A54,単価表!$A$5:$A$1162,単価表!$B$5:$B$1162)) -> 自社ﾀﾞﾝﾌﾟ | D54: =IF(ISBLANK($A54),"",IF(LOOKUP($A54,単価表!$A$5:$A$1162,単価表!$C$5:$C$1162)=0,"",LOOKUP($A54,単価表!$A$5:$A$1162,単価表!$C$5:$C$1162))) ->  | E54: =+E46 -> 1.2 | F54: 台 | G54: =IF(ISBLANK($A54),"",LOOKUP($A54,単価表!$A$5:$A$1162,単価表!$G$5:$G$1162)) -> 9000 | H54: 10800
A55: 40023 | C55: =IF(ISBLANK($A55),"",LOOKUP($A55,単価表!$A$5:$A$1162,単価表!$B$5:$B$1162)) -> 諸機械 発電器,ｅｔｃ | E55: =+E46 -> 1.2 | F55: 台 | G55: =IF(ISBLANK($A55),"",LOOKUP($A55,単価表!$A$5:$A$1162,単価表!$G$5:$G$1162)) -> 2250 | H55: 2700
A56: 40000 | C56: =IF(ISBLANK($A56),"",LOOKUP($A56,単価表!$A$5:$A$1162,単価表!$B$5:$B$1162)) -> 油脂燃料 | E56: =SUM(E53:E55) -> 3.6 | F56: 台日 | G56: =IF(ISBLANK($A56),"",LOOKUP($A56,単価表!$A$5:$A$1162,単価表!$G$5:$G$1162)) -> 1500 | H56: 5400
A57: 20100 | C57: =IF(ISBLANK($A57),"",LOOKUP($A57,単価表!$A$5:$A$1162,単価表!$B$5:$B$1162)) -> 作業員 昼間 | D57: 3 | E57: =+E46*D57 -> 3.6 | F57: 人 | G57: =IF(ISBLANK($A57),"",LOOKUP($A57,単価表!$A$5:$A$1162,単価表!$G$5:$G$1162)) -> 40500 | H57: 145800
C58: 型枠CB積工 | D58: ｔ=270 11段積み | E58: =+E33 -> 10 | F58: ｍ | G58: =IF(E58=0,"",ROUND(SUM(H59:H65)/E58,0)) -> 31854
A59: 80000 | C59: =IF(ISBLANK($A59),"",LOOKUP($A59,単価表!$A$5:$A$1162,単価表!$B$5:$B$1162)) -> 所要日数 | D59: 90 | E59: =CEILING(E58/D59,0.01) -> 0.12 | F59: 日 | G59: =IF(ISBLANK($A59),"",LOOKUP($A59,単価表!$A$5:$A$1162,単価表!$G$5:$G$1162)) -> 0 | H59: =IF(ISBLANK($A59),"",ROUND(E59*G59,0)) -> 0
A60: 99999 | C60: 型枠ＣＢ W=270 材料費 基本 | D60: 9 | E60: =CEILING(E58/0.4*D60,D60) -> 225 | F60: 個 | G60: 1040 | H60: 234000
A61: 99999 | C61: 型枠ＣＢ W=270 材料費 基本ﾊﾝﾁ | D61: 2 | E61: =CEILING(E58/0.4*D61,D61) -> 50 | F61: 個 | G61: 1365 | H61: 68250
A62: 40023 | C62: =IF(ISBLANK($A62),"",LOOKUP($A62,単価表!$A$5:$A$1162,単価表!$B$5:$B$1162)) -> 諸機械 発電器,ｅｔｃ | D62: =IF(ISBLANK($A62),"",IF(LOOKUP($A62, 単価表!$A$5:$A$1162, 単価表!$C$5:$C$1162)=0,"",LOOKUP($A62, 単価表!$A$5:$A$1162, 単価表!$C$5:$C$1162))) ->  | E62: =+E59 -> 0.12 | F62: 台 | G62: =IF(ISBLANK($A62),"",LOOKUP($A62,単価表!$A$5:$A$1162,単価表!$G$5:$G$1162)) -> 2250 | H62: 270
A63: 41002 | C63: =IF(ISBLANK($A63),"",LOOKUP($A63,単価表!$A$5:$A$1162,単価表!$B$5:$B$1162)) -> 自社ﾀﾞﾝﾌﾟ | D63: =IF(ISBLANK($A63),"",IF(LOOKUP($A63, 単価表!$A$5:$A$1162, 単価表!$C$5:$C$1162)=0,"",LOOKUP($A63, 単価表!$A$5:$A$1162, 単価表!$C$5:$C$1162))) ->  | E63: =+E59 -> 0.12 | F63: 台 | G63: =IF(ISBLANK($A63),"",LOOKUP($A63,単価表!$A$5:$A$1162,単価表!$G$5:$G$1162)) -> 9000 | H63: 1080
A64: 40000 | C64: =IF(ISBLANK($A64),"",LOOKUP($A64,単価表!$A$5:$A$1162,単価表!$B$5:$B$1162)) -> 油脂燃料 | D64: =IF(ISBLANK($A64),"",IF(LOOKUP($A64, 単価表!$A$5:$A$1162, 単価表!$C$5:$C$1162)=0,"",LOOKUP($A64, 単価表!$A$5:$A$1162, 単価表!$C$5:$C$1162))) ->  | E64: =SUM(E62:E63) -> 0.24 | F64: 台日 | G64: =IF(ISBLANK($A64),"",LOOKUP($A64,単価表!$A$5:$A$1162,単価表!$G$5:$G$1162)) -> 1500 | H64: 360
A65: 20100 | C65: =IF(ISBLANK($A65),"",LOOKUP($A65,単価表!$A$5:$A$1162,単価表!$B$5:$B$1162)) -> 作業員 昼間 | D65: 3 | E65: =+E59*D65 -> 0.36 | F65: 人 | G65: =IF(ISBLANK($A65),"",LOOKUP($A65,単価表!$A$5:$A$1162,単価表!$G$5:$G$1162)) -> 40500 | H65: 14580
C66: 生コン打設 | D66: =SUM(D60:D61)*0.2*0.1654*1.06 -> 0.3857128 | E66: =CEILING(E58*D66,0.5) -> 4 | F66: ｍ3 | G66: =IF(E66=0,"",ROUND(SUM(H67:H73)/E66,0)) -> 57994
A67: 80000 | C67: =IF(ISBLANK($A67),"",LOOKUP($A67,単価表!$A$5:$A$1162,単価表!$B$5:$B$1162)) -> 所要日数 | D67: 13.5 | E67: =CEILING(E66/D67,0.01) -> 0.3 | F67: 日 | G67: =IF(ISBLANK($A67),"",LOOKUP($A67,単価表!$A$5:$A$1162,単価表!$G$5:$G$1162)) -> 0 | H67: =IF(ISBLANK($A67),"",ROUND(E67*G67,0)) -> 0
A68: 10503 | C68: =IF(ISBLANK($A68),"",LOOKUP($A68,単価表!$A$5:$A$1162,単価表!$B$5:$B$1162)) -> 生ｺﾝｸﾘｰﾄ 21-8 小型 | D68: 1 | E68: =CEILING(E66*D68,0.5) -> 4 | F68: ｍ3 | G68: =IF(ISBLANK($A68),"",LOOKUP($A68,単価表!$A$5:$A$1162,単価表!$G$5:$G$1162)) -> 30150 | H68: 120600
A69: 40049 | C69: =IF(ISBLANK($A69),"",LOOKUP($A69,単価表!$A$5:$A$1162,単価表!$B$5:$B$1162)) -> ﾎﾟﾝﾌﾟ車 | D69: 15 | E69: =CEILING(E66/D69,1) -> 1 | F69: 台 | G69: =IF(ISBLANK($A69),"",LOOKUP($A69,単価表!$A$5:$A$1162,単価表!$G$5:$G$1162)) -> 67500 | H69: 67500
A70: 40023 | C70: =IF(ISBLANK($A70),"",LOOKUP($A70,単価表!$A$5:$A$1162,単価表!$B$5:$B$1162)) -> 諸機械 発電器,ｅｔｃ | D70: =IF(ISBLANK($A70),"",IF(LOOKUP($A70, 単価表!$A$5:$A$1162, 単価表!$C$5:$C$1162)=0,"",LOOKUP($A70, 単価表!$A$5:$A$1162, 単価表!$C$5:$C$1162))) ->  | E70: =+E67 -> 0.3 | F70: 台 | G70: =IF(ISBLANK($A70),"",LOOKUP($A70,単価表!$A$5:$A$1162,単価表!$G$5:$G$1162)) -> 2250 | H70: 675
A71: 41002 | C71: =IF(ISBLANK($A71),"",LOOKUP($A71,単価表!$A$5:$A$1162,単価表!$B$5:$B$1162)) -> 自社ﾀﾞﾝﾌﾟ | D71: =IF(ISBLANK($A71),"",IF(LOOKUP($A71, 単価表!$A$5:$A$1162, 単価表!$C$5:$C$1162)=0,"",LOOKUP($A71, 単価表!$A$5:$A$1162, 単価表!$C$5:$C$1162))) ->  | E71: =+E67*2 -> 0.6 | F71: 台 | G71: =IF(ISBLANK($A71),"",LOOKUP($A71,単価表!$A$5:$A$1162,単価表!$G$5:$G$1162)) -> 9000 | H71: 5400
A72: 40000 | C72: =IF(ISBLANK($A72),"",LOOKUP($A72,単価表!$A$5:$A$1162,単価表!$B$5:$B$1162)) -> 油脂燃料 | D72: =IF(ISBLANK($A72),"",IF(LOOKUP($A72, 単価表!$A$5:$A$1162, 単価表!$C$5:$C$1162)=0,"",LOOKUP($A72, 単価表!$A$5:$A$1162, 単価表!$C$5:$C$1162))) ->  | E72: =SUM(E70:E71) -> 0.9 | F72: 台日 | G72: =IF(ISBLANK($A72),"",LOOKUP($A72,単価表!$A$5:$A$1162,単価表!$G$5:$G$1162)) -> 1500 | H72: 1350
A73: 20100 | C73: =IF(ISBLANK($A73),"",LOOKUP($A73,単価表!$A$5:$A$1162,単価表!$B$5:$B$1162)) -> 作業員 昼間 | D73: 3 | E73: =+E67*D73 -> 0.9 | F73: 人 | G73: =IF(ISBLANK($A73),"",LOOKUP($A73,単価表!$A$5:$A$1162,単価表!$G$5:$G$1162)) -> 40500 | H73: 36450
C74: 裏込め工 | D74: W=300 FC=50 RC=1650 | E74: =+E33 -> 10 | F74: ｍ | G74: =IF(E74=0,"",ROUND(SUM(H75:H87)/E74,0)) -> 16537
A75: 80000 | C75: =IF(ISBLANK($A75),"",LOOKUP($A75,単価表!$A$5:$A$1162,単価表!$B$5:$B$1162)) -> 所要日数 | D75: 20 | E75: =CEILING(E74/D75,0.01) -> 0.5 | F75: 日 | G75: =IF(ISBLANK($A75),"",LOOKUP($A75,単価表!$A$5:$A$1162,単価表!$G$5:$G$1162)) -> 0 | H75: =IF(ISBLANK($A75),"",ROUND(E75*G75,0)) -> 0
A76: 10514 | C76: =IF(ISBLANK($A76),"",LOOKUP($A76,単価表!$A$5:$A$1162,単価表!$B$5:$B$1162)) -> 型枠 Ａ | D76: 0.05 | E76: =CEILING(E74*D76,0.01) -> 0.5 | F76: ｍ2 | G76: =IF(ISBLANK($A76),"",LOOKUP($A76,単価表!$A$5:$A$1162,単価表!$G$5:$G$1162)) -> 1500 | H76: 750
A77: 10507 | C77: =IF(ISBLANK($A77),"",LOOKUP($A77,単価表!$A$5:$A$1162,単価表!$B$5:$B$1162)) -> 生ｺﾝｸﾘｰﾄ 擁壁 小型 | D77: =0.3*0.05*1.04 -> 0.0156 | E77: =CEILING(E74*D77,0.5) -> 0.5 | F77: ｍ3 | G77: =IF(ISBLANK($A77),"",LOOKUP($A77,単価表!$A$5:$A$1162,単価表!$G$5:$G$1162)) -> 30900 | H77: 15450
A78: 10000 | C78: 透水マット | D78: =1.65*1.2 -> 1.98 | E78: =CEILING(E74*D78,5) -> 20 | F78: ｍ2 | G78: 2920 | H78: 58400
A79: 10200 | C79: =IF(ISBLANK($A79),"",LOOKUP($A79,単価表!$A$5:$A$1162,単価表!$B$5:$B$1162)) -> RC-40(ﾌﾟﾗﾝﾄ) 大型 | D79: =0.3*1.65*1.28 -> 0.6336 | E79: =CEILING(E74*D79,0.01) -> 6.34 | F79: ｔ | G79: =IF(ISBLANK($A79),"",LOOKUP($A79,単価表!$A$5:$A$1162,単価表!$G$5:$G$1162)) -> 2250 | H79: 14265
A80: 99999 | C80: 諸雑費 | D80: ボイド等 | E80: =+E74 -> 10 | F80: ｍ | G80: 300 | H80: 3000
A81: 40012 | C81: =IF(ISBLANK($A81),"",LOOKUP($A81,単価表!$A$5:$A$1162,単価表!$B$5:$B$1162)) -> 小旋回0.18ﾊﾞｯｸﾎｳ | D81: =IF(ISBLANK($A81),"",IF(LOOKUP($A81,単価表!$A$5:$A$1162,単価表!$C$5:$C$1162)=0,"",LOOKUP($A81,単価表!$A$5:$A$1162,単価表!$C$5:$C$1162))) ->  | E81: =+E75 -> 0.5 | F81: 台 | G81: =IF(ISBLANK($A81),"",LOOKUP($A81,単価表!$A$5:$A$1162,単価表!$G$5:$G$1162)) -> 11250 | H81: 5625
A82: 41002 | C82: =IF(ISBLANK($A82),"",LOOKUP($A82,単価表!$A$5:$A$1162,単価表!$B$5:$B$1162)) -> 自社ﾀﾞﾝﾌﾟ | D82: =IF(ISBLANK($A82),"",IF(LOOKUP($A82,単価表!$A$5:$A$1162,単価表!$C$5:$C$1162)=0,"",LOOKUP($A82,単価表!$A$5:$A$1162,単価表!$C$5:$C$1162))) ->  | E82: =+E75 -> 0.5 | F82: 台 | G82: =IF(ISBLANK($A82),"",LOOKUP($A82,単価表!$A$5:$A$1162,単価表!$G$5:$G$1162)) -> 9000 | H82: 4500
A83: 40001 | C83: =IF(ISBLANK($A83),"",LOOKUP($A83,単価表!$A$5:$A$1162,単価表!$B$5:$B$1162)) -> ﾗﾝﾏｰ･ﾌﾟﾚｰﾄ | E83: =+E75 -> 0.5 | F83: 台 | G83: =IF(ISBLANK($A83),"",LOOKUP($A83,単価表!$A$5:$A$1162,単価表!$G$5:$G$1162)) -> 765 | H83: 383
A84: 40000 | C84: =IF(ISBLANK($A84),"",LOOKUP($A84,単価表!$A$5:$A$1162,単価表!$B$5:$B$1162)) -> 油脂燃料 | E84: =SUM(E81:E83) -> 1.5 | F84: 台日 | G84: =IF(ISBLANK($A84),"",LOOKUP($A84,単価表!$A$5:$A$1162,単価表!$G$5:$G$1162)) -> 1500 | H84: 2250
A85: 20100 | C85: =IF(ISBLANK($A85),"",LOOKUP($A85,単価表!$A$5:$A$1162,単価表!$B$5:$B$1162)) -> 作業員 昼間 | D85: 3 | E85: =+E75*D85 -> 1.5 | F85: 人 | G85: =IF(ISBLANK($A85),"",LOOKUP($A85,単価表!$A$5:$A$1162,単価表!$G$5:$G$1162)) -> 40500 | H85: 60750
A88: 1 | B88: 石積擁壁 | C88: 石積擁壁工 | D88: H=2.00ｍ 65゜ 基礎共 | E88: 50 | F88: ｍ | G88: =ROUND(H88/E88,0) -> 71923 | H88: =SUM(H89:INDEX(H89:H$155,IFERROR(MATCH(1,$A89:$A$155,0),ROWS($A89:$A$155)+1)-1)) -> 3596166
C89: 基礎砕石工 | D89: H=1.0～3.0 W700 RC:t=150 | E89: =+E88*0.7 -> 35 | F89: ｍ2 | G89: =IF(E89=0,"",ROUND(SUM(H90:H96)/E89,0)) -> 2608
A90: 80000 | C90: =IF(ISBLANK($A90),"",LOOKUP($A90,単価表!$A$5:$A$1162,単価表!$B$5:$B$1162)) -> 所要日数 | D90: 75.6 | E90: =CEILING(E89/D90,0.01) -> 0.47 | F90: 日 | G90: =IF(ISBLANK($A90),"",LOOKUP($A90,単価表!$A$5:$A$1162,単価表!$G$5:$G$1162)) -> 0 | H90: =IF(ISBLANK($A90),"",ROUND(E90*G90,0)) -> 0
A91: 10200 | C91: =IF(ISBLANK($A91),"",LOOKUP($A91,単価表!$A$5:$A$1162,単価表!$B$5:$B$1162)) -> RC-40(ﾌﾟﾗﾝﾄ) 大型 | D91: =0.7*0.15 -> 0.105 | E91: =CEILING(E88*D91*1.28,0.01) -> 6.72 | F91: ｔ | G91: =IF(ISBLANK($A91),"",LOOKUP($A91,単価表!$A$5:$A$1162,単価表!$G$5:$G$1162)) -> 2250 | H91: 15120
A92: 40013 | C92: =IF(ISBLANK($A92),"",LOOKUP($A92,単価表!$A$5:$A$1162,単価表!$B$5:$B$1162)) -> 小旋回0.25ﾊﾞｯｸﾎｳ | D92: =IF(ISBLANK($A92),"",IF(LOOKUP($A92,単価表!$A$5:$A$1162,単価表!$C$5:$C$1162)=0,"",LOOKUP($A92,単価表!$A$5:$A$1162,単価表!$C$5:$C$1162))) ->  | E92: =+E90 -> 0.47 | F92: 台 | G92: =IF(ISBLANK($A92),"",LOOKUP($A92,単価表!$A$5:$A$1162,単価表!$G$5:$G$1162)) -> 13500 | H92: 6345
A93: 40001 | C93: =IF(ISBLANK($A93),"",LOOKUP($A93,単価表!$A$5:$A$1162,単価表!$B$5:$B$1162)) -> ﾗﾝﾏｰ･ﾌﾟﾚｰﾄ | D93: =IF(ISBLANK($A93),"",IF(LOOKUP($A93,単価表!$A$5:$A$1162,単価表!$C$5:$C$1162)=0,"",LOOKUP($A93,単価表!$A$5:$A$1162,単価表!$C$5:$C$1162))) ->  | E93: =+E90*2 -> 0.94 | F93: 台 | G93: =IF(ISBLANK($A93),"",LOOKUP($A93,単価表!$A$5:$A$1162,単価表!$G$5:$G$1162)) -> 765 | H93: 719
A94: 41002 | C94: =IF(ISBLANK($A94),"",LOOKUP($A94,単価表!$A$5:$A$1162,単価表!$B$5:$B$1162)) -> 自社ﾀﾞﾝﾌﾟ | D94: =IF(ISBLANK($A94),"",IF(LOOKUP($A94,単価表!$A$5:$A$1162,単価表!$C$5:$C$1162)=0,"",LOOKUP($A94,単価表!$A$5:$A$1162,単価表!$C$5:$C$1162))) ->  | E94: =+E90*2 -> 0.94 | F94: 台 | G94: =IF(ISBLANK($A94),"",LOOKUP($A94,単価表!$A$5:$A$1162,単価表!$G$5:$G$1162)) -> 9000 | H94: 8460
A95: 40000 | C95: =IF(ISBLANK($A95),"",LOOKUP($A95,単価表!$A$5:$A$1162,単価表!$B$5:$B$1162)) -> 油脂燃料 | E95: =SUM(E92:E94) -> 2.35 | F95: 台日 | G95: =IF(ISBLANK($A95),"",LOOKUP($A95,単価表!$A$5:$A$1162,単価表!$G$5:$G$1162)) -> 1500 | H95: 3525
A96: 20100 | C96: =IF(ISBLANK($A96),"",LOOKUP($A96,単価表!$A$5:$A$1162,単価表!$B$5:$B$1162)) -> 作業員 昼間 | D96: 3 | E96: =E90*D96 -> 1.41 | F96: 人 | G96: =IF(ISBLANK($A96),"",LOOKUP($A96,単価表!$A$5:$A$1162,単価表!$G$5:$G$1162)) -> 40500 | H96: 57105
C97: 小型構造物（基礎躯体） | D97: FC H=350/200 W600 | E97: =+E99 -> 9.36 | F97: ｍ3 | G97: =IF(E97=0,"",ROUND(SUM(H98:H105)/E97,0)) -> 58131
A98: 80000 | C98: =IF(ISBLANK($A98),"",LOOKUP($A98,単価表!$A$5:$A$1162,単価表!$B$5:$B$1162)) -> 所要日数 | D98: 15 | E98: =CEILING(E97/D98,0.01) -> 0.63 | F98: 日 | G98: =IF(ISBLANK($A98),"",LOOKUP($A98,単価表!$A$5:$A$1162,単価表!$G$5:$G$1162)) -> 0 | H98: =IF(ISBLANK($A98),"",ROUND(E98*G98,0)) -> 0
A99: 10500 | C99: =IF(ISBLANK($A99),"",LOOKUP($A99,単価表!$A$5:$A$1162,単価表!$B$5:$B$1162)) -> 生ｺﾝｸﾘｰﾄ 18-8 大型 | D99: =(0.35+0.2)/2*0.4+0.35*0.2 -> 0.18 | E99: =CEILING(E88*D99*1.04,0.01) -> 9.36 | F99: ｍ3 | G99: =IF(ISBLANK($A99),"",LOOKUP($A99,単価表!$A$5:$A$1162,単価表!$G$5:$G$1162)) -> 27900 | H99: 261144
A100: 10516 | C100: =IF(ISBLANK($A100),"",LOOKUP($A100,単価表!$A$5:$A$1162,単価表!$B$5:$B$1162)) -> 型枠小型構造物 | D100: =IF(ISBLANK($A100),"",IF(LOOKUP($A100,単価表!$A$5:$A$1162,単価表!$C$5:$C$1162)=0,"",LOOKUP($A100,単価表!$A$5:$A$1162,単価表!$C$5:$C$1162))) ->  | E100: =+E88*(0.35+0.2) -> 27.5 | F100: ｍ2 | G100: =IF(ISBLANK($A100),"",LOOKUP($A100,単価表!$A$5:$A$1162,単価表!$G$5:$G$1162)) -> 6750 | H100: 185625
A101: 40013 | C101: =IF(ISBLANK($A101),"",LOOKUP($A101,単価表!$A$5:$A$1162,単価表!$B$5:$B$1162)) -> 小旋回0.25ﾊﾞｯｸﾎｳ | D101: =IF(ISBLANK($A101),"",IF(LOOKUP($A101,単価表!$A$5:$A$1162,単価表!$C$5:$C$1162)=0,"",LOOKUP($A101,単価表!$A$5:$A$1162,単価表!$C$5:$C$1162))) ->  | E101: =+E98 -> 0.63 | F101: 台 | G101: =IF(ISBLANK($A101),"",LOOKUP($A101,単価表!$A$5:$A$1162,単価表!$G$5:$G$1162)) -> 13500 | H101: 8505
A102: 40023 | C102: =IF(ISBLANK($A102),"",LOOKUP($A102,単価表!$A$5:$A$1162,単価表!$B$5:$B$1162)) -> 諸機械 発電器,ｅｔｃ | D102: =IF(ISBLANK($A102),"",IF(LOOKUP($A102,単価表!$A$5:$A$1162,単価表!$C$5:$C$1162)=0,"",LOOKUP($A102,単価表!$A$5:$A$1162,単価表!$C$5:$C$1162))) ->  | E102: =+E98*2 -> 1.26 | F102: 台 | G102: =IF(ISBLANK($A102),"",LOOKUP($A102,単価表!$A$5:$A$1162,単価表!$G$5:$G$1162)) -> 2250 | H102: 2835
A103: 41002 | C103: =IF(ISBLANK($A103),"",LOOKUP($A103,単価表!$A$5:$A$1162,単価表!$B$5:$B$1162)) -> 自社ﾀﾞﾝﾌﾟ | D103: =IF(ISBLANK($A103),"",IF(LOOKUP($A103,単価表!$A$5:$A$1162,単価表!$C$5:$C$1162)=0,"",LOOKUP($A103,単価表!$A$5:$A$1162,単価表!$C$5:$C$1162))) ->  | E103: =+E98 -> 0.63 | F103: 台 | G103: =IF(ISBLANK($A103),"",LOOKUP($A103,単価表!$A$5:$A$1162,単価表!$G$5:$G$1162)) -> 9000 | H103: 5670
A104: 40000 | C104: =IF(ISBLANK($A104),"",LOOKUP($A104,単価表!$A$5:$A$1162,単価表!$B$5:$B$1162)) -> 油脂燃料 | E104: =SUM(E101:E103) -> 2.52 | F104: 台日 | G104: =IF(ISBLANK($A104),"",LOOKUP($A104,単価表!$A$5:$A$1162,単価表!$G$5:$G$1162)) -> 1500 | H104: 3780
A105: 20100 | C105: =IF(ISBLANK($A105),"",LOOKUP($A105,単価表!$A$5:$A$1162,単価表!$B$5:$B$1162)) -> 作業員 昼間 | D105: 3 | E105: =E98*D105 -> 1.89 | F105: 人 | G105: =IF(ISBLANK($A105),"",LOOKUP($A105,単価表!$A$5:$A$1162,単価表!$G$5:$G$1162)) -> 40500 | H105: 76545
C106: 石積工 | E106: =+E88*2 -> 100 | F106: ｍ2 | G106: =IF(E106=0,"",ROUND(SUM(H107:H121)/E106,0)) -> 29608
A107: 80000 | C107: =IF(ISBLANK($A107),"",LOOKUP($A107,単価表!$A$5:$A$1162,単価表!$B$5:$B$1162)) -> 所要日数 | D107: 20 | E107: =CEILING(E106/D107,0.01) -> 5 | F107: 日 | G107: =IF(ISBLANK($A107),"",LOOKUP($A107,単価表!$A$5:$A$1162,単価表!$G$5:$G$1162)) -> 0 | H107: =IF(ISBLANK($A107),"",ROUND(E107*G107,0)) -> 0
A108: 99999 | C108: 間知ブロック | E108: =CEILING(E106*7.4*1.01,0.01) -> 747.4 | F108: 個 | G108: 700 | H108: 523180
A109: 10500 | C109: =IF(ISBLANK($A109),"",LOOKUP($A109,単価表!$A$5:$A$1162,単価表!$B$5:$B$1162)) -> 生ｺﾝｸﾘｰﾄ 18-8 大型 | E109: =CEILING(E106*0.303*1.04,0.01) -> 31.52 | F109: ｍ3 | G109: =IF(ISBLANK($A109),"",LOOKUP($A109,単価表!$A$5:$A$1162,単価表!$G$5:$G$1162)) -> 27900 | H109: 879408
A110: 10200 | C110: =IF(ISBLANK($A110),"",LOOKUP($A110,単価表!$A$5:$A$1162,単価表!$B$5:$B$1162)) -> RC-40(ﾌﾟﾗﾝﾄ) 大型 | E110: =CEILING(E106*0.3*1.28,0.01) -> 38.4 | F110: ｔ | G110: =IF(ISBLANK($A110),"",LOOKUP($A110,単価表!$A$5:$A$1162,単価表!$G$5:$G$1162)) -> 2250 | H110: 86400
A111: 99999 | C111: 水抜きﾊﾟｲﾌﾟ | D111: φ75 | E111: =+E106*0.2 -> 20 | F111: ｍ | G111: 645 | H111: 12900
A112: 99999 | C112: 足場組立 | E112: =CEILING(E106*1,0.1) -> 100 | F112: 掛ｍ2 | G112: 1200 | H112: 120000
A113: 40056 | C113: =IF(ISBLANK($A113),"",LOOKUP($A113,単価表!$A$5:$A$1162,単価表!$B$5:$B$1162)) -> ﾗﾌﾀｰｸﾚｰﾝ 13ｔ | E113: =+E106*0.04 -> 4 | F113: 台 | G113: =IF(ISBLANK($A113),"",LOOKUP($A113,単価表!$A$5:$A$1162,単価表!$G$5:$G$1162)) -> 90000 | H113: 360000
A114: 40013 | C114: =IF(ISBLANK($A114),"",LOOKUP($A114,単価表!$A$5:$A$1162,単価表!$B$5:$B$1162)) -> 小旋回0.25ﾊﾞｯｸﾎｳ | E114: =+E107 -> 5 | F114: 台 | G114: =IF(ISBLANK($A114),"",LOOKUP($A114,単価表!$A$5:$A$1162,単価表!$G$5:$G$1162)) -> 13500 | H114: 67500
A115: 40023 | C115: =IF(ISBLANK($A115),"",LOOKUP($A115,単価表!$A$5:$A$1162,単価表!$B$5:$B$1162)) -> 諸機械 発電器,ｅｔｃ | E115: =+E107 -> 5 | F115: 台 | G115: =IF(ISBLANK($A115),"",LOOKUP($A115,単価表!$A$5:$A$1162,単価表!$G$5:$G$1162)) -> 2250 | H115: 11250
A116: 40001 | C116: =IF(ISBLANK($A116),"",LOOKUP($A116,単価表!$A$5:$A$1162,単価表!$B$5:$B$1162)) -> ﾗﾝﾏｰ･ﾌﾟﾚｰﾄ | E116: =+E107*2 -> 10 | F116: 台 | G116: =IF(ISBLANK($A116),"",LOOKUP($A116,単価表!$A$5:$A$1162,単価表!$G$5:$G$1162)) -> 765 | H116: 7650
A117: 40000 | C117: =IF(ISBLANK($A117),"",LOOKUP($A117,単価表!$A$5:$A$1162,単価表!$B$5:$B$1162)) -> 油脂燃料 | E117: =SUM(E114:E116) -> 20 | F117: 台日 | G117: =IF(ISBLANK($A117),"",LOOKUP($A117,単価表!$A$5:$A$1162,単価表!$G$5:$G$1162)) -> 1500 | H117: 30000
A118: 99999 | C118: 石積工 | D118: 2 | E118: =CEILING(E107*D118,0.1) -> 10 | F118: 人 | G118: 25500 | H118: 255000
A119: 20100 | C119: =IF(ISBLANK($A119),"",LOOKUP($A119,単価表!$A$5:$A$1162,単価表!$B$5:$B$1162)) -> 作業員 昼間 | D119: 3 | E119: =+E107*D119 -> 15 | F119: 人 | G119: =IF(ISBLANK($A119),"",LOOKUP($A119,単価表!$A$5:$A$1162,単価表!$G$5:$G$1162)) -> 40500 | H119: 607500
A122: 1 | B122: プレキャスト擁壁 | C122: プレキャスト擁壁 | D122: 地上高さ H=2.0ｍ | E122: 50 | F122: ｍ | G122: =ROUND(H122/E122,0) -> 69715 | H122: =SUM(H123:INDEX(H123:H$155,IFERROR(MATCH(1,$A123:$A$155,0),ROWS($A123:$A$155)+1)-1)) -> 3485734
C123: 基礎工 | D123: W=1850 RC:t=150 FC:t=100 | E123: =+E122 -> 50 | F123: ｍ | G123: =IF(E123=0,"",ROUND(SUM(H124:H133)/E123,0)) -> 9000
A124: 80000 | C124: =IF(ISBLANK($A124),"",LOOKUP($A124,単価表!$A$5:$A$1162,単価表!$B$5:$B$1162)) -> 所要日数 | D124: 60 | E124: =CEILING(E123/D124,0.01) -> 0.84 | F124: 日 | G124: =IF(ISBLANK($A124),"",LOOKUP($A124,単価表!$A$5:$A$1162,単価表!$G$5:$G$1162)) -> 0 | H124: =IF(ISBLANK($A124),"",ROUND(E124*G124,0)) -> 0
A125: 10200 | C125: =IF(ISBLANK($A125),"",LOOKUP($A125,単価表!$A$5:$A$1162,単価表!$B$5:$B$1162)) -> RC-40(ﾌﾟﾗﾝﾄ) 大型 | D125: =1.85*0.15*1.28 -> 0.3552 | E125: =CEILING(E123*D125,0.01) -> 17.76 | F125: ｔ | G125: =IF(ISBLANK($A125),"",LOOKUP($A125,単価表!$A$5:$A$1162,単価表!$G$5:$G$1162)) -> 2250 | H125: 39960
A126: 10514 | C126: =IF(ISBLANK($A126),"",LOOKUP($A126,単価表!$A$5:$A$1162,単価表!$B$5:$B$1162)) -> 型枠 Ａ | D126: =0.1*2 -> 0.2 | E126: =CEILING(E123*D126,0.01) -> 10 | F126: ｍ2 | G126: =IF(ISBLANK($A126),"",LOOKUP($A126,単価表!$A$5:$A$1162,単価表!$G$5:$G$1162)) -> 1500 | H126: 15000
A127: 10500 | C127: =IF(ISBLANK($A127),"",LOOKUP($A127,単価表!$A$5:$A$1162,単価表!$B$5:$B$1162)) -> 生ｺﾝｸﾘｰﾄ 18-8 大型 | D127: =1.85*0.1*1.04 -> 0.1924 | E127: =CEILING(E123*D127,0.01) -> 9.62 | F127: ｍ3 | G127: =IF(ISBLANK($A127),"",LOOKUP($A127,単価表!$A$5:$A$1162,単価表!$G$5:$G$1162)) -> 27900 | H127: 268398
A128: 40012 | C128: =IF(ISBLANK($A128),"",LOOKUP($A128,単価表!$A$5:$A$1162,単価表!$B$5:$B$1162)) -> 小旋回0.18ﾊﾞｯｸﾎｳ | D128: =IF(ISBLANK($A128),"",IF(LOOKUP($A128,単価表!$A$5:$A$1162,単価表!$C$5:$C$1162)=0,"",LOOKUP($A128,単価表!$A$5:$A$1162,単価表!$C$5:$C$1162))) ->  | E128: =+E124 -> 0.84 | F128: 台 | G128: =IF(ISBLANK($A128),"",LOOKUP($A128,単価表!$A$5:$A$1162,単価表!$G$5:$G$1162)) -> 11250 | H128: 9450
A129: 41002 | C129: =IF(ISBLANK($A129),"",LOOKUP($A129,単価表!$A$5:$A$1162,単価表!$B$5:$B$1162)) -> 自社ﾀﾞﾝﾌﾟ | D129: =IF(ISBLANK($A129),"",IF(LOOKUP($A129,単価表!$A$5:$A$1162,単価表!$C$5:$C$1162)=0,"",LOOKUP($A129,単価表!$A$5:$A$1162,単価表!$C$5:$C$1162))) ->  | E129: =+E124 -> 0.84 | F129: 台 | G129: =IF(ISBLANK($A129),"",LOOKUP($A129,単価表!$A$5:$A$1162,単価表!$G$5:$G$1162)) -> 9000 | H129: 7560
A130: 40023 | C130: =IF(ISBLANK($A130),"",LOOKUP($A130,単価表!$A$5:$A$1162,単価表!$B$5:$B$1162)) -> 諸機械 発電器,ｅｔｃ | E130: =+E124 -> 0.84 | F130: 台 | G130: =IF(ISBLANK($A130),"",LOOKUP($A130,単価表!$A$5:$A$1162,単価表!$G$5:$G$1162)) -> 2250 | H130: 1890
A131: 40001 | C131: =IF(ISBLANK($A131),"",LOOKUP($A131,単価表!$A$5:$A$1162,単価表!$B$5:$B$1162)) -> ﾗﾝﾏｰ･ﾌﾟﾚｰﾄ | E131: =+E124 -> 0.84 | F131: 台 | G131: =IF(ISBLANK($A131),"",LOOKUP($A131,単価表!$A$5:$A$1162,単価表!$G$5:$G$1162)) -> 765 | H131: 643
A132: 40000 | C132: =IF(ISBLANK($A132),"",LOOKUP($A132,単価表!$A$5:$A$1162,単価表!$B$5:$B$1162)) -> 油脂燃料 | E132: =SUM(E128:E131) -> 3.36 | F132: 台日 | G132: =IF(ISBLANK($A132),"",LOOKUP($A132,単価表!$A$5:$A$1162,単価表!$G$5:$G$1162)) -> 1500 | H132: 5040
A133: 20100 | C133: =IF(ISBLANK($A133),"",LOOKUP($A133,単価表!$A$5:$A$1162,単価表!$B$5:$B$1162)) -> 作業員 昼間 | D133: 3 | E133: =+E124*D133 -> 2.52 | F133: 人 | G133: =IF(ISBLANK($A133),"",LOOKUP($A133,単価表!$A$5:$A$1162,単価表!$G$5:$G$1162)) -> 40500 | H133: 102060
C134: プレキャスト擁壁据付 | E134: =+E122 -> 50 | F134: ｍ | G134: =IF(E134=0,"",ROUND(SUM(H135:H144)/E134,0)) -> 55925
A135: 80000 | C135: =IF(ISBLANK($A135),"",LOOKUP($A135,単価表!$A$5:$A$1162,単価表!$B$5:$B$1162)) -> 所要日数 | D135: 40 | E135: =CEILING(E134/D135,0.01) -> 1.25 | F135: 日 | G135: =IF(ISBLANK($A135),"",LOOKUP($A135,単価表!$A$5:$A$1162,単価表!$G$5:$G$1162)) -> 0 | H135: =IF(ISBLANK($A135),"",ROUND(E135*G135,0)) -> 0
A136: 10520 | C136: =IF(ISBLANK($A136),"",LOOKUP($A136,単価表!$A$5:$A$1162,単価表!$B$5:$B$1162)) -> ﾓﾙﾀﾙ | D136: =1.1*0.03*1.4 -> 0.0462 | E136: =CEILING(E134*D136,0.01) -> 2.31 | F136: ｍ3 | G136: =IF(ISBLANK($A136),"",LOOKUP($A136,単価表!$A$5:$A$1162,単価表!$G$5:$G$1162)) -> 37500 | H136: 86625
A137: 99999 | C137: ｳｫｰﾙ | D137: H=2000 | E137: =+E122/2 -> 25 | F137: 個 | G137: 95860 | H137: 2396500
A138: 99999 | C138: 諸雑費 | E138: =+E134 -> 50 | F138: ｍ | G138: 300 | H138: 15000
A139: 40056 | C139: =IF(ISBLANK($A139),"",LOOKUP($A139,単価表!$A$5:$A$1162,単価表!$B$5:$B$1162)) -> ﾗﾌﾀｰｸﾚｰﾝ 13ｔ | D139: =IF(ISBLANK($A139),"",IF(LOOKUP($A139,単価表!$A$5:$A$1162,単価表!$C$5:$C$1162)=0,"",LOOKUP($A139,単価表!$A$5:$A$1162,単価表!$C$5:$C$1162))) ->  | E139: =+E135 -> 1.25 | F139: 台 | G139: =IF(ISBLANK($A139),"",LOOKUP($A139,単価表!$A$5:$A$1162,単価表!$G$5:$G$1162)) -> 90000 | H139: 112500
A140: 40012 | C140: =IF(ISBLANK($A140),"",LOOKUP($A140,単価表!$A$5:$A$1162,単価表!$B$5:$B$1162)) -> 小旋回0.18ﾊﾞｯｸﾎｳ | D140: =IF(ISBLANK($A140),"",IF(LOOKUP($A140,単価表!$A$5:$A$1162,単価表!$C$5:$C$1162)=0,"",LOOKUP($A140,単価表!$A$5:$A$1162,単価表!$C$5:$C$1162))) ->  | E140: =+E135 -> 1.25 | F140: 台 | G140: =IF(ISBLANK($A140),"",LOOKUP($A140,単価表!$A$5:$A$1162,単価表!$G$5:$G$1162)) -> 11250 | H140: 14063
A141: 41002 | C141: =IF(ISBLANK($A141),"",LOOKUP($A141,単価表!$A$5:$A$1162,単価表!$B$5:$B$1162)) -> 自社ﾀﾞﾝﾌﾟ | D141: =IF(ISBLANK($A141),"",IF(LOOKUP($A141,単価表!$A$5:$A$1162,単価表!$C$5:$C$1162)=0,"",LOOKUP($A141,単価表!$A$5:$A$1162,単価表!$C$5:$C$1162))) ->  | E141: =+E135 -> 1.25 | F141: 台 | G141: =IF(ISBLANK($A141),"",LOOKUP($A141,単価表!$A$5:$A$1162,単価表!$G$5:$G$1162)) -> 9000 | H141: 11250
A142: 40023 | C142: =IF(ISBLANK($A142),"",LOOKUP($A142,単価表!$A$5:$A$1162,単価表!$B$5:$B$1162)) -> 諸機械 発電器,ｅｔｃ | E142: =+E135 -> 1.25 | F142: 台 | G142: =IF(ISBLANK($A142),"",LOOKUP($A142,単価表!$A$5:$A$1162,単価表!$G$5:$G$1162)) -> 2250 | H142: 2813
A143: 40000 | C143: =IF(ISBLANK($A143),"",LOOKUP($A143,単価表!$A$5:$A$1162,単価表!$B$5:$B$1162)) -> 油脂燃料 | E143: =SUM(E140:E142) -> 3.75 | F143: 台日 | G143: =IF(ISBLANK($A143),"",LOOKUP($A143,単価表!$A$5:$A$1162,単価表!$G$5:$G$1162)) -> 1500 | H143: 5625
A144: 20100 | C144: =IF(ISBLANK($A144),"",LOOKUP($A144,単価表!$A$5:$A$1162,単価表!$B$5:$B$1162)) -> 作業員 昼間 | D144: 3 | E144: =+E135*D144 -> 3.75 | F144: 人 | G144: =IF(ISBLANK($A144),"",LOOKUP($A144,単価表!$A$5:$A$1162,単価表!$G$5:$G$1162)) -> 40500 | H144: 151875
C145: 裏込砕石工 | D145: W350 FC:t=100 W300 RC:t=1150 | E145: =+E122 -> 50 | F145: ｍ | G145: =IF(E145=0,"",ROUND(SUM(H146:H155)/E145,0)) -> 4790
A146: 80000 | C146: =IF(ISBLANK($A146),"",LOOKUP($A146,単価表!$A$5:$A$1162,単価表!$B$5:$B$1162)) -> 所要日数 | D146: 60 | E146: =CEILING(E145/D146,0.01) -> 0.84 | F146: 日 | G146: =IF(ISBLANK($A146),"",LOOKUP($A146,単価表!$A$5:$A$1162,単価表!$G$5:$G$1162)) -> 0 | H146: =IF(ISBLANK($A146),"",ROUND(E146*G146,0)) -> 0
A147: 10514 | C147: =IF(ISBLANK($A147),"",LOOKUP($A147,単価表!$A$5:$A$1162,単価表!$B$5:$B$1162)) -> 型枠 Ａ | D147: =0.05 -> 0.05 | E147: =CEILING(E145*D147,0.01) -> 2.5 | F147: ｍ2 | G147: =IF(ISBLANK($A147),"",LOOKUP($A147,単価表!$A$5:$A$1162,単価表!$G$5:$G$1162)) -> 1500 | H147: 3750
A148: 10500 | C148: =IF(ISBLANK($A148),"",LOOKUP($A148,単価表!$A$5:$A$1162,単価表!$B$5:$B$1162)) -> 生ｺﾝｸﾘｰﾄ 18-8 大型 | D148: =0.35*0.05*1.04 -> 0.0182 | E148: =CEILING(E145*D148,0.01) -> 0.91 | F148: ｍ3 | G148: =IF(ISBLANK($A148),"",LOOKUP($A148,単価表!$A$5:$A$1162,単価表!$G$5:$G$1162)) -> 27900 | H148: 25389
A149: 10200 | C149: =IF(ISBLANK($A149),"",LOOKUP($A149,単価表!$A$5:$A$1162,単価表!$B$5:$B$1162)) -> RC-40(ﾌﾟﾗﾝﾄ) 大型 | D149: =0.3*1.15*1.28 -> 0.4416 | E149: =CEILING(E145*D149,0.01) -> 22.08 | F149: ｔ | G149: =IF(ISBLANK($A149),"",LOOKUP($A149,単価表!$A$5:$A$1162,単価表!$G$5:$G$1162)) -> 2250 | H149: 49680
A150: 40012 | C150: =IF(ISBLANK($A150),"",LOOKUP($A150,単価表!$A$5:$A$1162,単価表!$B$5:$B$1162)) -> 小旋回0.18ﾊﾞｯｸﾎｳ | D150: =IF(ISBLANK($A150),"",IF(LOOKUP($A150,単価表!$A$5:$A$1162,単価表!$C$5:$C$1162)=0,"",LOOKUP($A150,単価表!$A$5:$A$1162,単価表!$C$5:$C$1162))) ->  | E150: =+E146 -> 0.84 | F150: 台 | G150: =IF(ISBLANK($A150),"",LOOKUP($A150,単価表!$A$5:$A$1162,単価表!$G$5:$G$1162)) -> 11250 | H150: 9450
A151: 41002 | C151: =IF(ISBLANK($A151),"",LOOKUP($A151,単価表!$A$5:$A$1162,単価表!$B$5:$B$1162)) -> 自社ﾀﾞﾝﾌﾟ | D151: =IF(ISBLANK($A151),"",IF(LOOKUP($A151,単価表!$A$5:$A$1162,単価表!$C$5:$C$1162)=0,"",LOOKUP($A151,単価表!$A$5:$A$1162,単価表!$C$5:$C$1162))) ->  | E151: =+E146 -> 0.84 | F151: 台 | G151: =IF(ISBLANK($A151),"",LOOKUP($A151,単価表!$A$5:$A$1162,単価表!$G$5:$G$1162)) -> 9000 | H151: 7560
A152: 40023 | C152: =IF(ISBLANK($A152),"",LOOKUP($A152,単価表!$A$5:$A$1162,単価表!$B$5:$B$1162)) -> 諸機械 発電器,ｅｔｃ | E152: =+E146 -> 0.84 | F152: 台 | G152: =IF(ISBLANK($A152),"",LOOKUP($A152,単価表!$A$5:$A$1162,単価表!$G$5:$G$1162)) -> 2250 | H152: 1890
A153: 40001 | C153: =IF(ISBLANK($A153),"",LOOKUP($A153,単価表!$A$5:$A$1162,単価表!$B$5:$B$1162)) -> ﾗﾝﾏｰ･ﾌﾟﾚｰﾄ | E153: =+E146 -> 0.84 | F153: 台 | G153: =IF(ISBLANK($A153),"",LOOKUP($A153,単価表!$A$5:$A$1162,単価表!$G$5:$G$1162)) -> 765 | H153: 643
A154: 40000 | C154: =IF(ISBLANK($A154),"",LOOKUP($A154,単価表!$A$5:$A$1162,単価表!$B$5:$B$1162)) -> 油脂燃料 | E154: =SUM(E150:E153) -> 3.36 | F154: 台日 | G154: =IF(ISBLANK($A154),"",LOOKUP($A154,単価表!$A$5:$A$1162,単価表!$G$5:$G$1162)) -> 1500 | H154: 5040
A155: 20100 | C155: =IF(ISBLANK($A155),"",LOOKUP($A155,単価表!$A$5:$A$1162,単価表!$B$5:$B$1162)) -> 作業員 昼間 | D155: 4 | E155: =+E146*D155 -> 3.36 | F155: 人 | G155: =IF(ISBLANK($A155),"",LOOKUP($A155,単価表!$A$5:$A$1162,単価表!$G$5:$G$1162)) -> 40500 | H155: 136080

Sheet 排水工事
A1: 1
A3: コード | B3: 中分類 | C3: 工 種 | D3: 詳 細 | E3: 数量 | F3: 単位 | G3: 単価 | H3: 金額
C4: 排水工事
A6: 1 | B6: Ｌ型側溝工 | C6: Ｌ型側溝工 | D6: タイプ１ | E6: 100 | F6: ｍ | G6: =ROUND(H6/E6,0) -> 12363 | H6: =SUM(H7:INDEX(H7:H$79,IFERROR(MATCH(1,$A7:$A$79,0),ROWS($A7:$A$79)+1)-1)) -> 1236316
C7: 基礎工 | D7: W=200 FC：ｔ=110 | E7: =+E6 -> 100 | F7: ｍ | G7: =IF(E7=0,"",ROUND(SUM(H8:H15)/E7,0)) -> 2233
A8: 80000 | C8: =IF(ISBLANK($A8),"",LOOKUP($A8,単価表!$A$5:$A$1162,単価表!$B$5:$B$1162)) -> 所要日数 | D8: 100 | E8: =CEILING(E7/D8,0.01) -> 1 | F8: 日 | G8: =IF(ISBLANK($A8),"",LOOKUP($A8,単価表!$A$5:$A$1162,単価表!$G$5:$G$1162)) -> 0 | H8: =IF(ISBLANK($A8),"",ROUND(E8*G8,0)) -> 0
A9: 10514 | C9: =IF(ISBLANK($A9),"",LOOKUP($A9,単価表!$A$5:$A$1162,単価表!$B$5:$B$1162)) -> 型枠 Ａ | D9: 0.11 | E9: =CEILING(E7*D9,0.01) -> 11 | F9: ｍ2 | G9: =IF(ISBLANK($A9),"",LOOKUP($A9,単価表!$A$5:$A$1162,単価表!$G$5:$G$1162)) -> 1500 | H9: 16500
A10: 10501 | C10: =IF(ISBLANK($A10),"",LOOKUP($A10,単価表!$A$5:$A$1162,単価表!$B$5:$B$1162)) -> 生ｺﾝｸﾘｰﾄ 18-8 小型 | D10: =0.2*0.11 -> 0.022 | E10: =CEILING(E7*D10*1.04,0.01) -> 2.29 | F10: ｍ3 | G10: =IF(ISBLANK($A10),"",LOOKUP($A10,単価表!$A$5:$A$1162,単価表!$G$5:$G$1162)) -> 29400 | H10: 67326
A11: 40017 | C11: =IF(ISBLANK($A11),"",LOOKUP($A11,単価表!$A$5:$A$1162,単価表!$B$5:$B$1162)) -> ﾀｲﾔｼｮﾍﾞﾙ WA30 0.3ｍ3 | D11: =IF(ISBLANK($A11),"",IF(LOOKUP($A11,単価表!$A$5:$A$1162,単価表!$C$5:$C$1162)=0,"",LOOKUP($A11,単価表!$A$5:$A$1162,単価表!$C$5:$C$1162))) -> 0.3ｍ3 | E11: =+E8 -> 1 | F11: 台 | G11: =IF(ISBLANK($A11),"",LOOKUP($A11,単価表!$A$5:$A$1162,単価表!$G$5:$G$1162)) -> 10500 | H11: 10500
A12: 40023 | C12: =IF(ISBLANK($A12),"",LOOKUP($A12,単価表!$A$5:$A$1162,単価表!$B$5:$B$1162)) -> 諸機械 発電器,ｅｔｃ | D12: =IF(ISBLANK($A12),"",IF(LOOKUP($A12,単価表!$A$5:$A$1162,単価表!$C$5:$C$1162)=0,"",LOOKUP($A12,単価表!$A$5:$A$1162,単価表!$C$5:$C$1162))) ->  | E12: =+E8 -> 1 | F12: 台 | G12: =IF(ISBLANK($A12),"",LOOKUP($A12,単価表!$A$5:$A$1162,単価表!$G$5:$G$1162)) -> 2250 | H12: 2250
A13: 40001 | C13: =IF(ISBLANK($A13),"",LOOKUP($A13,単価表!$A$5:$A$1162,単価表!$B$5:$B$1162)) -> ﾗﾝﾏｰ･ﾌﾟﾚｰﾄ | D13: =IF(ISBLANK($A13),"",IF(LOOKUP($A13,単価表!$A$5:$A$1162,単価表!$C$5:$C$1162)=0,"",LOOKUP($A13,単価表!$A$5:$A$1162,単価表!$C$5:$C$1162))) ->  | E13: =+E8 -> 1 | F13: 台 | G13: =IF(ISBLANK($A13),"",LOOKUP($A13,単価表!$A$5:$A$1162,単価表!$G$5:$G$1162)) -> 765 | H13: 765
A14: 40000 | C14: =IF(ISBLANK($A14),"",LOOKUP($A14,単価表!$A$5:$A$1162,単価表!$B$5:$B$1162)) -> 油脂燃料 | D14: =IF(ISBLANK($A14),"",IF(LOOKUP($A14,単価表!$A$5:$A$1162,単価表!$C$5:$C$1162)=0,"",LOOKUP($A14,単価表!$A$5:$A$1162,単価表!$C$5:$C$1162))) ->  | E14: =SUM(E11:E13) -> 3 | F14: 台日 | G14: =IF(ISBLANK($A14),"",LOOKUP($A14,単価表!$A$5:$A$1162,単価表!$G$5:$G$1162)) -> 1500 | H14: 4500
A15: 20100 | C15: =IF(ISBLANK($A15),"",LOOKUP($A15,単価表!$A$5:$A$1162,単価表!$B$5:$B$1162)) -> 作業員 昼間 | D15: 3 | E15: =E8*D15 -> 3 | F15: 人 | G15: =IF(ISBLANK($A15),"",LOOKUP($A15,単価表!$A$5:$A$1162,単価表!$G$5:$G$1162)) -> 40500 | H15: 121500
C16: ブロック布設工 | E16: =+E6 -> 100 | F16: ｍ | G16: =IF(E16=0,"",ROUND(SUM(H17:H22)/E16,0)) -> 4114
A17: 80000 | C17: =IF(ISBLANK($A17),"",LOOKUP($A17,単価表!$A$5:$A$1162,単価表!$B$5:$B$1162)) -> 所要日数 | D17: 45 | E17: =CEILING(E16/D17,0.01) -> 2.23 | F17: 日 | G17: =IF(ISBLANK($A17),"",LOOKUP($A17,単価表!$A$5:$A$1162,単価表!$G$5:$G$1162)) -> 0 | H17: =IF(ISBLANK($A17),"",ROUND(E17*G17,0)) -> 0
A18: 10520 | C18: =IF(ISBLANK($A18),"",LOOKUP($A18,単価表!$A$5:$A$1162,単価表!$B$5:$B$1162)) -> ﾓﾙﾀﾙ | D18: =0.2*0.02 -> 0.004 | E18: =CEILING(E16*D18*1.4,0.01) -> 0.56 | F18: ｍ3 | G18: =IF(ISBLANK($A18),"",LOOKUP($A18,単価表!$A$5:$A$1162,単価表!$G$5:$G$1162)) -> 37500 | H18: 21000
A19: 13004 | C19: =IF(ISBLANK($A19),"",LOOKUP($A19,単価表!$A$5:$A$1162,単価表!$B$5:$B$1162)) -> 歩車Aﾌﾞﾛｯｸ | D19: =IF(ISBLANK($A19),"",IF(LOOKUP($A19,単価表!$A$5:$A$1162,単価表!$C$5:$C$1162)=0,"",LOOKUP($A19,単価表!$A$5:$A$1162,単価表!$C$5:$C$1162))) -> 150/170*200*600 44kg/本 | E19: =CEILING(E16/0.6*1.02,1) -> 170 | F19: 本 | G19: =IF(ISBLANK($A19),"",LOOKUP($A19,単価表!$A$5:$A$1162,単価表!$G$5:$G$1162)) -> 1185 | H19: 201450
A20: 40023 | C20: =IF(ISBLANK($A20),"",LOOKUP($A20,単価表!$A$5:$A$1162,単価表!$B$5:$B$1162)) -> 諸機械 発電器,ｅｔｃ | D20: =IF(ISBLANK($A20),"",IF(LOOKUP($A20,単価表!$A$5:$A$1162,単価表!$C$5:$C$1162)=0,"",LOOKUP($A20,単価表!$A$5:$A$1162,単価表!$C$5:$C$1162))) ->  | E20: =+E17 -> 2.23 | F20: 台 | G20: =IF(ISBLANK($A20),"",LOOKUP($A20,単価表!$A$5:$A$1162,単価表!$G$5:$G$1162)) -> 2250 | H20: 5018
A21: 40000 | C21: =IF(ISBLANK($A21),"",LOOKUP($A21,単価表!$A$5:$A$1162,単価表!$B$5:$B$1162)) -> 油脂燃料 | D21: =IF(ISBLANK($A21),"",IF(LOOKUP($A21,単価表!$A$5:$A$1162,単価表!$C$5:$C$1162)=0,"",LOOKUP($A21,単価表!$A$5:$A$1162,単価表!$C$5:$C$1162))) ->  | E21: =SUM(E20:E20) -> 2.23 | F21: 台日 | G21: =IF(ISBLANK($A21),"",LOOKUP($A21,単価表!$A$5:$A$1162,単価表!$G$5:$G$1162)) -> 1500 | H21: 3345
A22: 20100 | C22: =IF(ISBLANK($A22),"",LOOKUP($A22,単価表!$A$5:$A$1162,単価表!$B$5:$B$1162)) -> 作業員 昼間 | D22: 2 | E22: =E17*D22 -> 4.46 | F22: 人 | G22: =IF(ISBLANK($A22),"",LOOKUP($A22,単価表!$A$5:$A$1162,単価表!$G$5:$G$1162)) -> 40500 | H22: 180630
C23: エプロン打設工 | D23: W=500 RC：Aveｔ=190 | E23: =+E6 -> 100 | F23: ｍ | G23: =IF(E23=0,"",ROUND(SUM(H24:H32)/E23,0)) -> 6015
A24: 80000 | C24: =IF(ISBLANK($A24),"",LOOKUP($A24,単価表!$A$5:$A$1162,単価表!$B$5:$B$1162)) -> 所要日数 | D24: 50 | E24: =CEILING(E23/D24,0.01) -> 2 | F24: 日 | G24: =IF(ISBLANK($A24),"",LOOKUP($A24,単価表!$A$5:$A$1162,単価表!$G$5:$G$1162)) -> 0 | H24: =IF(ISBLANK($A24),"",ROUND(E24*G24,0)) -> 0
A25: 10515 | C25: =IF(ISBLANK($A25),"",LOOKUP($A25,単価表!$A$5:$A$1162,単価表!$B$5:$B$1162)) -> 型枠 Ｂ | D25: 0.2 | E25: =CEILING(E23*D25,0.01) -> 20 | F25: ｍ2 | G25: =IF(ISBLANK($A25),"",LOOKUP($A25,単価表!$A$5:$A$1162,単価表!$G$5:$G$1162)) -> 3000 | H25: 60000
A26: 10501 | C26: =IF(ISBLANK($A26),"",LOOKUP($A26,単価表!$A$5:$A$1162,単価表!$B$5:$B$1162)) -> 生ｺﾝｸﾘｰﾄ 18-8 小型 | D26: =0.5*0.19 -> 0.095 | E26: =CEILING(E23*D26*1.04,0.01) -> 9.88 | F26: ｍ3 | G26: =IF(ISBLANK($A26),"",LOOKUP($A26,単価表!$A$5:$A$1162,単価表!$G$5:$G$1162)) -> 29400 | H26: 290472
A27: 99999 | C27: 伸縮目地 | E27: =CEILING(E23*0.1*0.046*1.2,0.01) -> 0.56 | F27: ｍ2 | G27: 1000 | H27: 560
A28: 40023 | C28: =IF(ISBLANK($A28),"",LOOKUP($A28,単価表!$A$5:$A$1162,単価表!$B$5:$B$1162)) -> 諸機械 発電器,ｅｔｃ | D28: =IF(ISBLANK($A28),"",IF(LOOKUP($A28,単価表!$A$5:$A$1162,単価表!$C$5:$C$1162)=0,"",LOOKUP($A28,単価表!$A$5:$A$1162,単価表!$C$5:$C$1162))) ->  | E28: =+E24 -> 2 | F28: 台 | G28: =IF(ISBLANK($A28),"",LOOKUP($A28,単価表!$A$5:$A$1162,単価表!$G$5:$G$1162)) -> 2250 | H28: 4500
A29: 40000 | C29: =IF(ISBLANK($A29),"",LOOKUP($A29,単価表!$A$5:$A$1162,単価表!$B$5:$B$1162)) -> 油脂燃料 | D29: =IF(ISBLANK($A29),"",IF(LOOKUP($A29,単価表!$A$5:$A$1162,単価表!$C$5:$C$1162)=0,"",LOOKUP($A29,単価表!$A$5:$A$1162,単価表!$C$5:$C$1162))) ->  | E29: =SUM(E28:E28) -> 2 | F29: 台日 | G29: =IF(ISBLANK($A29),"",LOOKUP($A29,単価表!$A$5:$A$1162,単価表!$G$5:$G$1162)) -> 1500 | H29: 3000
A30: 20100 | C30: =IF(ISBLANK($A30),"",LOOKUP($A30,単価表!$A$5:$A$1162,単価表!$B$5:$B$1162)) -> 作業員 昼間 | D30: 3 | E30: =E24*D30 -> 6 | F30: 人 | G30: =IF(ISBLANK($A30),"",LOOKUP($A30,単価表!$A$5:$A$1162,単価表!$G$5:$G$1162)) -> 40500 | H30: 243000
A33: 1 | B33: 集水桝 | C33: 雨水桝 | D33: ﾀｲﾌﾟ1 | E33: 1 | F33: 箇所 | G33: =ROUND(H33/E33,0) -> 56404 | H33: =SUM(H34:INDEX(H34:H$79,IFERROR(MATCH(1,$A34:$A$79,0),ROWS($A34:$A$79)+1)-1)) -> 56404
C34: 基礎工 | D34: φ550 RC：ｔ=100 | E34: =+E33 -> 1 | F34: 箇所 | G34: =IF(E34=0,"",ROUND(SUM(H35:H41)/E34,0)) -> 4231
A35: 80000 | C35: =IF(ISBLANK($A35),"",LOOKUP($A35,単価表!$A$5:$A$1162,単価表!$B$5:$B$1162)) -> 所要日数 | D35: 40 | E35: =CEILING(E34/D35,0.01) -> 0.03 | F35: 日 | G35: =IF(ISBLANK($A35),"",LOOKUP($A35,単価表!$A$5:$A$1162,単価表!$G$5:$G$1162)) -> 0 | H35: =IF(ISBLANK($A35),"",ROUND(E35*G35,0)) -> 0
A36: 10205 | C36: =IF(ISBLANK($A36),"",LOOKUP($A36,単価表!$A$5:$A$1162,単価表!$B$5:$B$1162)) -> RC-40(建材店) 大型 | E36: =CEILING(E34*0.6^2*0.1*1.28,0.01) -> 0.05 | F36: 0 | G36: =IF(ISBLANK($A36),"",LOOKUP($A36,単価表!$A$5:$A$1162,単価表!$G$5:$G$1162)) -> 1800 | H36: 90
A37: 40011 | C37: =IF(ISBLANK($A37),"",LOOKUP($A37,単価表!$A$5:$A$1162,単価表!$B$5:$B$1162)) -> 小旋回0.12ﾊﾞｯｸﾎｳ | D37: =IF(ISBLANK($A37),"",IF(LOOKUP($A37,単価表!$A$5:$A$1162,単価表!$C$5:$C$1162)=0,"",LOOKUP($A37,単価表!$A$5:$A$1162,単価表!$C$5:$C$1162))) ->  | E37: =+E35 -> 0.03 | F37: 台 | G37: =IF(ISBLANK($A37),"",LOOKUP($A37,単価表!$A$5:$A$1162,単価表!$G$5:$G$1162)) -> 9000 | H37: 270
A38: 40023 | C38: =IF(ISBLANK($A38),"",LOOKUP($A38,単価表!$A$5:$A$1162,単価表!$B$5:$B$1162)) -> 諸機械 発電器,ｅｔｃ | D38: =IF(ISBLANK($A38),"",IF(LOOKUP($A38,単価表!$A$5:$A$1162,単価表!$C$5:$C$1162)=0,"",LOOKUP($A38,単価表!$A$5:$A$1162,単価表!$C$5:$C$1162))) ->  | E38: =+E35 -> 0.03 | F38: 台 | G38: =IF(ISBLANK($A38),"",LOOKUP($A38,単価表!$A$5:$A$1162,単価表!$G$5:$G$1162)) -> 2250 | H38: 68
A39: 40001 | C39: =IF(ISBLANK($A39),"",LOOKUP($A39,単価表!$A$5:$A$1162,単価表!$B$5:$B$1162)) -> ﾗﾝﾏｰ･ﾌﾟﾚｰﾄ | D39: =IF(ISBLANK($A39),"",IF(LOOKUP($A39,単価表!$A$5:$A$1162,単価表!$C$5:$C$1162)=0,"",LOOKUP($A39,単価表!$A$5:$A$1162,単価表!$C$5:$C$1162))) ->  | E39: =+E35 -> 0.03 | F39: 台 | G39: =IF(ISBLANK($A39),"",LOOKUP($A39,単価表!$A$5:$A$1162,単価表!$G$5:$G$1162)) -> 765 | H39: 23
A40: 40000 | C40: =IF(ISBLANK($A40),"",LOOKUP($A40,単価表!$A$5:$A$1162,単価表!$B$5:$B$1162)) -> 油脂燃料 | D40: =IF(ISBLANK($A40),"",IF(LOOKUP($A40,単価表!$A$5:$A$1162,単価表!$C$5:$C$1162)=0,"",LOOKUP($A40,単価表!$A$5:$A$1162,単価表!$C$5:$C$1162))) ->  | E40: =SUM(E37:E39) -> 0.09 | F40: 台日 | G40: =IF(ISBLANK($A40),"",LOOKUP($A40,単価表!$A$5:$A$1162,単価表!$G$5:$G$1162)) -> 1500 | H40: 135
A41: 20100 | C41: =IF(ISBLANK($A41),"",LOOKUP($A41,単価表!$A$5:$A$1162,単価表!$B$5:$B$1162)) -> 作業員 昼間 | D41: 3 | E41: =E35*D41 -> 0.09 | F41: 人 | G41: =IF(ISBLANK($A41),"",LOOKUP($A41,単価表!$A$5:$A$1162,単価表!$G$5:$G$1162)) -> 40500 | H41: 3645
C42: 雨水桝据付工 | E42: =+E33 -> 1 | F42: 箇所 | G42: =IF(E42=0,"",ROUND(SUM(H43:H57)/E42,0)) -> 52173
A43: 80000 | C43: =IF(ISBLANK($A43),"",LOOKUP($A43,単価表!$A$5:$A$1162,単価表!$B$5:$B$1162)) -> 所要日数 | D43: 6 | E43: =CEILING(E42/D43,0.01) -> 0.17 | F43: 日 | G43: =IF(ISBLANK($A43),"",LOOKUP($A43,単価表!$A$5:$A$1162,単価表!$G$5:$G$1162)) -> 0 | H43: =IF(ISBLANK($A43),"",ROUND(E43*G43,0)) -> 0
A44: 13004 | C44: =IF(ISBLANK($A44),"",LOOKUP($A44,単価表!$A$5:$A$1162,単価表!$B$5:$B$1162)) -> 歩車Aﾌﾞﾛｯｸ | E44: =+E33 -> 1 | F44: 本 | G44: =IF(ISBLANK($A44),"",LOOKUP($A44,単価表!$A$5:$A$1162,単価表!$G$5:$G$1162)) -> 1185 | H44: 1185
A45: 99999 | C45: 浜型タイプ１・２ | D45: 下部側塊 450*340 | E45: =+E33 -> 1 | F45: 個 | G45: 4890 | H45: 4890
A46: 99999 | C46: 浜型タイプ１・２ | D46: 中部側塊 450*400 | E46: =+E33 -> 1 | F46: 個 | G46: 4380 | H46: 4380
A47: 99999 | C47: 浜型タイプ１ | D47: 上部側塊 450*150 | E47: =+E33 -> 1 | F47: 個 | G47: 3970 | H47: 3970
A48: 99999 | C48: 浜型タイプ１ | D48: 縁塊 705*600*180 | E48: =+E33 -> 1 | F48: 個 | G48: 5000 | H48: 5000
A49: 99999 | C49: ダクタイル蓋 | D49: LY-1（マーク付き） | E49: =CEILING(E33,1) -> 1 | F49: 枚 | G49: 7500 | H49: 7500
A50: 40011 | C50: =IF(ISBLANK($A50),"",LOOKUP($A50,単価表!$A$5:$A$1162,単価表!$B$5:$B$1162)) -> 小旋回0.12ﾊﾞｯｸﾎｳ | D50: =IF(ISBLANK($A50),"",IF(LOOKUP($A50,単価表!$A$5:$A$1162,単価表!$C$5:$C$1162)=0,"",LOOKUP($A50,単価表!$A$5:$A$1162,単価表!$C$5:$C$1162))) ->  | E50: =+E43 -> 0.17 | F50: 台 | G50: =IF(ISBLANK($A50),"",LOOKUP($A50,単価表!$A$5:$A$1162,単価表!$G$5:$G$1162)) -> 9000 | H50: 1530
A51: 40023 | C51: =IF(ISBLANK($A51),"",LOOKUP($A51,単価表!$A$5:$A$1162,単価表!$B$5:$B$1162)) -> 諸機械 発電器,ｅｔｃ | D51: =IF(ISBLANK($A51),"",IF(LOOKUP($A51,単価表!$A$5:$A$1162,単価表!$C$5:$C$1162)=0,"",LOOKUP($A51,単価表!$A$5:$A$1162,単価表!$C$5:$C$1162))) ->  | E51: =+E43 -> 0.17 | F51: 台 | G51: =IF(ISBLANK($A51),"",LOOKUP($A51,単価表!$A$5:$A$1162,単価表!$G$5:$G$1162)) -> 2250 | H51: 383
A52: 41002 | C52: =IF(ISBLANK($A52),"",LOOKUP($A52,単価表!$A$5:$A$1162,単価表!$B$5:$B$1162)) -> 自社ﾀﾞﾝﾌﾟ | D52: =IF(ISBLANK($A52),"",IF(LOOKUP($A52,単価表!$A$5:$A$1162,単価表!$C$5:$C$1162)=0,"",LOOKUP($A52,単価表!$A$5:$A$1162,単価表!$C$5:$C$1162))) ->  | E52: =+E43 -> 0.17 | F52: 台 | G52: =IF(ISBLANK($A52),"",LOOKUP($A52,単価表!$A$5:$A$1162,単価表!$G$5:$G$1162)) -> 9000 | H52: 1530
A53: 40001 | C53: =IF(ISBLANK($A53),"",LOOKUP($A53,単価表!$A$5:$A$1162,単価表!$B$5:$B$1162)) -> ﾗﾝﾏｰ･ﾌﾟﾚｰﾄ | D53: =IF(ISBLANK($A53),"",IF(LOOKUP($A53,単価表!$A$5:$A$1162,単価表!$C$5:$C$1162)=0,"",LOOKUP($A53,単価表!$A$5:$A$1162,単価表!$C$5:$C$1162))) ->  | E53: =+E43 -> 0.17 | F53: 台 | G53: =IF(ISBLANK($A53),"",LOOKUP($A53,単価表!$A$5:$A$1162,単価表!$G$5:$G$1162)) -> 765 | H53: 130
A54: 40000 | C54: =IF(ISBLANK($A54),"",LOOKUP($A54,単価表!$A$5:$A$1162,単価表!$B$5:$B$1162)) -> 油脂燃料 | D54: =IF(ISBLANK($A54),"",IF(LOOKUP($A54,単価表!$A$5:$A$1162,単価表!$C$5:$C$1162)=0,"",LOOKUP($A54,単価表!$A$5:$A$1162,単価表!$C$5:$C$1162))) ->  | E54: =SUM(E50:E53) -> 0.68 | F54: 台日 | G54: =IF(ISBLANK($A54),"",LOOKUP($A54,単価表!$A$5:$A$1162,単価表!$G$5:$G$1162)) -> 1500 | H54: 1020
A55: 20100 | C55: =IF(ISBLANK($A55),"",LOOKUP($A55,単価表!$A$5:$A$1162,単価表!$B$5:$B$1162)) -> 作業員 昼間 | D55: 3 | E55: =E43*D55 -> 0.51 | F55: 人 | G55: =IF(ISBLANK($A55),"",LOOKUP($A55,単価表!$A$5:$A$1162,単価表!$G$5:$G$1162)) -> 40500 | H55: 20655
A58: 1 | B58: 組立人孔 | C58: 汚水人孔設置工 | D58: 組立２号人孔1箇所 | E58: 1 | F58: 箇所 | G58: =ROUND(H58/E58,0) -> 370341 | H58: =SUM(H59:INDEX(H59:H$79,IFERROR(MATCH(1,$A59:$A$79,0),ROWS($A59:$A$79)+1)-1)) -> 370341
C59: 汚水人孔設置工 | D59: AveH=3.02m | E59: 1 | F59: 箇所 | G59: =IF(E59=0,"",ROUND(SUM(H60:H79)/E59,0)) -> 370341
A60: 80000 | C60: =IF(ISBLANK($A60),"",LOOKUP($A60,単価表!$A$5:$A$1162,単価表!$B$5:$B$1162)) -> 所要日数 | D60: 2 | E60: =CEILING(E59/D60,0.01) -> 0.5 | F60: 日 | G60: =IF(ISBLANK($A60),"",LOOKUP($A60,単価表!$A$5:$A$1162,単価表!$G$5:$G$1162)) -> 0
A61: 99999 | C61: 底版 | E61: =+E59 -> 1 | F61: 個 | G61: 24330 | H61: =IF(ISBLANK($A61),"",ROUND(E61*G61,0)) -> 24330
A62: 99999 | C62: 管取付壁 | E62: 1 | F62: 個 | G62: 71830 | H62: 71830
A63: 99999 | C63: 直壁 | E63: 1 | F63: 個 | G63: 30690 | H63: 30690
A64: 99999 | C64: 斜壁 | E64: 1 | F64: 個 | G64: 36990 | H64: 36990
A65: 99999 | C65: 調整リング | E65: 1 | F65: 個 | G65: 4290 | H65: 4290
A66: 99999 | C66: 調整金具 | E66: 2 | F66: Set | G66: 2080 | H66: 4160
A67: 99999 | C67: 足掛金具 | D67: 樹脂ｽﾃｯﾌﾟ | E67: 8 | F67: 個 | G67: 2400 | H67: 19200
A68: 99999 | C68: 人孔ダクタイル蓋 | D68: T-25 | E68: =+E59 -> 1 | F68: Set | G68: 35000 | H68: 35000
A69: 99999 | C69: 削孔費 | D69: φ250 | E69: 4 | F69: 箇所 | G69: 4320 | H69: 17280
A70: 99999 | C70: ｲﾝﾊﾞｰﾄ仕上げ | D70: 材工共 | E70: =E59 -> 1 | F70: 箇所 | G70: 28000 | H70: 28000
A71: 99999 | C71: 雑工 | D71: 止水モルタルetc | E71: =CEILING(E59,0.01) -> 1 | F71: 箇所 | G71: 2000 | H71: 2000
A72: 10200 | C72: =IF(ISBLANK($A72),"",LOOKUP($A72,単価表!$A$5:$A$1162,単価表!$B$5:$B$1162)) -> RC-40(ﾌﾟﾗﾝﾄ) 大型 | D72: =TEXT(E72/3.5,"0.0台分 小型") -> 0.1台分 小型 | E72: =CEILING(E59*(0.2*1.1^2*PI()/4)*1.28,0.01) -> 0.25 | F72: ｍ3 | G72: =IF(ISBLANK($A72),"",LOOKUP($A72,単価表!$A$5:$A$1162,単価表!$G$5:$G$1162)) -> 2250 | H72: 563
A73: 40019 | C73: =IF(ISBLANK($A73),"",LOOKUP($A73,単価表!$A$5:$A$1162,単価表!$B$5:$B$1162)) -> 0.4 ﾊﾞｯｸﾎｳ | D73: =IF(ISBLANK($A73),"",IF(LOOKUP($A73,単価表!$A$5:$A$1162,単価表!$C$5:$C$1162)=0,"",LOOKUP($A73,単価表!$A$5:$A$1162,単価表!$C$5:$C$1162))) ->  | E73: =+E60 -> 0.5 | F73: 台 | G73: =IF(ISBLANK($A73),"",LOOKUP($A73,単価表!$A$5:$A$1162,単価表!$G$5:$G$1162)) -> 12000 | H73: 6000
A74: 40023 | C74: =IF(ISBLANK($A74),"",LOOKUP($A74,単価表!$A$5:$A$1162,単価表!$B$5:$B$1162)) -> 諸機械 発電器,ｅｔｃ | D74: =IF(ISBLANK($A74),"",IF(LOOKUP($A74,単価表!$A$5:$A$1162,単価表!$C$5:$C$1162)=0,"",LOOKUP($A74,単価表!$A$5:$A$1162,単価表!$C$5:$C$1162))) ->  | E74: =+E60 -> 0.5 | F74: 台 | G74: =IF(ISBLANK($A74),"",LOOKUP($A74,単価表!$A$5:$A$1162,単価表!$G$5:$G$1162)) -> 2250 | H74: 1125
A75: 41002 | C75: =IF(ISBLANK($A75),"",LOOKUP($A75,単価表!$A$5:$A$1162,単価表!$B$5:$B$1162)) -> 自社ﾀﾞﾝﾌﾟ | D75: =IF(ISBLANK($A75),"",IF(LOOKUP($A75,単価表!$A$5:$A$1162,単価表!$C$5:$C$1162)=0,"",LOOKUP($A75,単価表!$A$5:$A$1162,単価表!$C$5:$C$1162))) ->  | E75: =+E60 -> 0.5 | F75: 台 | G75: =IF(ISBLANK($A75),"",LOOKUP($A75,単価表!$A$5:$A$1162,単価表!$G$5:$G$1162)) -> 9000 | H75: 4500
A76: 40001 | C76: =IF(ISBLANK($A76),"",LOOKUP($A76,単価表!$A$5:$A$1162,単価表!$B$5:$B$1162)) -> ﾗﾝﾏｰ･ﾌﾟﾚｰﾄ | D76: =IF(ISBLANK($A76),"",IF(LOOKUP($A76,単価表!$A$5:$A$1162,単価表!$C$5:$C$1162)=0,"",LOOKUP($A76,単価表!$A$5:$A$1162,単価表!$C$5:$C$1162))) ->  | E76: =+E60 -> 0.5 | F76: 台 | G76: =IF(ISBLANK($A76),"",LOOKUP($A76,単価表!$A$5:$A$1162,単価表!$G$5:$G$1162)) -> 765 | H76: 383
A77: 40000 | C77: =IF(ISBLANK($A77),"",LOOKUP($A77,単価表!$A$5:$A$1162,単価表!$B$5:$B$1162)) -> 油脂燃料 | D77: =IF(ISBLANK($A77),"",IF(LOOKUP($A77,単価表!$A$5:$A$1162,単価表!$C$5:$C$1162)=0,"",LOOKUP($A77,単価表!$A$5:$A$1162,単価表!$C$5:$C$1162))) ->  | E77: =SUM(E73:E76) -> 2 | F77: 台日 | G77: =IF(ISBLANK($A77),"",LOOKUP($A77,単価表!$A$5:$A$1162,単価表!$G$5:$G$1162)) -> 1500 | H77: 3000
A78: 20100 | C78: =IF(ISBLANK($A78),"",LOOKUP($A78,単価表!$A$5:$A$1162,単価表!$B$5:$B$1162)) -> 作業員 昼間 | D78: 4 | E78: =+E60*D78 -> 2 | F78: 人 | G78: =IF(ISBLANK($A78),"",LOOKUP($A78,単価表!$A$5:$A$1162,単価表!$G$5:$G$1162)) -> 40500 | H78: 81000
D79: =IF(ISBLANK($A79),"",IF(LOOKUP($A79,単価表!$A$5:$A$1162,単価表!$C$5:$C$1162)=0,"",LOOKUP($A79,単価表!$A$5:$A$1162,単価表!$C$5:$C$1162))) -> 

Sheet 付帯工事
A1: 1
A3: コード | B3: 中分類 | C3: 工 種 | D3: 詳 細 | E3: 数量 | F3: 単位 | G3: 単価 | H3: 金額
C4: 付帯工事
A6: 1 | B6: 縁石工 | C6: 地先境界ブロック | D6: 120*120*600 基礎共 | E6: 100 | F6: ｍ | G6: =ROUND(H6/E6,0) -> 7096 | H6: =SUM(H7:INDEX(H7:H$58,IFERROR(MATCH(1,$A7:$A$58,0),ROWS($A7:$A$58)+1)-1)) -> 709640
C7: 掘削土工 | D7: =0.15*0.2+0.12*0.13 -> 0.0456 | E7: =CEILING(E6*D7,0.01) -> 4.56 | F7: ｍ3 | G7: =IF(E7=0,"",ROUND(SUM(H8:H13)/E7,0)) -> 4762
A8: 80000 | C8: =IF(ISBLANK($A8),"",LOOKUP($A8,単価表!$A$5:$A$1162,単価表!$B$5:$B$1162)) -> 所要日数 | D8: 31.2 | E8: =CEILING(E7/D8,0.01) -> 0.15 | F8: 日 | G8: =IF(ISBLANK($A8),"",LOOKUP($A8,単価表!$A$5:$A$1162,単価表!$G$5:$G$1162)) -> 0 | H8: =IF(ISBLANK($A8),"",ROUND(E8*G8,0)) -> 0
A9: 40011 | C9: =IF(ISBLANK($A9),"",LOOKUP($A9,単価表!$A$5:$A$1162,単価表!$B$5:$B$1162)) -> 小旋回0.12ﾊﾞｯｸﾎｳ | D9: =IF(ISBLANK($A9),"",IF(LOOKUP($A9,単価表!$A$5:$A$1162,単価表!$C$5:$C$1162)=0,"",LOOKUP($A9,単価表!$A$5:$A$1162,単価表!$C$5:$C$1162))) ->  | E9: =+E8 -> 0.15 | F9: 台 | G9: =IF(ISBLANK($A9),"",LOOKUP($A9,単価表!$A$5:$A$1162,単価表!$G$5:$G$1162)) -> 9000 | H9: 1350
A10: 40001 | C10: =IF(ISBLANK($A10),"",LOOKUP($A10,単価表!$A$5:$A$1162,単価表!$B$5:$B$1162)) -> ﾗﾝﾏｰ･ﾌﾟﾚｰﾄ | D10: =IF(ISBLANK($A10),"",IF(LOOKUP($A10,単価表!$A$5:$A$1162,単価表!$C$5:$C$1162)=0,"",LOOKUP($A10,単価表!$A$5:$A$1162,単価表!$C$5:$C$1162))) ->  | E10: =+E8 -> 0.15 | F10: 台 | G10: =IF(ISBLANK($A10),"",LOOKUP($A10,単価表!$A$5:$A$1162,単価表!$G$5:$G$1162)) -> 765 | H10: 115
A11: 41002 | C11: =IF(ISBLANK($A11),"",LOOKUP($A11,単価表!$A$5:$A$1162,単価表!$B$5:$B$1162)) -> 自社ﾀﾞﾝﾌﾟ | D11: =IF(ISBLANK($A11),"",IF(LOOKUP($A11,単価表!$A$5:$A$1162,単価表!$C$5:$C$1162)=0,"",LOOKUP($A11,単価表!$A$5:$A$1162,単価表!$C$5:$C$1162))) ->  | E11: =+E8 -> 0.15 | F11: 台 | G11: =IF(ISBLANK($A11),"",LOOKUP($A11,単価表!$A$5:$A$1162,単価表!$G$5:$G$1162)) -> 9000 | H11: 1350
A12: 40000 | C12: =IF(ISBLANK($A12),"",LOOKUP($A12,単価表!$A$5:$A$1162,単価表!$B$5:$B$1162)) -> 油脂燃料 | D12: =IF(ISBLANK($A12),"",IF(LOOKUP($A12,単価表!$A$5:$A$1162,単価表!$C$5:$C$1162)=0,"",LOOKUP($A12,単価表!$A$5:$A$1162,単価表!$C$5:$C$1162))) ->  | E12: =SUM(E9:E11) -> 0.45 | F12: 台日 | G12: =IF(ISBLANK($A12),"",LOOKUP($A12,単価表!$A$5:$A$1162,単価表!$G$5:$G$1162)) -> 1500 | H12: 675
A13: 20100 | C13: =IF(ISBLANK($A13),"",LOOKUP($A13,単価表!$A$5:$A$1162,単価表!$B$5:$B$1162)) -> 作業員 昼間 | D13: 3 | E13: =+E8*D13 -> 0.45 | F13: 人 | G13: =IF(ISBLANK($A13),"",LOOKUP($A13,単価表!$A$5:$A$1162,単価表!$G$5:$G$1162)) -> 40500 | H13: 18225
C14: 基礎工 | D14: Ｗ150 ＲＣ100 ＣＯ100 | E14: =+E6 -> 100 | F14: ｍ | G14: =IF(E14=0,"",ROUND(SUM(H15:H23)/E14,0)) -> 2797
A15: 80000 | C15: =IF(ISBLANK($A15),"",LOOKUP($A15,単価表!$A$5:$A$1162,単価表!$B$5:$B$1162)) -> 所要日数 | D15: 80 | E15: =CEILING(E14/D15,0.01) -> 1.25 | F15: 日 | G15: =IF(ISBLANK($A15),"",LOOKUP($A15,単価表!$A$5:$A$1162,単価表!$G$5:$G$1162)) -> 0 | H15: =IF(ISBLANK($A15),"",ROUND(E15*G15,0)) -> 0
A16: 10200 | C16: =IF(ISBLANK($A16),"",LOOKUP($A16,単価表!$A$5:$A$1162,単価表!$B$5:$B$1162)) -> RC-40(ﾌﾟﾗﾝﾄ) 大型 | D16: =0.15*0.1*1.7*1.28 -> 0.03264 | E16: =CEILING(E14*D16,0.01) -> 3.27 | F16: ｔ | G16: =IF(ISBLANK($A16),"",LOOKUP($A16,単価表!$A$5:$A$1162,単価表!$G$5:$G$1162)) -> 2250 | H16: 7358
A17: 10514 | C17: =IF(ISBLANK($A17),"",LOOKUP($A17,単価表!$A$5:$A$1162,単価表!$B$5:$B$1162)) -> 型枠 Ａ | D17: =0.15*2 -> 0.3 | E17: =CEILING(E14*D17,0.01) -> 30 | F17: ｍ2 | G17: =IF(ISBLANK($A17),"",LOOKUP($A17,単価表!$A$5:$A$1162,単価表!$G$5:$G$1162)) -> 1500 | H17: 45000
A18: 10500 | C18: =IF(ISBLANK($A18),"",LOOKUP($A18,単価表!$A$5:$A$1162,単価表!$B$5:$B$1162)) -> 生ｺﾝｸﾘｰﾄ 18-8 大型 | D18: =0.15*0.1*1.04 -> 0.0156 | E18: =CEILING(E14*D18,0.01) -> 1.56 | F18: ｍ3 | G18: =IF(ISBLANK($A18),"",LOOKUP($A18,単価表!$A$5:$A$1162,単価表!$G$5:$G$1162)) -> 27900 | H18: 43524
A19: 41002 | C19: =IF(ISBLANK($A19),"",LOOKUP($A19,単価表!$A$5:$A$1162,単価表!$B$5:$B$1162)) -> 自社ﾀﾞﾝﾌﾟ | D19: =IF(ISBLANK($A19),"",IF(LOOKUP($A19,単価表!$A$5:$A$1162,単価表!$C$5:$C$1162)=0,"",LOOKUP($A19,単価表!$A$5:$A$1162,単価表!$C$5:$C$1162))) ->  | E19: =+E15 -> 1.25 | F19: 台 | G19: =IF(ISBLANK($A19),"",LOOKUP($A19,単価表!$A$5:$A$1162,単価表!$G$5:$G$1162)) -> 9000 | H19: 11250
A20: 40011 | C20: =IF(ISBLANK($A20),"",LOOKUP($A20,単価表!$A$5:$A$1162,単価表!$B$5:$B$1162)) -> 小旋回0.12ﾊﾞｯｸﾎｳ | D20: =IF(ISBLANK($A20),"",IF(LOOKUP($A20,単価表!$A$5:$A$1162,単価表!$C$5:$C$1162)=0,"",LOOKUP($A20,単価表!$A$5:$A$1162,単価表!$C$5:$C$1162))) ->  | E20: =+E15 -> 1.25 | F20: 台 | G20: =IF(ISBLANK($A20),"",LOOKUP($A20,単価表!$A$5:$A$1162,単価表!$G$5:$G$1162)) -> 9000 | H20: 11250
A21: 40001 | C21: =IF(ISBLANK($A21),"",LOOKUP($A21,単価表!$A$5:$A$1162,単価表!$B$5:$B$1162)) -> ﾗﾝﾏｰ･ﾌﾟﾚｰﾄ | D21: =IF(ISBLANK($A21),"",IF(LOOKUP($A21,単価表!$A$5:$A$1162,単価表!$C$5:$C$1162)=0,"",LOOKUP($A21,単価表!$A$5:$A$1162,単価表!$C$5:$C$1162))) ->  | E21: =+E15*2 -> 2.5 | F21: 台 | G21: =IF(ISBLANK($A21),"",LOOKUP($A21,単価表!$A$5:$A$1162,単価表!$G$5:$G$1162)) -> 765 | H21: 1913
A22: 40000 | C22: =IF(ISBLANK($A22),"",LOOKUP($A22,単価表!$A$5:$A$1162,単価表!$B$5:$B$1162)) -> 油脂燃料 | D22: =IF(ISBLANK($A22),"",IF(LOOKUP($A22,単価表!$A$5:$A$1162,単価表!$C$5:$C$1162)=0,"",LOOKUP($A22,単価表!$A$5:$A$1162,単価表!$C$5:$C$1162))) ->  | E22: =SUM(E19:E21) -> 5 | F22: 台日 | G22: =IF(ISBLANK($A22),"",LOOKUP($A22,単価表!$A$5:$A$1162,単価表!$G$5:$G$1162)) -> 1500 | H22: 7500
A23: 20100 | C23: =IF(ISBLANK($A23),"",LOOKUP($A23,単価表!$A$5:$A$1162,単価表!$B$5:$B$1162)) -> 作業員 昼間 | D23: 3 | E23: =E15*D23 -> 3.75 | F23: 人 | G23: =IF(ISBLANK($A23),"",LOOKUP($A23,単価表!$A$5:$A$1162,単価表!$G$5:$G$1162)) -> 40500 | H23: 151875
C24: ブロック布設工 | D24: 地先A | E24: =+E6 -> 100 | F24: ｍ | G24: =IF(E24=0,"",ROUND(SUM(H25:H33)/E24,0)) -> 4083
A25: 80000 | C25: =IF(ISBLANK($A25),"",LOOKUP($A25,単価表!$A$5:$A$1162,単価表!$B$5:$B$1162)) -> 所要日数 | D25: 46.8 | E25: =CEILING(E24/D25,0.01) -> 2.14 | F25: 日 | G25: =IF(ISBLANK($A25),"",LOOKUP($A25,単価表!$A$5:$A$1162,単価表!$G$5:$G$1162)) -> 0 | H25: =IF(ISBLANK($A25),"",ROUND(E25*G25,0)) -> 0
A26: 10520 | C26: =IF(ISBLANK($A26),"",LOOKUP($A26,単価表!$A$5:$A$1162,単価表!$B$5:$B$1162)) -> ﾓﾙﾀﾙ | D26: =0.15*0.02*1.4 -> 0.0042 | E26: =CEILING(E24*D26,0.01) -> 0.42 | F26: ｍ3 | G26: =IF(ISBLANK($A26),"",LOOKUP($A26,単価表!$A$5:$A$1162,単価表!$G$5:$G$1162)) -> 37500 | H26: 15750
A27: 13000 | C27: =IF(ISBLANK($A27),"",LOOKUP($A27,単価表!$A$5:$A$1162,単価表!$B$5:$B$1162)) -> 地先Aﾌﾞﾛｯｸ | D27: =IF(ISBLANK($A27),"",IF(LOOKUP($A27,単価表!$A$5:$A$1162,単価表!$C$5:$C$1162)=0,"",LOOKUP($A27,単価表!$A$5:$A$1162,単価表!$C$5:$C$1162))) -> 120*120*600 19kg/本 | E27: =CEILING(E24/0.6*1.02,1) -> 170 | F27: 本 | G27: =IF(ISBLANK($A27),"",LOOKUP($A27,単価表!$A$5:$A$1162,単価表!$G$5:$G$1162)) -> 600 | H27: 102000
A28: 41002 | C28: =IF(ISBLANK($A28),"",LOOKUP($A28,単価表!$A$5:$A$1162,単価表!$B$5:$B$1162)) -> 自社ﾀﾞﾝﾌﾟ | D28: =IF(ISBLANK($A28),"",IF(LOOKUP($A28,単価表!$A$5:$A$1162,単価表!$C$5:$C$1162)=0,"",LOOKUP($A28,単価表!$A$5:$A$1162,単価表!$C$5:$C$1162))) ->  | E28: =+E25 -> 2.14 | F28: 台 | G28: =IF(ISBLANK($A28),"",LOOKUP($A28,単価表!$A$5:$A$1162,単価表!$G$5:$G$1162)) -> 9000 | H28: 19260
A29: 40023 | C29: =IF(ISBLANK($A29),"",LOOKUP($A29,単価表!$A$5:$A$1162,単価表!$B$5:$B$1162)) -> 諸機械 発電器,ｅｔｃ | D29: =IF(ISBLANK($A29),"",IF(LOOKUP($A29,単価表!$A$5:$A$1162,単価表!$C$5:$C$1162)=0,"",LOOKUP($A29,単価表!$A$5:$A$1162,単価表!$C$5:$C$1162))) ->  | E29: =+E25 -> 2.14 | F29: 台 | G29: =IF(ISBLANK($A29),"",LOOKUP($A29,単価表!$A$5:$A$1162,単価表!$G$5:$G$1162)) -> 2250 | H29: 4815
A30: 40000 | C30: =IF(ISBLANK($A30),"",LOOKUP($A30,単価表!$A$5:$A$1162,単価表!$B$5:$B$1162)) -> 油脂燃料 | D30: =IF(ISBLANK($A30),"",IF(LOOKUP($A30,単価表!$A$5:$A$1162,単価表!$C$5:$C$1162)=0,"",LOOKUP($A30,単価表!$A$5:$A$1162,単価表!$C$5:$C$1162))) ->  | E30: =SUM(E28:E29) -> 4.28 | F30: 台日 | G30: =IF(ISBLANK($A30),"",LOOKUP($A30,単価表!$A$5:$A$1162,単価表!$G$5:$G$1162)) -> 1500 | H30: 6420
A31: 20100 | C31: =IF(ISBLANK($A31),"",LOOKUP($A31,単価表!$A$5:$A$1162,単価表!$B$5:$B$1162)) -> 作業員 昼間 | D31: 3 | E31: =E25*D31 -> 6.42 | F31: 人 | G31: =IF(ISBLANK($A31),"",LOOKUP($A31,単価表!$A$5:$A$1162,単価表!$G$5:$G$1162)) -> 40500 | H31: 260010
A34: 1 | B34: 囲障工事 | C34: 化粧CB２段積 | D34: H＝400 | E34: 100 | F34: ｍ | G34: =ROUND(H34/E34,0) -> 10466 | H34: =SUM(H35:INDEX(H35:H$58,IFERROR(MATCH(1,$A35:$A$58,0),ROWS($A35:$A$58)+1)-1)) -> 1046630
C35: 基礎工 | D35: W=400 RC=100 FC=150 | E35: =+E34 -> 100 | F35: ｍ | G35: =IF(E35=0,"",ROUND(SUM(H36:H45)/E35,0)) -> 4371
A36: 80000 | C36: =IF(ISBLANK($A36),"",LOOKUP($A36,単価表!$A$5:$A$1162,単価表!$B$5:$B$1162)) -> 所要日数 | D36: 80 | E36: =CEILING(E35/D36,0.01) -> 1.25 | F36: 日 | G36: =IF(ISBLANK($A36),"",LOOKUP($A36,単価表!$A$5:$A$1162,単価表!$G$5:$G$1162)) -> 0 | H36: =IF(ISBLANK($A36),"",ROUND(E36*G36,0)) -> 0
A37: 10201 | C37: =IF(ISBLANK($A37),"",LOOKUP($A37,単価表!$A$5:$A$1162,単価表!$B$5:$B$1162)) -> RC-40(ﾌﾟﾗﾝﾄ) 小型 | D37: =0.4*0.1*1.28 -> 0.0512 | E37: =CEILING(E35*D37,0.01) -> 5.12 | F37: ｔ | G37: =IF(ISBLANK($A37),"",LOOKUP($A37,単価表!$A$5:$A$1162,単価表!$G$5:$G$1162)) -> 4500 | H37: 23040
A38: 10514 | C38: =IF(ISBLANK($A38),"",LOOKUP($A38,単価表!$A$5:$A$1162,単価表!$B$5:$B$1162)) -> 型枠 Ａ | D38: =0.15*2 -> 0.3 | E38: =CEILING(E35*D38,0.01) -> 30 | F38: ｍ2 | G38: =IF(ISBLANK($A38),"",LOOKUP($A38,単価表!$A$5:$A$1162,単価表!$G$5:$G$1162)) -> 1500 | H38: 45000
A39: 10501 | C39: =IF(ISBLANK($A39),"",LOOKUP($A39,単価表!$A$5:$A$1162,単価表!$B$5:$B$1162)) -> 生ｺﾝｸﾘｰﾄ 18-8 小型 | D39: =0.4*0.15*1.04 -> 0.0624 | E39: =CEILING(E35*D39,0.01) -> 6.24 | F39: ｍ3 | G39: =IF(ISBLANK($A39),"",LOOKUP($A39,単価表!$A$5:$A$1162,単価表!$G$5:$G$1162)) -> 29400 | H39: 183456
A40: 40023 | C40: =IF(ISBLANK($A40),"",LOOKUP($A40,単価表!$A$5:$A$1162,単価表!$B$5:$B$1162)) -> 諸機械 発電器,ｅｔｃ | D40: =IF(ISBLANK($A40),"",IF(LOOKUP($A40,単価表!$A$5:$A$1162,単価表!$C$5:$C$1162)=0,"",LOOKUP($A40,単価表!$A$5:$A$1162,単価表!$C$5:$C$1162))) ->  | E40: =+E36 -> 1.25 | F40: 台 | G40: =IF(ISBLANK($A40),"",LOOKUP($A40,単価表!$A$5:$A$1162,単価表!$G$5:$G$1162)) -> 2250 | H40: 2813
A41: 40011 | C41: =IF(ISBLANK($A41),"",LOOKUP($A41,単価表!$A$5:$A$1162,単価表!$B$5:$B$1162)) -> 小旋回0.12ﾊﾞｯｸﾎｳ | D41: =IF(ISBLANK($A41),"",IF(LOOKUP($A41,単価表!$A$5:$A$1162,単価表!$C$5:$C$1162)=0,"",LOOKUP($A41,単価表!$A$5:$A$1162,単価表!$C$5:$C$1162))) ->  | E41: =+E36 -> 1.25 | F41: 台 | G41: =IF(ISBLANK($A41),"",LOOKUP($A41,単価表!$A$5:$A$1162,単価表!$G$5:$G$1162)) -> 9000 | H41: 11250
A42: 41002 | C42: =IF(ISBLANK($A42),"",LOOKUP($A42,単価表!$A$5:$A$1162,単価表!$B$5:$B$1162)) -> 自社ﾀﾞﾝﾌﾟ | D42: =IF(ISBLANK($A42),"",IF(LOOKUP($A42,単価表!$A$5:$A$1162,単価表!$C$5:$C$1162)=0,"",LOOKUP($A42,単価表!$A$5:$A$1162,単価表!$C$5:$C$1162))) ->  | E42: =+E36 -> 1.25 | F42: 台 | G42: =IF(ISBLANK($A42),"",LOOKUP($A42,単価表!$A$5:$A$1162,単価表!$G$5:$G$1162)) -> 9000 | H42: 11250
A43: 40001 | C43: =IF(ISBLANK($A43),"",LOOKUP($A43,単価表!$A$5:$A$1162,単価表!$B$5:$B$1162)) -> ﾗﾝﾏｰ･ﾌﾟﾚｰﾄ | D43: =IF(ISBLANK($A43),"",IF(LOOKUP($A43,単価表!$A$5:$A$1162,単価表!$C$5:$C$1162)=0,"",LOOKUP($A43,単価表!$A$5:$A$1162,単価表!$C$5:$C$1162))) ->  | E43: =+E36 -> 1.25 | F43: 台 | G43: =IF(ISBLANK($A43),"",LOOKUP($A43,単価表!$A$5:$A$1162,単価表!$G$5:$G$1162)) -> 765 | H43: 956
A44: 40000 | C44: =IF(ISBLANK($A44),"",LOOKUP($A44,単価表!$A$5:$A$1162,単価表!$B$5:$B$1162)) -> 油脂燃料 | D44: =IF(ISBLANK($A44),"",IF(LOOKUP($A44,単価表!$A$5:$A$1162,単価表!$C$5:$C$1162)=0,"",LOOKUP($A44,単価表!$A$5:$A$1162,単価表!$C$5:$C$1162))) ->  | E44: =SUM(E40:E43) -> 5 | F44: 台日 | G44: =IF(ISBLANK($A44),"",LOOKUP($A44,単価表!$A$5:$A$1162,単価表!$G$5:$G$1162)) -> 1500 | H44: 7500
A45: 20100 | C45: =IF(ISBLANK($A45),"",LOOKUP($A45,単価表!$A$5:$A$1162,単価表!$B$5:$B$1162)) -> 作業員 昼間 | D45: 3 | E45: =+E36*D45 -> 3.75 | F45: 人 | G45: =IF(ISBLANK($A45),"",LOOKUP($A45,単価表!$A$5:$A$1162,単価表!$G$5:$G$1162)) -> 40500 | H45: 151875
C46: 化粧CB積工 | D46: ｔ=140 2段積み | E46: =+E34 -> 100 | F46: ｍ | G46: =IF(E46=0,"",ROUND(SUM(H47:H58)/E46,0)) -> 6095
A47: 80000 | C47: =IF(ISBLANK($A47),"",LOOKUP($A47,単価表!$A$5:$A$1162,単価表!$B$5:$B$1162)) -> 所要日数 | D47: 120 | E47: =CEILING(E46/D47,0.01) -> 0.84 | F47: 日 | G47: =IF(ISBLANK($A47),"",LOOKUP($A47,単価表!$A$5:$A$1162,単価表!$G$5:$G$1162)) -> 0 | H47: =IF(ISBLANK($A47),"",ROUND(E47*G47,0)) -> 0
A48: 99999 | C48: 諸雑費 ﾓﾙﾀﾙ・鉄筋 | D48: 0.4 | E48: =+E46*D48 -> 40 | F48: ｍ2 | G48: 1400 | H48: 56000
A49: 99999 | C49: 化粧ＣＢ W=140 材料費 | D49: 2 | E49: =CEILING(E46/0.4*D49,D49) -> 500 | F49: 個 | G49: 450 | H49: 225000
A50: 99999 | C50: 化粧ＣＢ W=140 | D50: 積手間 | E50: =+E49 -> 500 | F50: 個 | G50: 500 | H50: 250000
A51: 99999 | C51: 化粧ＣＢ W=140 | D51: モルタル詰手間 | E51: =+E50 -> 500 | F51: 個 | G51: 65 | H51: 32500
A52: 40023 | C52: =IF(ISBLANK($A52),"",LOOKUP($A52,単価表!$A$5:$A$1162,単価表!$B$5:$B$1162)) -> 諸機械 発電器,ｅｔｃ | D52: =IF(ISBLANK($A52),"",IF(LOOKUP($A52,単価表!$A$5:$A$1162,単価表!$C$5:$C$1162)=0,"",LOOKUP($A52,単価表!$A$5:$A$1162,単価表!$C$5:$C$1162))) ->  | E52: =+E47 -> 0.84 | F52: 台 | G52: =IF(ISBLANK($A52),"",LOOKUP($A52,単価表!$A$5:$A$1162,単価表!$G$5:$G$1162)) -> 2250 | H52: 1890
A53: 41002 | C53: =IF(ISBLANK($A53),"",LOOKUP($A53,単価表!$A$5:$A$1162,単価表!$B$5:$B$1162)) -> 自社ﾀﾞﾝﾌﾟ | D53: =IF(ISBLANK($A53),"",IF(LOOKUP($A53,単価表!$A$5:$A$1162,単価表!$C$5:$C$1162)=0,"",LOOKUP($A53,単価表!$A$5:$A$1162,単価表!$C$5:$C$1162))) ->  | E53: =+E47 -> 0.84 | F53: 台 | G53: =IF(ISBLANK($A53),"",LOOKUP($A53,単価表!$A$5:$A$1162,単価表!$G$5:$G$1162)) -> 9000 | H53: 7560
A54: 40000 | C54: =IF(ISBLANK($A54),"",LOOKUP($A54,単価表!$A$5:$A$1162,単価表!$B$5:$B$1162)) -> 油脂燃料 | D54: =IF(ISBLANK($A54),"",IF(LOOKUP($A54,単価表!$A$5:$A$1162,単価表!$C$5:$C$1162)=0,"",LOOKUP($A54,単価表!$A$5:$A$1162,単価表!$C$5:$C$1162))) ->  | E54: =SUM(E52:E53) -> 1.68 | F54: 台日 | G54: =IF(ISBLANK($A54),"",LOOKUP($A54,単価表!$A$5:$A$1162,単価表!$G$5:$G$1162)) -> 1500 | H54: 2520
A55: 20100 | C55: =IF(ISBLANK($A55),"",LOOKUP($A55,単価表!$A$5:$A$1162,単価表!$B$5:$B$1162)) -> 作業員 昼間 | D55: 1 | E55: =+E47*D55 -> 0.84 | F55: 人 | G55: =IF(ISBLANK($A55),"",LOOKUP($A55,単価表!$A$5:$A$1162,単価表!$G$5:$G$1162)) -> 40500 | H55: 34020
D58: =IF(ISBLANK($A58),"",IF(LOOKUP($A58,単価表!$A$5:$A$1162,単価表!$C$5:$C$1162)=0,"",LOOKUP($A58,単価表!$A$5:$A$1162,単価表!$C$5:$C$1162))) -> 

Sheet 舗装工事
A1: 1
A3: コード | B3: 中分類 | C3: 工 種 | D3: 詳 細 | E3: 数量 | F3: 単位 | G3: 単価 | H3: 金額
C4: 舗装工事
A6: 1 | B6: 舗装打換工 | C6: 道路舗装打換工 | D6: AS：t=50 表層のみ 廃材運搬処分共 | E6: 100 | F6: ｍ2 | G6: =ROUND(H6/E6,0) -> 5883 | H6: =SUM(H7:INDEX(H7:H$96,IFERROR(MATCH(1,$A7:$A$96,0),ROWS($A7:$A$96)+1)-1)) -> 588272
C7: 既設舗装版撤去 | D7: AS：t=50 廃材運搬処分共 | E7: =+E6 -> 100 | F7: ｍ2 | G7: =IF(E7=0,"",ROUND(SUM(H8:H15)/E7,0)) -> 1090 | H7: =IF(ISBLANK($A7),"",ROUND(E7*G7,0)) -> 
A8: 80000 | C8: =IF(ISBLANK($A8),"",LOOKUP($A8,単価表!$A$5:$A$1162,単価表!$B$5:$B$1162)) -> 所要日数 | D8: 350 | E8: =CEILING(E7/D8,0.01) -> 0.29 | F8: 日 | G8: =IF(ISBLANK($A8),"",LOOKUP($A8,単価表!$A$5:$A$1162,単価表!$G$5:$G$1162)) -> 0 | H8: 0
A9: 30100 | C9: =IF(ISBLANK($A9),"",LOOKUP($A9,単価表!$A$5:$A$1162,単価表!$B$5:$B$1162)) -> ＡＳ舗装切断(半日) | D9: =IF(ISBLANK($A9),"",IF(LOOKUP($A9,単価表!$A$5:$A$1162,単価表!$C$5:$C$1162)=0,"",LOOKUP($A9,単価表!$A$5:$A$1162,単価表!$C$5:$C$1162))) -> 半日常傭 | E9: 1 | F9: 式 | G9: =IF(ISBLANK($A9),"",LOOKUP($A9,単価表!$A$5:$A$1162,単価表!$G$5:$G$1162)) -> 22500 | H9: 22500
A10: 30207 | C10: =IF(ISBLANK($A10),"",LOOKUP($A10,単価表!$A$5:$A$1162,単価表!$B$5:$B$1162)) -> AS殻処分 | D10: =0.05*2.35 -> 0.1175 | E10: =CEILING(E7*D10,0.1) -> 11.8 | F10: ｔ | G10: =IF(ISBLANK($A10),"",LOOKUP($A10,単価表!$A$5:$A$1162,単価表!$G$5:$G$1162)) -> 1200 | H10: 14160
A11: 40047 | C11: =IF(ISBLANK($A11),"",LOOKUP($A11,単価表!$A$5:$A$1162,単価表!$B$5:$B$1162)) -> 4ｔﾀﾞﾝﾌﾟ 常傭 | D11: 4 | E11: =+E10/4/D11 -> 0.7375 | F11: 台 | G11: =IF(ISBLANK($A11),"",LOOKUP($A11,単価表!$A$5:$A$1162,単価表!$G$5:$G$1162)) -> 42000 | H11: 30975
A12: 40011 | C12: =IF(ISBLANK($A12),"",LOOKUP($A12,単価表!$A$5:$A$1162,単価表!$B$5:$B$1162)) -> 小旋回0.12ﾊﾞｯｸﾎｳ | D12: =IF(ISBLANK($A12),"",IF(LOOKUP($A12,単価表!$A$5:$A$1162,単価表!$C$5:$C$1162)=0,"",LOOKUP($A12,単価表!$A$5:$A$1162,単価表!$C$5:$C$1162))) ->  | E12: =+E8 -> 0.29 | F12: 台 | G12: =IF(ISBLANK($A12),"",LOOKUP($A12,単価表!$A$5:$A$1162,単価表!$G$5:$G$1162)) -> 9000 | H12: 2610
A13: 41002 | C13: =IF(ISBLANK($A13),"",LOOKUP($A13,単価表!$A$5:$A$1162,単価表!$B$5:$B$1162)) -> 自社ﾀﾞﾝﾌﾟ | D13: =IF(ISBLANK($A13),"",IF(LOOKUP($A13,単価表!$A$5:$A$1162,単価表!$C$5:$C$1162)=0,"",LOOKUP($A13,単価表!$A$5:$A$1162,単価表!$C$5:$C$1162))) ->  | E13: =+E8 -> 0.29 | F13: 台 | G13: =IF(ISBLANK($A13),"",LOOKUP($A13,単価表!$A$5:$A$1162,単価表!$G$5:$G$1162)) -> 9000 | H13: 2610
A14: 40000 | C14: =IF(ISBLANK($A14),"",LOOKUP($A14,単価表!$A$5:$A$1162,単価表!$B$5:$B$1162)) -> 油脂燃料 | E14: =SUM(E12:E13) -> 0.58 | F14: 台日 | G14: =IF(ISBLANK($A14),"",LOOKUP($A14,単価表!$A$5:$A$1162,単価表!$G$5:$G$1162)) -> 1500 | H14: 870
A15: 20100 | C15: =IF(ISBLANK($A15),"",LOOKUP($A15,単価表!$A$5:$A$1162,単価表!$B$5:$B$1162)) -> 作業員 昼間 | D15: 3 | E15: =E8*D15 -> 0.87 | F15: 人 | G15: =IF(ISBLANK($A15),"",LOOKUP($A15,単価表!$A$5:$A$1162,単価表!$G$5:$G$1162)) -> 40500 | H15: 35235
C16: 路盤不陸整正 RC-40 t=3cm | E16: =+E6 -> 100 | F16: ｍ2 | G16: =IF(E16=0,"",ROUND(SUM(H17:H24)/E16,0)) -> 395
A17: 80000 | C17: =IF(ISBLANK($A17),"",LOOKUP($A17,単価表!$A$5:$A$1162,単価表!$B$5:$B$1162)) -> 所要日数 | D17: 800 | E17: =CEILING(E16/D17,0.01) -> 0.13 | F17: 日 | G17: =IF(ISBLANK($A17),"",LOOKUP($A17,単価表!$A$5:$A$1162,単価表!$G$5:$G$1162)) -> 0 | H17: 0
A18: 10301 | C18: =IF(ISBLANK($A18),"",LOOKUP($A18,単価表!$A$5:$A$1162,単価表!$B$5:$B$1162)) -> RM-40(ﾌﾟﾗﾝﾄ) 小型 | D18: =0.03*1.28 -> 0.0384 | E18: =CEILING(E16*D18,0.01) -> 3.84 | F18: ｍ3 | G18: =IF(ISBLANK($A18),"",LOOKUP($A18,単価表!$A$5:$A$1162,単価表!$G$5:$G$1162)) -> 4800 | H18: 18432
A19: 40011 | C19: =IF(ISBLANK($A19),"",LOOKUP($A19,単価表!$A$5:$A$1162,単価表!$B$5:$B$1162)) -> 小旋回0.12ﾊﾞｯｸﾎｳ | D19: =IF(ISBLANK($A19),"",IF(LOOKUP($A19,単価表!$A$5:$A$1162,単価表!$C$5:$C$1162)=0,"",LOOKUP($A19,単価表!$A$5:$A$1162,単価表!$C$5:$C$1162))) ->  | E19: =+E17 -> 0.13 | F19: 台 | G19: =IF(ISBLANK($A19),"",LOOKUP($A19,単価表!$A$5:$A$1162,単価表!$G$5:$G$1162)) -> 9000 | H19: 1170
A20: 40003 | C20: =IF(ISBLANK($A20),"",LOOKUP($A20,単価表!$A$5:$A$1162,単価表!$B$5:$B$1162)) -> 2.5ｔｺﾝﾊﾞｲﾝﾄﾞﾛｰﾗｰ | D20: =IF(ISBLANK($A20),"",IF(LOOKUP($A20,単価表!$A$5:$A$1162,単価表!$C$5:$C$1162)=0,"",LOOKUP($A20,単価表!$A$5:$A$1162,単価表!$C$5:$C$1162))) -> 4ｔ | E20: =+E17 -> 0.13 | F20: 台 | G20: =IF(ISBLANK($A20),"",LOOKUP($A20,単価表!$A$5:$A$1162,単価表!$G$5:$G$1162)) -> 3300 | H20: 429
A21: 41002 | C21: =IF(ISBLANK($A21),"",LOOKUP($A21,単価表!$A$5:$A$1162,単価表!$B$5:$B$1162)) -> 自社ﾀﾞﾝﾌﾟ | D21: =IF(ISBLANK($A21),"",IF(LOOKUP($A21,単価表!$A$5:$A$1162,単価表!$C$5:$C$1162)=0,"",LOOKUP($A21,単価表!$A$5:$A$1162,単価表!$C$5:$C$1162))) ->  | E21: =+E17*2 -> 0.26 | F21: 台 | G21: =IF(ISBLANK($A21),"",LOOKUP($A21,単価表!$A$5:$A$1162,単価表!$G$5:$G$1162)) -> 9000 | H21: 2340
A22: 40001 | C22: =IF(ISBLANK($A22),"",LOOKUP($A22,単価表!$A$5:$A$1162,単価表!$B$5:$B$1162)) -> ﾗﾝﾏｰ･ﾌﾟﾚｰﾄ | D22: =IF(ISBLANK($A22),"",IF(LOOKUP($A22,単価表!$A$5:$A$1162,単価表!$C$5:$C$1162)=0,"",LOOKUP($A22,単価表!$A$5:$A$1162,単価表!$C$5:$C$1162))) ->  | E22: =+E17*2 -> 0.26 | F22: 台 | G22: =IF(ISBLANK($A22),"",LOOKUP($A22,単価表!$A$5:$A$1162,単価表!$G$5:$G$1162)) -> 765 | H22: 199
A23: 40000 | C23: =IF(ISBLANK($A23),"",LOOKUP($A23,単価表!$A$5:$A$1162,単価表!$B$5:$B$1162)) -> 油脂燃料 | D23: =IF(ISBLANK($A23),"",IF(LOOKUP($A23,単価表!$A$5:$A$1162,単価表!$C$5:$C$1162)=0,"",LOOKUP($A23,単価表!$A$5:$A$1162,単価表!$C$5:$C$1162))) ->  | E23: =SUM(E19:E22) -> 0.78 | F23: 台日 | G23: =IF(ISBLANK($A23),"",LOOKUP($A23,単価表!$A$5:$A$1162,単価表!$G$5:$G$1162)) -> 1500 | H23: 1170
A24: 20100 | C24: =IF(ISBLANK($A24),"",LOOKUP($A24,単価表!$A$5:$A$1162,単価表!$B$5:$B$1162)) -> 作業員 昼間 | D24: 3 | E24: =+E17*D24 -> 0.39 | F24: 人 | G24: =IF(ISBLANK($A24),"",LOOKUP($A24,単価表!$A$5:$A$1162,単価表!$G$5:$G$1162)) -> 40500 | H24: 15795
C25: 表層 密粒 t=5cm | E25: =+E6 -> 100 | F25: ｍ2 | G25: =IF(E25=0,"",ROUND(SUM(H26:H39)/E25,0)) -> 4398
A26: 80000 | C26: =IF(ISBLANK($A26),"",LOOKUP($A26,単価表!$A$5:$A$1162,単価表!$B$5:$B$1162)) -> 所要日数 | D26: 300 | E26: =CEILING(E25/D26,0.01) -> 0.34 | F26: 日 | G26: =IF(ISBLANK($A26),"",LOOKUP($A26,単価表!$A$5:$A$1162,単価表!$G$5:$G$1162)) -> 0 | H26: 0
A27: 10100 | C27: =IF(ISBLANK($A27),"",LOOKUP($A27,単価表!$A$5:$A$1162,単価表!$B$5:$B$1162)) -> 密粒13･20mm | D27: =0.05*2.35*1.08 -> 0.1269 | E27: =CEILING(E25*D27,0.5) -> 13 | F27: ｔ | G27: =IF(ISBLANK($A27),"",LOOKUP($A27,単価表!$A$5:$A$1162,単価表!$G$5:$G$1162)) -> 21000 | H27: 273000
A28: 10114 | C28: =IF(ISBLANK($A28),"",LOOKUP($A28,単価表!$A$5:$A$1162,単価表!$B$5:$B$1162)) -> 小型割増 | D28: 1 | E28: =CEILING(E27*D28,0.5) -> 13 | F28: ｔ | G28: =IF(ISBLANK($A28),"",LOOKUP($A28,単価表!$A$5:$A$1162,単価表!$G$5:$G$1162)) -> 2250 | H28: 29250
A29: 10400 | C29: =IF(ISBLANK($A29),"",LOOKUP($A29,単価表!$A$5:$A$1162,単価表!$B$5:$B$1162)) -> 乳剤PK-3 | D29: 1.26 | E29: =CEILING(E25*D29,1) -> 126 | F29: ㍑ | G29: =IF(ISBLANK($A29),"",LOOKUP($A29,単価表!$A$5:$A$1162,単価表!$G$5:$G$1162)) -> 150 | H29: 18900
A30: 10113 | C30: =IF(ISBLANK($A30),"",LOOKUP($A30,単価表!$A$5:$A$1162,単価表!$B$5:$B$1162)) -> 諸雑費 | E30: =CEILING(E25,1) -> 100 | F30: ｍ2 | G30: =IF(ISBLANK($A30),"",LOOKUP($A30,単価表!$A$5:$A$1162,単価表!$G$5:$G$1162)) -> 30 | H30: 3000
A31: 40003 | C31: =IF(ISBLANK($A31),"",LOOKUP($A31,単価表!$A$5:$A$1162,単価表!$B$5:$B$1162)) -> 2.5ｔｺﾝﾊﾞｲﾝﾄﾞﾛｰﾗｰ | D31: =IF(ISBLANK($A31),"",IF(LOOKUP($A31,単価表!$A$5:$A$1162,単価表!$C$5:$C$1162)=0,"",LOOKUP($A31,単価表!$A$5:$A$1162,単価表!$C$5:$C$1162))) -> 4ｔ | E31: =+E26 -> 0.34 | F31: 台 | G31: =IF(ISBLANK($A31),"",LOOKUP($A31,単価表!$A$5:$A$1162,単価表!$G$5:$G$1162)) -> 3300 | H31: 1122
A32: 40011 | C32: =IF(ISBLANK($A32),"",LOOKUP($A32,単価表!$A$5:$A$1162,単価表!$B$5:$B$1162)) -> 小旋回0.12ﾊﾞｯｸﾎｳ | D32: =IF(ISBLANK($A32),"",IF(LOOKUP($A32,単価表!$A$5:$A$1162,単価表!$C$5:$C$1162)=0,"",LOOKUP($A32,単価表!$A$5:$A$1162,単価表!$C$5:$C$1162))) ->  | E32: =+E26 -> 0.34 | F32: 台 | G32: =IF(ISBLANK($A32),"",LOOKUP($A32,単価表!$A$5:$A$1162,単価表!$G$5:$G$1162)) -> 9000 | H32: 3060
A33: 40026 | C33: =IF(ISBLANK($A33),"",LOOKUP($A33,単価表!$A$5:$A$1162,単価表!$B$5:$B$1162)) -> 諸機械 ｽﾌﾟﾚｰﾔｰ | D33: =IF(ISBLANK($A33),"",IF(LOOKUP($A33,単価表!$A$5:$A$1162,単価表!$C$5:$C$1162)=0,"",LOOKUP($A33,単価表!$A$5:$A$1162,単価表!$C$5:$C$1162))) ->  | E33: =+E26 -> 0.34 | F33: 台 | G33: =IF(ISBLANK($A33),"",LOOKUP($A33,単価表!$A$5:$A$1162,単価表!$G$5:$G$1162)) -> 3750 | H33: 1275
A34: 41002 | C34: =IF(ISBLANK($A34),"",LOOKUP($A34,単価表!$A$5:$A$1162,単価表!$B$5:$B$1162)) -> 自社ﾀﾞﾝﾌﾟ | D34: =IF(ISBLANK($A34),"",IF(LOOKUP($A34,単価表!$A$5:$A$1162,単価表!$C$5:$C$1162)=0,"",LOOKUP($A34,単価表!$A$5:$A$1162,単価表!$C$5:$C$1162))) ->  | E34: =+E26*3 -> 1.02 | F34: 台 | G34: =IF(ISBLANK($A34),"",LOOKUP($A34,単価表!$A$5:$A$1162,単価表!$G$5:$G$1162)) -> 9000 | H34: 9180
A35: 40001 | C35: =IF(ISBLANK($A35),"",LOOKUP($A35,単価表!$A$5:$A$1162,単価表!$B$5:$B$1162)) -> ﾗﾝﾏｰ･ﾌﾟﾚｰﾄ | D35: =IF(ISBLANK($A35),"",IF(LOOKUP($A35,単価表!$A$5:$A$1162,単価表!$C$5:$C$1162)=0,"",LOOKUP($A35,単価表!$A$5:$A$1162,単価表!$C$5:$C$1162))) ->  | E35: =+E26*2 -> 0.68 | F35: 台 | G35: =IF(ISBLANK($A35),"",LOOKUP($A35,単価表!$A$5:$A$1162,単価表!$G$5:$G$1162)) -> 765 | H35: 520
A36: 40000 | C36: =IF(ISBLANK($A36),"",LOOKUP($A36,単価表!$A$5:$A$1162,単価表!$B$5:$B$1162)) -> 油脂燃料 | D36: =IF(ISBLANK($A36),"",IF(LOOKUP($A36,単価表!$A$5:$A$1162,単価表!$C$5:$C$1162)=0,"",LOOKUP($A36,単価表!$A$5:$A$1162,単価表!$C$5:$C$1162))) ->  | E36: =SUM(E31:E35) -> 2.72 | F36: 台日 | G36: =IF(ISBLANK($A36),"",LOOKUP($A36,単価表!$A$5:$A$1162,単価表!$G$5:$G$1162)) -> 1500 | H36: 4080
A37: 20100 | C37: =IF(ISBLANK($A37),"",LOOKUP($A37,単価表!$A$5:$A$1162,単価表!$B$5:$B$1162)) -> 作業員 昼間 | D37: 7 | E37: =+E26*D37 -> 2.38 | F37: 人 | G37: =IF(ISBLANK($A37),"",LOOKUP($A37,単価表!$A$5:$A$1162,単価表!$G$5:$G$1162)) -> 40500 | H37: 96390
H39: =IF(ISBLANK($A39),"",ROUND(E39*G39,0)) -> 
A40: 1 | B40: 車道舗装 | C40: 下層路盤(車道・路肩部) | D40: 再生ｸﾗｯｼｬﾗﾝ RC-40 仕上り厚 400ｍｍ | E40: 100 | F40: ｍ2 | G40: =ROUND(H40/E40,0) -> 2264 | H40: =SUM(H41:INDEX(H41:H$96,IFERROR(MATCH(1,$A41:$A$96,0),ROWS($A41:$A$96)+1)-1)) -> 226368
C41: 下層路盤 RC-40 t=40cm | E41: =+E40 -> 100 | F41: ｍ2 | G41: =IF(E41=0,"",ROUND(SUM(H42:H56)/E41,0)) -> 2264 | H41: =IF(ISBLANK($A41),"",ROUND(E41*G41,0)) -> 
A42: 80000 | C42: =IF(ISBLANK($A42),"",LOOKUP($A42,単価表!$A$5:$A$1162,単価表!$B$5:$B$1162)) -> 所要日数 | D42: 341.25 | E42: =CEILING(E41/D42,0.01) -> 0.3 | F42: 日 | G42: =IF(ISBLANK($A42),"",LOOKUP($A42,単価表!$A$5:$A$1162,単価表!$G$5:$G$1162)) -> 0 | H42: 0
A43: 10200 | C43: =IF(ISBLANK($A43),"",LOOKUP($A43,単価表!$A$5:$A$1162,単価表!$B$5:$B$1162)) -> RC-40(ﾌﾟﾗﾝﾄ) 大型 | D43: =0.4*1.28 -> 0.512 | E43: =CEILING(E41*D43,0.1) -> 51.2 | F43: ｍ3 | G43: =IF(ISBLANK($A43),"",LOOKUP($A43,単価表!$A$5:$A$1162,単価表!$G$5:$G$1162)) -> 2250 | H43: 115200
A44: 40048 | C44: =IF(ISBLANK($A44),"",LOOKUP($A44,単価表!$A$5:$A$1162,単価表!$B$5:$B$1162)) -> 8ｔﾀﾞﾝﾌﾟ 常傭 | D44: 1 | E44: =+E42*D44 -> 0.3 | F44: 台 | G44: =IF(ISBLANK($A44),"",LOOKUP($A44,単価表!$A$5:$A$1162,単価表!$G$5:$G$1162)) -> 54000 | H44: 16200
A45: 40008 | C45: =IF(ISBLANK($A45),"",LOOKUP($A45,単価表!$A$5:$A$1162,単価表!$B$5:$B$1162)) -> ﾌﾞﾙﾄﾞｰｻﾞｰ3ｔ（Ｄ20） ゴム | D45: 1 | E45: =+E42*D45 -> 0.3 | F45: 台 | G45: =IF(ISBLANK($A45),"",LOOKUP($A45,単価表!$A$5:$A$1162,単価表!$G$5:$G$1162)) -> 9300 | H45: 2790
A46: 40018 | C46: =IF(ISBLANK($A46),"",LOOKUP($A46,単価表!$A$5:$A$1162,単価表!$B$5:$B$1162)) -> ﾀｲﾔｼｮﾍﾞﾙ WA40 0.5ｍ3 | D46: 1 | E46: =+E42*D46 -> 0.3 | F46: 台 | G46: =IF(ISBLANK($A46),"",LOOKUP($A46,単価表!$A$5:$A$1162,単価表!$G$5:$G$1162)) -> 13500 | H46: 4050
A47: 40004 | C47: =IF(ISBLANK($A47),"",LOOKUP($A47,単価表!$A$5:$A$1162,単価表!$B$5:$B$1162)) -> 3ｔﾀｲﾔﾛｰﾗｰ | D47: 1 | E47: =+E42*D47 -> 0.3 | F47: 台 | G47: =IF(ISBLANK($A47),"",LOOKUP($A47,単価表!$A$5:$A$1162,単価表!$G$5:$G$1162)) -> 5100 | H47: 1530
A48: 40005 | C48: =IF(ISBLANK($A48),"",LOOKUP($A48,単価表!$A$5:$A$1162,単価表!$B$5:$B$1162)) -> 10ｔﾀｲﾔﾛｰﾗｰ | D48: 1 | E48: =+E42*D48 -> 0.3 | F48: 台 | G48: =IF(ISBLANK($A48),"",LOOKUP($A48,単価表!$A$5:$A$1162,単価表!$G$5:$G$1162)) -> 9750 | H48: 2925
A49: 40006 | C49: =IF(ISBLANK($A49),"",LOOKUP($A49,単価表!$A$5:$A$1162,単価表!$B$5:$B$1162)) -> 4ｔ鉄輪ﾛｰﾗｰ | D49: 1 | E49: =+E42*D49 -> 0.3 | F49: 台 | G49: =IF(ISBLANK($A49),"",LOOKUP($A49,単価表!$A$5:$A$1162,単価表!$G$5:$G$1162)) -> 5100 | H49: 1530
A50: 40007 | C50: =IF(ISBLANK($A50),"",LOOKUP($A50,単価表!$A$5:$A$1162,単価表!$B$5:$B$1162)) -> 10ｔ鉄輪ﾛｰﾗｰ | D50: 1 | E50: =+E42*D50 -> 0.3 | F50: 台 | G50: =IF(ISBLANK($A50),"",LOOKUP($A50,単価表!$A$5:$A$1162,単価表!$G$5:$G$1162)) -> 9750 | H50: 2925
A51: 41002 | C51: =IF(ISBLANK($A51),"",LOOKUP($A51,単価表!$A$5:$A$1162,単価表!$B$5:$B$1162)) -> 自社ﾀﾞﾝﾌﾟ | D51: 2 | E51: =+E42*2*D51 -> 1.2 | F51: 台 | G51: =IF(ISBLANK($A51),"",LOOKUP($A51,単価表!$A$5:$A$1162,単価表!$G$5:$G$1162)) -> 9000 | H51: 10800
A52: 40001 | C52: =IF(ISBLANK($A52),"",LOOKUP($A52,単価表!$A$5:$A$1162,単価表!$B$5:$B$1162)) -> ﾗﾝﾏｰ･ﾌﾟﾚｰﾄ | D52: 2 | E52: =+E42*2*D52 -> 1.2 | F52: 台 | G52: =IF(ISBLANK($A52),"",LOOKUP($A52,単価表!$A$5:$A$1162,単価表!$G$5:$G$1162)) -> 765 | H52: 918
A53: 40000 | C53: =IF(ISBLANK($A53),"",LOOKUP($A53,単価表!$A$5:$A$1162,単価表!$B$5:$B$1162)) -> 油脂燃料 | D53: =IF(ISBLANK($A53),"",IF(LOOKUP($A53,単価表!$A$5:$A$1162,単価表!$C$5:$C$1162)=0,"",LOOKUP($A53,単価表!$A$5:$A$1162,単価表!$C$5:$C$1162))) ->  | E53: =SUM(E44:E52) -> 4.5 | F53: 台日 | G53: =IF(ISBLANK($A53),"",LOOKUP($A53,単価表!$A$5:$A$1162,単価表!$G$5:$G$1162)) -> 1500 | H53: 6750
A54: 20100 | C54: =IF(ISBLANK($A54),"",LOOKUP($A54,単価表!$A$5:$A$1162,単価表!$B$5:$B$1162)) -> 作業員 昼間 | D54: 5 | E54: =+E42*D54 -> 1.5 | F54: 人 | G54: =IF(ISBLANK($A54),"",LOOKUP($A54,単価表!$A$5:$A$1162,単価表!$G$5:$G$1162)) -> 40500 | H54: 60750
A57: 1 | B57: 歩道及び小規模舗装 | C57: 下層路盤(歩道部) | D57: 再生ｸﾗｯｼｬﾗﾝ RC-40 仕上り厚 100ｍｍ | E57: 100 | F57: ｍ2 | G57: =ROUND(H57/E57,0) -> 1054 | H57: =SUM(H58:INDEX(H58:H$96,IFERROR(MATCH(1,$A58:$A$96,0),ROWS($A58:$A$96)+1)-1)) -> 105363
C58: 下層路盤 RC-40 t=10cm | E58: =+E57 -> 100 | F58: ｍ2 | G58: =IF(E58=0,"",ROUND(SUM(H59:H71)/E58,0)) -> 1054 | H58: =IF(ISBLANK($A58),"",ROUND(E58*G58,0)) -> 
A59: 80000 | C59: =IF(ISBLANK($A59),"",LOOKUP($A59,単価表!$A$5:$A$1162,単価表!$B$5:$B$1162)) -> 所要日数 | D59: 341.25 | E59: =CEILING(E58/D59,0.01) -> 0.3 | F59: 日 | G59: =IF(ISBLANK($A59),"",LOOKUP($A59,単価表!$A$5:$A$1162,単価表!$G$5:$G$1162)) -> 0 | H59: 0
A60: 10200 | C60: =IF(ISBLANK($A60),"",LOOKUP($A60,単価表!$A$5:$A$1162,単価表!$B$5:$B$1162)) -> RC-40(ﾌﾟﾗﾝﾄ) 大型 | D60: =0.1*1.28 -> 0.128 | E60: =CEILING(E58*D60,0.1) -> 12.8 | F60: ｍ3 | G60: =IF(ISBLANK($A60),"",LOOKUP($A60,単価表!$A$5:$A$1162,単価表!$G$5:$G$1162)) -> 2250 | H60: 28800
A61: 40011 | C61: =IF(ISBLANK($A61),"",LOOKUP($A61,単価表!$A$5:$A$1162,単価表!$B$5:$B$1162)) -> 小旋回0.12ﾊﾞｯｸﾎｳ | D61: 1 | E61: =+E59*D61 -> 0.3 | F61: 台 | G61: =IF(ISBLANK($A61),"",LOOKUP($A61,単価表!$A$5:$A$1162,単価表!$G$5:$G$1162)) -> 9000 | H61: 2700
A62: 40018 | C62: =IF(ISBLANK($A62),"",LOOKUP($A62,単価表!$A$5:$A$1162,単価表!$B$5:$B$1162)) -> ﾀｲﾔｼｮﾍﾞﾙ WA40 0.5ｍ3 | D62: 1 | E62: =+E59*D62 -> 0.3 | F62: 台 | G62: =IF(ISBLANK($A62),"",LOOKUP($A62,単価表!$A$5:$A$1162,単価表!$G$5:$G$1162)) -> 13500 | H62: 4050
A63: 40004 | C63: =IF(ISBLANK($A63),"",LOOKUP($A63,単価表!$A$5:$A$1162,単価表!$B$5:$B$1162)) -> 3ｔﾀｲﾔﾛｰﾗｰ | D63: 1 | E63: =+E59*D63 -> 0.3 | F63: 台 | G63: =IF(ISBLANK($A63),"",LOOKUP($A63,単価表!$A$5:$A$1162,単価表!$G$5:$G$1162)) -> 5100 | H63: 1530
A64: 40006 | C64: =IF(ISBLANK($A64),"",LOOKUP($A64,単価表!$A$5:$A$1162,単価表!$B$5:$B$1162)) -> 4ｔ鉄輪ﾛｰﾗｰ | D64: 1 | E64: =+E59*D64 -> 0.3 | F64: 台 | G64: =IF(ISBLANK($A64),"",LOOKUP($A64,単価表!$A$5:$A$1162,単価表!$G$5:$G$1162)) -> 5100 | H64: 1530
A65: 40002 | C65: =IF(ISBLANK($A65),"",LOOKUP($A65,単価表!$A$5:$A$1162,単価表!$B$5:$B$1162)) -> ﾊﾝﾄﾞﾛｰﾗｰ | D65: 1 | E65: =+E59*D65 -> 0.3 | F65: 台 | G65: =IF(ISBLANK($A65),"",LOOKUP($A65,単価表!$A$5:$A$1162,単価表!$G$5:$G$1162)) -> 1950 | H65: 585
A66: 41002 | C66: =IF(ISBLANK($A66),"",LOOKUP($A66,単価表!$A$5:$A$1162,単価表!$B$5:$B$1162)) -> 自社ﾀﾞﾝﾌﾟ | D66: 2 | E66: =+E59*2*D66 -> 1.2 | F66: 台 | G66: =IF(ISBLANK($A66),"",LOOKUP($A66,単価表!$A$5:$A$1162,単価表!$G$5:$G$1162)) -> 9000 | H66: 10800
A67: 40001 | C67: =IF(ISBLANK($A67),"",LOOKUP($A67,単価表!$A$5:$A$1162,単価表!$B$5:$B$1162)) -> ﾗﾝﾏｰ･ﾌﾟﾚｰﾄ | D67: 2 | E67: =+E59*2*D67 -> 1.2 | F67: 台 | G67: =IF(ISBLANK($A67),"",LOOKUP($A67,単価表!$A$5:$A$1162,単価表!$G$5:$G$1162)) -> 765 | H67: 918
A68: 40000 | C68: =IF(ISBLANK($A68),"",LOOKUP($A68,単価表!$A$5:$A$1162,単価表!$B$5:$B$1162)) -> 油脂燃料 | D68: =IF(ISBLANK($A68),"",IF(LOOKUP($A68,単価表!$A$5:$A$1162,単価表!$C$5:$C$1162)=0,"",LOOKUP($A68,単価表!$A$5:$A$1162,単価表!$C$5:$C$1162))) ->  | E68: =SUM(E61:E67) -> 3.9 | F68: 台日 | G68: =IF(ISBLANK($A68),"",LOOKUP($A68,単価表!$A$5:$A$1162,単価表!$G$5:$G$1162)) -> 1500 | H68: 5850
A69: 20100 | C69: =IF(ISBLANK($A69),"",LOOKUP($A69,単価表!$A$5:$A$1162,単価表!$B$5:$B$1162)) -> 作業員 昼間 | D69: 4 | E69: =+E59*D69 -> 1.2 | F69: 人 | G69: =IF(ISBLANK($A69),"",LOOKUP($A69,単価表!$A$5:$A$1162,単価表!$G$5:$G$1162)) -> 40500 | H69: 48600
A72: 1 | B72: コンクリート舗装 | C72: 歩道コンクリート舗装工 | D72: CO：t=100 RC-40：t=100 | E72: 100 | F72: ｍ2 | G72: =ROUND(H72/E72,0) -> 6893 | H72: =SUM(H73:INDEX(H73:H$96,IFERROR(MATCH(1,$A73:$A$96,0),ROWS($A73:$A$96)+1)-1)) -> 689343
C73: 路床整正及び下層路盤工 | D73: RC-40 t=100 | E73: =+E72 -> 100 | F73: ｍ2 | G73: =IF(E73=0,"",ROUND(SUM(H74:H81)/E73,0)) -> 1001
A74: 80000 | C74: =IF(ISBLANK($A74),"",LOOKUP($A74,単価表!$A$5:$A$1162,単価表!$B$5:$B$1162)) -> 所要日数 | D74: 500 | E74: =CEILING(E73/D74,0.01) -> 0.2 | F74: 日 | G74: =IF(ISBLANK($A74),"",LOOKUP($A74,単価表!$A$5:$A$1162,単価表!$G$5:$G$1162)) -> 0 | H74: =IF(ISBLANK($A74),"",ROUND(E74*G74,0)) -> 0
A75: 10200 | C75: =IF(ISBLANK($A75),"",LOOKUP($A75,単価表!$A$5:$A$1162,単価表!$B$5:$B$1162)) -> RC-40(ﾌﾟﾗﾝﾄ) 大型 | D75: =0.1*1.28 -> 0.128 | E75: =CEILING(E72*D75,0.1) -> 12.8 | F75: ｍ3 | G75: =IF(ISBLANK($A75),"",LOOKUP($A75,単価表!$A$5:$A$1162,単価表!$G$5:$G$1162)) -> 2250 | H75: 28800
A76: 40018 | C76: =IF(ISBLANK($A76),"",LOOKUP($A76,単価表!$A$5:$A$1162,単価表!$B$5:$B$1162)) -> ﾀｲﾔｼｮﾍﾞﾙ WA40 0.5ｍ3 | D76: =IF(ISBLANK($A76),"",IF(LOOKUP($A76,単価表!$A$5:$A$1162,単価表!$C$5:$C$1162)=0,"",LOOKUP($A76,単価表!$A$5:$A$1162,単価表!$C$5:$C$1162))) -> 0.5ｍ3 | E76: =+E74 -> 0.2 | F76: 台 | G76: =IF(ISBLANK($A76),"",LOOKUP($A76,単価表!$A$5:$A$1162,単価表!$G$5:$G$1162)) -> 13500 | H76: 2700
A77: 40011 | C77: =IF(ISBLANK($A77),"",LOOKUP($A77,単価表!$A$5:$A$1162,単価表!$B$5:$B$1162)) -> 小旋回0.12ﾊﾞｯｸﾎｳ | D77: =IF(ISBLANK($A77),"",IF(LOOKUP($A77,単価表!$A$5:$A$1162,単価表!$C$5:$C$1162)=0,"",LOOKUP($A77,単価表!$A$5:$A$1162,単価表!$C$5:$C$1162))) ->  | E77: =+E74 -> 0.2 | F77: 台 | G77: =IF(ISBLANK($A77),"",LOOKUP($A77,単価表!$A$5:$A$1162,単価表!$G$5:$G$1162)) -> 9000 | H77: 1800
A78: 40003 | C78: =IF(ISBLANK($A78),"",LOOKUP($A78,単価表!$A$5:$A$1162,単価表!$B$5:$B$1162)) -> 2.5ｔｺﾝﾊﾞｲﾝﾄﾞﾛｰﾗｰ | D78: =IF(ISBLANK($A78),"",IF(LOOKUP($A78,単価表!$A$5:$A$1162,単価表!$C$5:$C$1162)=0,"",LOOKUP($A78,単価表!$A$5:$A$1162,単価表!$C$5:$C$1162))) -> 4ｔ | E78: =+E74 -> 0.2 | F78: 台 | G78: =IF(ISBLANK($A78),"",LOOKUP($A78,単価表!$A$5:$A$1162,単価表!$G$5:$G$1162)) -> 3300 | H78: 660
A79: 40001 | C79: =IF(ISBLANK($A79),"",LOOKUP($A79,単価表!$A$5:$A$1162,単価表!$B$5:$B$1162)) -> ﾗﾝﾏｰ･ﾌﾟﾚｰﾄ | D79: =IF(ISBLANK($A79),"",IF(LOOKUP($A79,単価表!$A$5:$A$1162,単価表!$C$5:$C$1162)=0,"",LOOKUP($A79,単価表!$A$5:$A$1162,単価表!$C$5:$C$1162))) ->  | E79: =+E74 -> 0.2 | F79: 台 | G79: =IF(ISBLANK($A79),"",LOOKUP($A79,単価表!$A$5:$A$1162,単価表!$G$5:$G$1162)) -> 765 | H79: 153
A80: 40000 | C80: =IF(ISBLANK($A80),"",LOOKUP($A80,単価表!$A$5:$A$1162,単価表!$B$5:$B$1162)) -> 油脂燃料 | D80: =IF(ISBLANK($A80),"",IF(LOOKUP($A80,単価表!$A$5:$A$1162,単価表!$C$5:$C$1162)=0,"",LOOKUP($A80,単価表!$A$5:$A$1162,単価表!$C$5:$C$1162))) ->  | E80: =SUM(E76:E79) -> 0.8 | F80: 台日 | G80: =IF(ISBLANK($A80),"",LOOKUP($A80,単価表!$A$5:$A$1162,単価表!$G$5:$G$1162)) -> 1500 | H80: 1200
A81: 20100 | C81: =IF(ISBLANK($A81),"",LOOKUP($A81,単価表!$A$5:$A$1162,単価表!$B$5:$B$1162)) -> 作業員 昼間 | D81: 8 | E81: =+E74*D81 -> 1.6 | F81: 人 | G81: =IF(ISBLANK($A81),"",LOOKUP($A81,単価表!$A$5:$A$1162,単価表!$G$5:$G$1162)) -> 40500 | H81: 64800
C82: 目地工 | E82: =CEILING((E72/5/5*5)+(E72),0.1) -> 120 | F82: ｍ | G82: =IF(E82=0,"",ROUND(SUM(H83:H84)/E82,0)) -> 1169
A83: 99999 | C83: 目地板 | E83: =+E82 -> 120 | F83: ｍ2 | G83: 1000 | H83: =IF(ISBLANK($A83),"",ROUND(E83*G83,0)) -> 120000
A84: 20100 | C84: =IF(ISBLANK($A84),"",LOOKUP($A84,単価表!$A$5:$A$1162,単価表!$B$5:$B$1162)) -> 作業員 昼間 | D84: =IF(ISBLANK($A84),"",IF(LOOKUP($A84,単価表!$A$5:$A$1162,単価表!$C$5:$C$1162)=0,"",LOOKUP($A84,単価表!$A$5:$A$1162,単価表!$C$5:$C$1162))) -> 社外 | E84: 0.5 | F84: 人 | G84: =IF(ISBLANK($A84),"",LOOKUP($A84,単価表!$A$5:$A$1162,単価表!$G$5:$G$1162)) -> 40500 | H84: =IF(ISBLANK($A84),"",ROUND(E84*G84,0)) -> 20250
C85: 表層工 | D85: CO ｔ＝100 | E85: =+E72 -> 100 | F85: ｍ2 | G85: =IF(E85=0,"",ROUND(SUM(H86:H96)/E85,0)) -> 4490
A86: 80000 | C86: =IF(ISBLANK($A86),"",LOOKUP($A86,単価表!$A$5:$A$1162,単価表!$B$5:$B$1162)) -> 所要日数 | D86: 300 | E86: =CEILING(E85/D86,0.01) -> 0.34 | F86: 日 | G86: =IF(ISBLANK($A86),"",LOOKUP($A86,単価表!$A$5:$A$1162,単価表!$G$5:$G$1162)) -> 0 | H86: =IF(ISBLANK($A86),"",ROUND(E86*G86,0)) -> 0
A87: 10502 | C87: =IF(ISBLANK($A87),"",LOOKUP($A87,単価表!$A$5:$A$1162,単価表!$B$5:$B$1162)) -> 生ｺﾝｸﾘｰﾄ 21-8 大型 | D87: =0.1*1.04 -> 0.104 | E87: =CEILING(E72*D87,0.5) -> 10.5 | F87: ｍ3 | G87: =IF(ISBLANK($A87),"",LOOKUP($A87,単価表!$A$5:$A$1162,単価表!$G$5:$G$1162)) -> 28650 | H87: 300825
A88: 99999 | C88: 鉄筋 材工共 | D88: Ｄ13 ＠250Ｗ | E88: =E85*5.6 -> 560 | F88: kg | G88: 110 | H88: 61600
A89: 99999 | C89: 諸雑費 | D89: ﾚｰﾙ、型枠 | E89: =+E85 -> 100 | F89: ｍ2 | G89: 200 | H89: 20000
A90: 40049 | C90: =IF(ISBLANK($A90),"",LOOKUP($A90,単価表!$A$5:$A$1162,単価表!$B$5:$B$1162)) -> ﾎﾟﾝﾌﾟ車 | D90: =IF(ISBLANK($A90),"",IF(LOOKUP($A90,単価表!$A$5:$A$1162,単価表!$C$5:$C$1162)=0,"",LOOKUP($A90,単価表!$A$5:$A$1162,単価表!$C$5:$C$1162))) -> 4ｔ | E90: =+E86 -> 0.34 | F90: 台 | G90: =IF(ISBLANK($A90),"",LOOKUP($A90,単価表!$A$5:$A$1162,単価表!$G$5:$G$1162)) -> 67500 | H90: 22950
A91: 40023 | C91: =IF(ISBLANK($A91),"",LOOKUP($A91,単価表!$A$5:$A$1162,単価表!$B$5:$B$1162)) -> 諸機械 発電器,ｅｔｃ | D91: =IF(ISBLANK($A91),"",IF(LOOKUP($A91,単価表!$A$5:$A$1162,単価表!$C$5:$C$1162)=0,"",LOOKUP($A91,単価表!$A$5:$A$1162,単価表!$C$5:$C$1162))) ->  | E91: =+E86 -> 0.34 | F91: 台 | G91: =IF(ISBLANK($A91),"",LOOKUP($A91,単価表!$A$5:$A$1162,単価表!$G$5:$G$1162)) -> 2250 | H91: 765
A92: 40000 | C92: =IF(ISBLANK($A92),"",LOOKUP($A92,単価表!$A$5:$A$1162,単価表!$B$5:$B$1162)) -> 油脂燃料 | D92: =IF(ISBLANK($A92),"",IF(LOOKUP($A92,単価表!$A$5:$A$1162,単価表!$C$5:$C$1162)=0,"",LOOKUP($A92,単価表!$A$5:$A$1162,単価表!$C$5:$C$1162))) ->  | E92: =SUM(E91:E91) -> 0.34 | F92: 台日 | G92: =IF(ISBLANK($A92),"",LOOKUP($A92,単価表!$A$5:$A$1162,単価表!$G$5:$G$1162)) -> 1500 | H92: 510
A93: 30108 | C93: =IF(ISBLANK($A93),"",LOOKUP($A93,単価表!$A$5:$A$1162,単価表!$B$5:$B$1162)) -> 左官仕上げ（ｍ2） | D93: 4 | E93: =+E86*D93 -> 1.36 | F93: ｍ2 | G93: =IF(ISBLANK($A93),"",LOOKUP($A93,単価表!$A$5:$A$1162,単価表!$G$5:$G$1162)) -> 750 | H93: 1020
A94: 20100 | C94: =IF(ISBLANK($A94),"",LOOKUP($A94,単価表!$A$5:$A$1162,単価表!$B$5:$B$1162)) -> 作業員 昼間 | D94: 3 | E94: =+E86*D94 -> 1.02 | F94: 人 | G94: =IF(ISBLANK($A94),"",LOOKUP($A94,単価表!$A$5:$A$1162,単価表!$G$5:$G$1162)) -> 40500 | H94: 41310
D95: =IF(ISBLANK($A95),"",IF(LOOKUP($A95,単価表!$A$5:$A$1162,単価表!$C$5:$C$1162)=0,"",LOOKUP($A95,単価表!$A$5:$A$1162,単価表!$C$5:$C$1162))) -> 
D96: =IF(ISBLANK($A96),"",IF(LOOKUP($A96,単価表!$A$5:$A$1162,単価表!$C$5:$C$1162)=0,"",LOOKUP($A96,単価表!$A$5:$A$1162,単価表!$C$5:$C$1162))) -> 

Sheet 仮設工事
A1: 1
A3: コード | B3: 中分類 | C3: 工 種 | D3: 詳 細 | E3: 数量 | F3: 単位 | G3: 単価 | H3: 金額
C4: 仮設工事
A6: 1 | B6: 仮囲工 | C6: 仮囲万能鋼板設置工 | D6: 安全鋼板(塗装品) H=2000 資材購入 | E6: 100 | F6: ｍ | G6: =ROUND(H6/E6,0) -> 16540 | H6: =SUM(H7:INDEX(H7:H$55,IFERROR(MATCH(1,$A7:$A$55,0),ROWS($A7:$A$55)+1)-1)) -> 1654040
A7: 80000 | C7: =IF(ISBLANK($A7),"",LOOKUP($A7,単価表!$A$5:$A$1162,単価表!$B$5:$B$1162)) -> 所要日数 | D7: 30 | E7: =CEILING(E6/D7,0.01) -> 3.34 | F7: 日 | G7: =IF(ISBLANK($A7),"",LOOKUP($A7,単価表!$A$5:$A$1162,単価表!$G$5:$G$1162)) -> 0 | H7: =IF(ISBLANK($A7),"",ROUND(E7*G7,0)) -> 0
A8: 99999 | C8: 万能鋼板（白塗装品） | D8: H=2.0m W=500 亜鉛ﾒｯｷ\2050/枚 | E8: =CEILING(E6*0.1*19.2,1) -> 192 | F8: 枚 | G8: 2900 | H8: 556800
A9: 99999 | C9: フックボルト | D9: １型 | E9: =CEILING(E6*8,1) -> 800 | F9: 組 | G9: 26 | H9: 20800
A10: 99999 | C10: 単管パイプ | D10: L=5.0m | E10: =CEILING(E6*0.387,1) -> 39 | F10: 本 | G10: 2170 | H10: 84630
A11: 99999 | C11: 単管パイプ | D11: L=2.0m | E11: =CEILING(E6*1.28,1) -> 128 | F11: 本 | G11: 880 | H11: 112640
A12: 99999 | C12: 単管パイプ | D12: L=1.5m | E12: =CEILING(E6*1.24,1) -> 124 | F12: 本 | G12: 655 | H12: 81220
A13: 99999 | C13: 単管パイプ | D13: L=1.0m | E13: =CEILING(E6*0.62,1) -> 62 | F13: 本 | G13: 435 | H13: 26970
A14: 99999 | C14: 切断費 | E14: =SUM(E11:E13) -> 314 | F14: 本 | G14: 50 | H14: 15700
A15: 99999 | C15: クランプ | D15: 自在 | E15: =CEILING(E6*5,1) -> 500 | F15: 個 | G15: 180 | H15: 90000
A16: 99999 | C16: ジョイント | E16: =+E10 -> 39 | F16: 個 | G16: 180 | H16: 7020
A17: 99999 | C17: 上記運搬費 | E17: 1 | F17: 式 | G17: 27000 | H17: 27000
A18: 40012 | C18: =IF(ISBLANK($A18),"",LOOKUP($A18,単価表!$A$5:$A$1162,単価表!$B$5:$B$1162)) -> 小旋回0.18ﾊﾞｯｸﾎｳ | D18: =IF(ISBLANK($A18),"",IF(LOOKUP($A18,単価表!$A$5:$A$1162,単価表!$C$5:$C$1162)=0,"",LOOKUP($A18,単価表!$A$5:$A$1162,単価表!$C$5:$C$1162))) ->  | E18: =+E7 -> 3.34 | F18: 台 | G18: =IF(ISBLANK($A18),"",LOOKUP($A18,単価表!$A$5:$A$1162,単価表!$G$5:$G$1162)) -> 11250 | H18: 37575
A19: 40023 | C19: =IF(ISBLANK($A19),"",LOOKUP($A19,単価表!$A$5:$A$1162,単価表!$B$5:$B$1162)) -> 諸機械 発電器,ｅｔｃ | D19: =IF(ISBLANK($A19),"",IF(LOOKUP($A19, 単価表!$A$5:$A$1162, 単価表!$C$5:$C$1162)=0,"",LOOKUP($A19, 単価表!$A$5:$A$1162, 単価表!$C$5:$C$1162))) ->  | E19: =+E7 -> 3.34 | F19: 台 | G19: =IF(ISBLANK($A19),"",LOOKUP($A19,単価表!$A$5:$A$1162,単価表!$G$5:$G$1162)) -> 2250 | H19: 7515
A20: 41002 | C20: =IF(ISBLANK($A20),"",LOOKUP($A20,単価表!$A$5:$A$1162,単価表!$B$5:$B$1162)) -> 自社ﾀﾞﾝﾌﾟ | D20: =IF(ISBLANK($A20),"",IF(LOOKUP($A20, 単価表!$A$5:$A$1162, 単価表!$C$5:$C$1162)=0,"",LOOKUP($A20, 単価表!$A$5:$A$1162, 単価表!$C$5:$C$1162))) ->  | E20: =+E7 -> 3.34 | F20: 台 | G20: =IF(ISBLANK($A20),"",LOOKUP($A20,単価表!$A$5:$A$1162,単価表!$G$5:$G$1162)) -> 9000 | H20: 30060
A21: 40000 | C21: =IF(ISBLANK($A21),"",LOOKUP($A21,単価表!$A$5:$A$1162,単価表!$B$5:$B$1162)) -> 油脂燃料 | D21: =IF(ISBLANK($A21),"",IF(LOOKUP($A21, 単価表!$A$5:$A$1162, 単価表!$C$5:$C$1162)=0,"",LOOKUP($A21, 単価表!$A$5:$A$1162, 単価表!$C$5:$C$1162))) ->  | E21: =SUM(E18:E20) -> 10.02 | F21: 台日 | G21: =IF(ISBLANK($A21),"",LOOKUP($A21,単価表!$A$5:$A$1162,単価表!$G$5:$G$1162)) -> 1500 | H21: 15030
A22: 20100 | C22: =IF(ISBLANK($A22),"",LOOKUP($A22,単価表!$A$5:$A$1162,単価表!$B$5:$B$1162)) -> 作業員 昼間 | D22: 4 | E22: =+E7*D22 -> 13.36 | F22: 人 | G22: =IF(ISBLANK($A22),"",LOOKUP($A22,単価表!$A$5:$A$1162,単価表!$G$5:$G$1162)) -> 40500 | H22: 541080
A25: 1 | B25: 山留め | C25: H鋼横矢板土留 | D25: H=3000 L=8.0ｍ | E25: 100 | F25: ｍ | G25: =ROUND(H25/E25,0) -> 25993 | H25: =SUM(H26:INDEX(H26:H$55,IFERROR(MATCH(1,$A26:$A$55,0),ROWS($A26:$A$55)+1)-1)) -> 2599289
C26: H鋼打込工 | D26: H鋼 L=8.0m 間詰ﾓﾙﾀﾙ | E26: =CEILING(7/1.5,1)*2 -> 10 | F26: 箇所 | G26: =IF(E26=0,"",ROUND(SUM(H27:H35)/E26,0)) -> 94448
A27: 80000 | C27: =IF(ISBLANK($A27),"",LOOKUP($A27,単価表!$A$5:$A$1162,単価表!$B$5:$B$1162)) -> 所要日数 | D27: 5 | E27: =CEILING(E26/D27,0.01) -> 2 | F27: 日 | G27: =IF(ISBLANK($A27),"",LOOKUP($A27,単価表!$A$5:$A$1162,単価表!$G$5:$G$1162)) -> 0 | H27: =IF(ISBLANK($A27),"",ROUND(E27*G27,0)) -> 0
A28: 99999 | C28: Ｈ鋼 | D28: 幅広 150 L=8000 | E28: =CEILING(E26*8*0.0311*1.05,0.001) -> 2.613 | F28: Ton | G28: 127000 | H28: 331851
A29: 10501 | C29: =IF(ISBLANK($A29),"",LOOKUP($A29,単価表!$A$5:$A$1162,単価表!$B$5:$B$1162)) -> 生ｺﾝｸﾘｰﾄ 18-8 小型 | E29: =CEILING(E26*0.3^2*PI()/4*5*1.06,0.5) -> 4 | F29: ｍ3 | G29: =IF(ISBLANK($A29),"",LOOKUP($A29,単価表!$A$5:$A$1162,単価表!$G$5:$G$1162)) -> 29400 | H29: 117600
A30: 40023 | C30: =IF(ISBLANK($A30),"",LOOKUP($A30,単価表!$A$5:$A$1162,単価表!$B$5:$B$1162)) -> 諸機械 発電器,ｅｔｃ | D30: =IF(ISBLANK($A30),"",IF(LOOKUP($A30, 単価表!$A$5:$A$1162, 単価表!$C$5:$C$1162)=0,"",LOOKUP($A30, 単価表!$A$5:$A$1162, 単価表!$C$5:$C$1162))) ->  | E30: =+E27 -> 2 | F30: 台 | G30: =IF(ISBLANK($A30),"",LOOKUP($A30,単価表!$A$5:$A$1162,単価表!$G$5:$G$1162)) -> 2250 | H30: 4500
A31: 41002 | C31: =IF(ISBLANK($A31),"",LOOKUP($A31,単価表!$A$5:$A$1162,単価表!$B$5:$B$1162)) -> 自社ﾀﾞﾝﾌﾟ | D31: =IF(ISBLANK($A31),"",IF(LOOKUP($A31, 単価表!$A$5:$A$1162, 単価表!$C$5:$C$1162)=0,"",LOOKUP($A31, 単価表!$A$5:$A$1162, 単価表!$C$5:$C$1162))) ->  | E31: =+E27 -> 2 | F31: 台 | G31: =IF(ISBLANK($A31),"",LOOKUP($A31,単価表!$A$5:$A$1162,単価表!$G$5:$G$1162)) -> 9000 | H31: 18000
A32: 40001 | C32: =IF(ISBLANK($A32),"",LOOKUP($A32,単価表!$A$5:$A$1162,単価表!$B$5:$B$1162)) -> ﾗﾝﾏｰ･ﾌﾟﾚｰﾄ | D32: =IF(ISBLANK($A32),"",IF(LOOKUP($A32, 単価表!$A$5:$A$1162, 単価表!$C$5:$C$1162)=0,"",LOOKUP($A32, 単価表!$A$5:$A$1162, 単価表!$C$5:$C$1162))) ->  | E32: =+E27 -> 2 | F32: 台 | G32: =IF(ISBLANK($A32),"",LOOKUP($A32,単価表!$A$5:$A$1162,単価表!$G$5:$G$1162)) -> 765 | H32: 1530
A33: 40000 | C33: =IF(ISBLANK($A33),"",LOOKUP($A33,単価表!$A$5:$A$1162,単価表!$B$5:$B$1162)) -> 油脂燃料 | D33: =IF(ISBLANK($A33),"",IF(LOOKUP($A33, 単価表!$A$5:$A$1162, 単価表!$C$5:$C$1162)=0,"",LOOKUP($A33, 単価表!$A$5:$A$1162, 単価表!$C$5:$C$1162))) ->  | E33: =SUM(E30:E32) -> 6 | F33: 台日 | G33: =IF(ISBLANK($A33),"",LOOKUP($A33,単価表!$A$5:$A$1162,単価表!$G$5:$G$1162)) -> 1500 | H33: 9000
A34: 20100 | C34: =IF(ISBLANK($A34),"",LOOKUP($A34,単価表!$A$5:$A$1162,単価表!$B$5:$B$1162)) -> 作業員 昼間 | D34: 2 | E34: =+E27*D34 -> 4 | F34: 人 | G34: =IF(ISBLANK($A34),"",LOOKUP($A34,単価表!$A$5:$A$1162,単価表!$G$5:$G$1162)) -> 40500 | H34: 162000
A35: 99999 | C35: H鋼打込 | D35: ｵｰｶﾞｰ掘削 H鋼建込 | E35: =+E27 -> 2 | F35: 式 | G35: 150000 | H35: 300000
C36: 横矢板設置工 | E36: =+E25 -> 100 | F36: ｍ | G36: =IF(E36=0,"",ROUND(SUM(H37:H46)/E36,0)) -> 16548
A37: 80000 | C37: =IF(ISBLANK($A37),"",LOOKUP($A37,単価表!$A$5:$A$1162,単価表!$B$5:$B$1162)) -> 所要日数 | D37: 14 | E37: =CEILING(E36/D37,0.01) -> 7.15 | F37: 日 | G37: =IF(ISBLANK($A37),"",LOOKUP($A37,単価表!$A$5:$A$1162,単価表!$G$5:$G$1162)) -> 0 | H37: =IF(ISBLANK($A37),"",ROUND(E37*G37,0)) -> 0
A38: 99999 | C38: 雑矢板 50ｍｍ | D38: 3.3 | E38: =CEILING(E36*D38,1) -> 330 | F38: ｍ2 | G38: 2000 | H38: 660000
A39: 99999 | C39: 諸雑費 | D39: 木材 | E39: 1 | F39: 式 | G39: 8000 | H39: 8000
A40: 40023 | C40: =IF(ISBLANK($A40),"",LOOKUP($A40,単価表!$A$5:$A$1162,単価表!$B$5:$B$1162)) -> 諸機械 発電器,ｅｔｃ | D40: =IF(ISBLANK($A40),"",IF(LOOKUP($A40, 単価表!$A$5:$A$1162, 単価表!$C$5:$C$1162)=0,"",LOOKUP($A40, 単価表!$A$5:$A$1162, 単価表!$C$5:$C$1162))) ->  | E40: =+E37 -> 7.15 | F40: 台 | G40: =IF(ISBLANK($A40),"",LOOKUP($A40,単価表!$A$5:$A$1162,単価表!$G$5:$G$1162)) -> 2250 | H40: 16088
A41: 41002 | C41: =IF(ISBLANK($A41),"",LOOKUP($A41,単価表!$A$5:$A$1162,単価表!$B$5:$B$1162)) -> 自社ﾀﾞﾝﾌﾟ | D41: =IF(ISBLANK($A41),"",IF(LOOKUP($A41, 単価表!$A$5:$A$1162, 単価表!$C$5:$C$1162)=0,"",LOOKUP($A41, 単価表!$A$5:$A$1162, 単価表!$C$5:$C$1162))) ->  | E41: =+E37 -> 7.15 | F41: 台 | G41: =IF(ISBLANK($A41),"",LOOKUP($A41,単価表!$A$5:$A$1162,単価表!$G$5:$G$1162)) -> 9000 | H41: 64350
A42: 40001 | C42: =IF(ISBLANK($A42),"",LOOKUP($A42,単価表!$A$5:$A$1162,単価表!$B$5:$B$1162)) -> ﾗﾝﾏｰ･ﾌﾟﾚｰﾄ | D42: =IF(ISBLANK($A42),"",IF(LOOKUP($A42, 単価表!$A$5:$A$1162, 単価表!$C$5:$C$1162)=0,"",LOOKUP($A42, 単価表!$A$5:$A$1162, 単価表!$C$5:$C$1162))) ->  | E42: =+E37 -> 7.15 | F42: 台 | G42: =IF(ISBLANK($A42),"",LOOKUP($A42,単価表!$A$5:$A$1162,単価表!$G$5:$G$1162)) -> 765 | H42: 5470
A43: 40000 | C43: =IF(ISBLANK($A43),"",LOOKUP($A43,単価表!$A$5:$A$1162,単価表!$B$5:$B$1162)) -> 油脂燃料 | D43: =IF(ISBLANK($A43),"",IF(LOOKUP($A43, 単価表!$A$5:$A$1162, 単価表!$C$5:$C$1162)=0,"",LOOKUP($A43, 単価表!$A$5:$A$1162, 単価表!$C$5:$C$1162))) ->  | E43: =SUM(E40:E42) -> 21.45 | F43: 台日 | G43: =IF(ISBLANK($A43),"",LOOKUP($A43,単価表!$A$5:$A$1162,単価表!$G$5:$G$1162)) -> 1500 | H43: 32175
A44: 20100 | C44: =IF(ISBLANK($A44),"",LOOKUP($A44,単価表!$A$5:$A$1162,単価表!$B$5:$B$1162)) -> 作業員 昼間 | D44: 3 | E44: =+E37*D44 -> 21.45 | F44: 人 | G44: =IF(ISBLANK($A44),"",LOOKUP($A44,単価表!$A$5:$A$1162,単価表!$G$5:$G$1162)) -> 40500 | H44: 868725
A47: 1 | B47: その他仮設 | C47: 木柵工 | D47: H=1300 | E47: 100 | F47: ｍ | G47: =ROUND(H47/E47,0) -> 1817 | H47: =SUM(H48:INDEX(H48:H$55,IFERROR(MATCH(1,$A48:$A$55,0),ROWS($A48:$A$55)+1)-1)) -> 181688
A48: 80000 | C48: =IF(ISBLANK($A48),"",LOOKUP($A48,単価表!$A$5:$A$1162,単価表!$B$5:$B$1162)) -> 所要日数 | D48: 150 | E48: =CEILING(E47/D48,0.01) -> 0.67 | F48: 日 | G48: =IF(ISBLANK($A48),"",LOOKUP($A48,単価表!$A$5:$A$1162,単価表!$G$5:$G$1162)) -> 0 | H48: =IF(ISBLANK($A48),"",ROUND(E48*G48,0)) -> 0
A49: 99999 | C49: 杉丸太 | D49: 末口7.5cm L=2.0m | E49: =CEILING(E47/10*7.4+6,1) -> 80 | F49: 本 | G49: 700 | H49: 56000
A50: 99999 | C50: 亜鉛引鉄線 | D50: ＃10 25kg/巻 | E50: =CEILING(E47/10*4.7/25,1) -> 2 | F50: 巻 | G50: 3400 | H50: 6800
A51: 99999 | C51: 又くぎ | E51: =CEILING(E49*5/100,1) -> 4 | F51: 袋 | G51: 200 | H51: 800
A52: 40011 | C52: =IF(ISBLANK($A52),"",LOOKUP($A52,単価表!$A$5:$A$1162,単価表!$B$5:$B$1162)) -> 小旋回0.12ﾊﾞｯｸﾎｳ | D52: =IF(ISBLANK($A52),"",IF(LOOKUP($A52,単価表!$A$5:$A$1162,単価表!$C$5:$C$1162)=0,"",LOOKUP($A52,単価表!$A$5:$A$1162,単価表!$C$5:$C$1162))) ->  | E52: =+E48 -> 0.67 | F52: 台 | G52: =IF(ISBLANK($A52),"",LOOKUP($A52,単価表!$A$5:$A$1162,単価表!$G$5:$G$1162)) -> 9000 | H52: 6030
A53: 40023 | C53: =IF(ISBLANK($A53),"",LOOKUP($A53,単価表!$A$5:$A$1162,単価表!$B$5:$B$1162)) -> 諸機械 発電器,ｅｔｃ | D53: =IF(ISBLANK($A53),"",IF(LOOKUP($A53,単価表!$A$5:$A$1162,単価表!$C$5:$C$1162)=0,"",LOOKUP($A53,単価表!$A$5:$A$1162,単価表!$C$5:$C$1162))) ->  | E53: =+E48 -> 0.67 | F53: 台 | G53: =IF(ISBLANK($A53),"",LOOKUP($A53,単価表!$A$5:$A$1162,単価表!$G$5:$G$1162)) -> 2250 | H53: 1508
A54: 40000 | C54: =IF(ISBLANK($A54),"",LOOKUP($A54,単価表!$A$5:$A$1162,単価表!$B$5:$B$1162)) -> 油脂燃料 | D54: =IF(ISBLANK($A54),"",IF(LOOKUP($A54,単価表!$A$5:$A$1162,単価表!$C$5:$C$1162)=0,"",LOOKUP($A54,単価表!$A$5:$A$1162,単価表!$C$5:$C$1162))) ->  | E54: =SUM(E52:E53) -> 1.34 | F54: 台日 | G54: =IF(ISBLANK($A54),"",LOOKUP($A54,単価表!$A$5:$A$1162,単価表!$G$5:$G$1162)) -> 1500 | H54: 2010
A55: 20100 | C55: =IF(ISBLANK($A55),"",LOOKUP($A55,単価表!$A$5:$A$1162,単価表!$B$5:$B$1162)) -> 作業員 昼間 | D55: 4 | E55: =E48*D55 -> 2.68 | F55: 人 | G55: =IF(ISBLANK($A55),"",LOOKUP($A55,単価表!$A$5:$A$1162,単価表!$G$5:$G$1162)) -> 40500 | H55: 108540

Sheet 景観金物
A1: 1
A3: コード | B3: 中分類 | C3: 工 種 | D3: 詳 細 | E3: 数量 | F3: 単位 | G3: 単価 | H3: 金額
C4: メッシュフェンス
A6: 1 | B6: メッシュフェンス | C6: メッシュフェンス | D6: H=1500 CB上施工 | E6: 100 | F6: ｍ | G6: =ROUND(H6/E6,0) -> 7287 | H6: =SUM(H7:INDEX(H7:H$83,IFERROR(MATCH(1,$A7:$A$83,0),ROWS($A7:$A$83)+1)-1)) -> 728717
C7: フェンス材料費 | D7: 定価の60% | E7: =+E6 -> 100 | F7: ｍ | G7: =IF(E7=0,"",ROUND(SUM(H8:H9)/E7,0)) -> 4543
A8: 99999 | C8: ﾒｯｼｭﾌｪﾝｽ H=1500 | D8: 6950 | E8: =CEILING(E7*1.05,2) -> 106 | F8: ｍ | G8: 4200 | H8: =IF(ISBLANK($A8),"",ROUND(E8*G8,0)) -> 445200
A9: 99999 | C9: 諸雑費 | D9: 0.02 | E9: 1 | F9: 式 | G9: 9072 | H9: =IF(ISBLANK($A9),"",ROUND(E9*G9,0)) -> 9072
C10: 建込工・組立 | E10: =+E6 -> 100 | F10: ｍ | G10: =IF(E10=0,"",ROUND(SUM(H11:H19)/E10,0)) -> 2744
A11: 80000 | C11: =IF(ISBLANK($A11),"",LOOKUP($A11,単価表!$A$5:$A$1162,単価表!$B$5:$B$1162)) -> 所要日数 | D11: 39 | E11: =CEILING(E10/D11,0.01) -> 2.57 | F11: 日 | G11: =IF(ISBLANK($A11),"",LOOKUP($A11,単価表!$A$5:$A$1162,単価表!$G$5:$G$1162)) -> 0 | H11: =IF(ISBLANK($A11),"",ROUND(E11*G11,0)) -> 0
A12: 10520 | C12: =IF(ISBLANK($A12),"",LOOKUP($A12,単価表!$A$5:$A$1162,単価表!$B$5:$B$1162)) -> ﾓﾙﾀﾙ | D12: =0.5*0.1^2*0.45*1.4 -> 0.00315 | E12: =CEILING(E10*D12,0.01) -> 0.32 | F12: ｍ3 | G12: =IF(ISBLANK($A12),"",LOOKUP($A12,単価表!$A$5:$A$1162,単価表!$G$5:$G$1162)) -> 37500 | H12: 12000
A13: 41002 | C13: =IF(ISBLANK($A13),"",LOOKUP($A13,単価表!$A$5:$A$1162,単価表!$B$5:$B$1162)) -> 自社ﾀﾞﾝﾌﾟ | D13: 1 | E13: =+E11*D13 -> 2.57 | F13: 台 | G13: =IF(ISBLANK($A13),"",LOOKUP($A13,単価表!$A$5:$A$1162,単価表!$G$5:$G$1162)) -> 9000 | H13: 23130
A14: 40023 | C14: =IF(ISBLANK($A14),"",LOOKUP($A14,単価表!$A$5:$A$1162,単価表!$B$5:$B$1162)) -> 諸機械 発電器,ｅｔｃ | D14: 1 | E14: =+E11*D14 -> 2.57 | F14: 台 | G14: =IF(ISBLANK($A14),"",LOOKUP($A14,単価表!$A$5:$A$1162,単価表!$G$5:$G$1162)) -> 2250 | H14: 5783
A15: 40000 | C15: =IF(ISBLANK($A15),"",LOOKUP($A15,単価表!$A$5:$A$1162,単価表!$B$5:$B$1162)) -> 油脂燃料 | E15: =SUM(E13:E14) -> 5.14 | F15: 台日 | G15: =IF(ISBLANK($A15),"",LOOKUP($A15,単価表!$A$5:$A$1162,単価表!$G$5:$G$1162)) -> 1500 | H15: 7710
A16: 20100 | C16: =IF(ISBLANK($A16),"",LOOKUP($A16,単価表!$A$5:$A$1162,単価表!$B$5:$B$1162)) -> 作業員 昼間 | D16: 2 | E16: =E11*D16 -> 5.14 | F16: 人 | G16: =IF(ISBLANK($A16),"",LOOKUP($A16,単価表!$A$5:$A$1162,単価表!$G$5:$G$1162)) -> 40500 | H16: 208170
A17: 99999 | C17: 諸雑費 | D17: 0.12 | E17: 1 | F17: 式 | G17: 17652 | H17: 17652
A20: 1 | B20: ネットフェンス | C20: ネットフェンス | D20: H=1200 □180*450独立基礎共 | E20: 100 | F20: ｍ | G20: =ROUND(H20/E20,0) -> 4452 | H20: =SUM(H21:INDEX(H21:H$83,IFERROR(MATCH(1,$A21:$A$83,0),ROWS($A21:$A$83)+1)-1)) -> 445210
A21: 80000 | C21: =IF(ISBLANK($A21),"",LOOKUP($A21,単価表!$A$5:$A$1162,単価表!$B$5:$B$1162)) -> 所要日数 | D21: 40 | E21: =CEILING(E20/D21,0.01) -> 2.5 | F21: 日 | G21: =IF(ISBLANK($A21),"",LOOKUP($A21,単価表!$A$5:$A$1162,単価表!$G$5:$G$1162)) -> 0 | H21: =IF(ISBLANK($A21),"",ROUND(E21*G21,0)) -> 0
A22: 99999 | C22: ネットフェンス | D22: =IF(ISBLANK($A22),"",IF(LOOKUP($A22,単価表!$A$5:$A$1162,単価表!$C$5:$C$1162)=0,"",LOOKUP($A22,単価表!$A$5:$A$1162,単価表!$C$5:$C$1162))) ->  | E22: =+E20 -> 100 | F22: ｍ | G22: 2564.1 | H22: =IF(ISBLANK($A22),"",ROUND(E22*G22,0)) -> 256410
A23: 99999 | C23: 設置・組立 | E23: =+E20 -> 100 | F23: ｍ | G23: 1600 | H23: =IF(ISBLANK($A23),"",ROUND(E23*G23,0)) -> 160000
A24: 99999 | C24: 独立基礎 | D24: □180*450 | E24: 16 | F24: 箇所 | G24: 1800 | H24: =IF(ISBLANK($A24),"",ROUND(E24*G24,0)) -> 28800
A27: 1 | B27: 独立基礎築造 | C27: フェンス独立基礎設置 | D27: □300*500 独立基礎共 | E27: 100 | F27: ｍ | G27: =ROUND(H27/E27,0) -> 4240 | H27: =SUM(H28:INDEX(H28:H$83,IFERROR(MATCH(1,$A28:$A$83,0),ROWS($A28:$A$83)+1)-1)) -> 423993
C28: 独立基礎工 | D28: □400 RC：ｔ=100 ﾓﾙﾀﾙ：ｔ=30 基礎ﾌﾞﾛｯｸ□300*500 | E28: =CEILING(E27/2+2,1) -> 52 | F28: 箇所 | G28: =IF(E28=0,"",ROUND(SUM(H29:H39)/E28,0)) -> 8154
A29: 80000 | C29: =IF(ISBLANK($A29),"",LOOKUP($A29,単価表!$A$5:$A$1162,単価表!$B$5:$B$1162)) -> 所要日数 | D29: 26 | E29: =CEILING(E28/D29,0.01) -> 2 | F29: 日 | G29: =IF(ISBLANK($A29),"",LOOKUP($A29,単価表!$A$5:$A$1162,単価表!$G$5:$G$1162)) -> 0 | H29: =IF(ISBLANK($A29),"",ROUND(E29*G29,0)) -> 0
A30: 10200 | C30: =IF(ISBLANK($A30),"",LOOKUP($A30,単価表!$A$5:$A$1162,単価表!$B$5:$B$1162)) -> RC-40(ﾌﾟﾗﾝﾄ) 大型 | D30: =0.4^2*0.1*1.28 -> 0.02048 | E30: =CEILING(E28*D30,0.01) -> 1.07 | F30: ｔ | G30: =IF(ISBLANK($A30),"",LOOKUP($A30,単価表!$A$5:$A$1162,単価表!$G$5:$G$1162)) -> 2250 | H30: 2408
A31: 10520 | C31: =IF(ISBLANK($A31),"",LOOKUP($A31,単価表!$A$5:$A$1162,単価表!$B$5:$B$1162)) -> ﾓﾙﾀﾙ | D31: =0.4^2*0.03*1.4 -> 0.00672 | E31: =CEILING(E28*D31,0.01) -> 0.35 | F31: ｍ3 | G31: =IF(ISBLANK($A31),"",LOOKUP($A31,単価表!$A$5:$A$1162,単価表!$G$5:$G$1162)) -> 37500 | H31: 13125
A32: 99999 | C32: 独立基礎ﾌﾞﾛｯｸ | D32: □300*500 79kg/個 | E32: =CEILING(E28*1,1) -> 52 | F32: 本 | G32: 2200 | H32: 114400
A33: 40011 | C33: =IF(ISBLANK($A33),"",LOOKUP($A33,単価表!$A$5:$A$1162,単価表!$B$5:$B$1162)) -> 小旋回0.12ﾊﾞｯｸﾎｳ | D33: =IF(ISBLANK($A33),"",IF(LOOKUP($A33,単価表!$A$5:$A$1162,単価表!$C$5:$C$1162)=0,"",LOOKUP($A33,単価表!$A$5:$A$1162,単価表!$C$5:$C$1162))) ->  | E33: =+E29 -> 2 | F33: 台 | G33: =IF(ISBLANK($A33),"",LOOKUP($A33,単価表!$A$5:$A$1162,単価表!$G$5:$G$1162)) -> 9000 | H33: 18000
A34: 41002 | C34: =IF(ISBLANK($A34),"",LOOKUP($A34,単価表!$A$5:$A$1162,単価表!$B$5:$B$1162)) -> 自社ﾀﾞﾝﾌﾟ | D34: =IF(ISBLANK($A34),"",IF(LOOKUP($A34,単価表!$A$5:$A$1162,単価表!$C$5:$C$1162)=0,"",LOOKUP($A34,単価表!$A$5:$A$1162,単価表!$C$5:$C$1162))) ->  | E34: =+E29 -> 2 | F34: 台 | G34: =IF(ISBLANK($A34),"",LOOKUP($A34,単価表!$A$5:$A$1162,単価表!$G$5:$G$1162)) -> 9000 | H34: 18000
A35: 40001 | C35: =IF(ISBLANK($A35),"",LOOKUP($A35,単価表!$A$5:$A$1162,単価表!$B$5:$B$1162)) -> ﾗﾝﾏｰ･ﾌﾟﾚｰﾄ | D35: =IF(ISBLANK($A35),"",IF(LOOKUP($A35,単価表!$A$5:$A$1162,単価表!$C$5:$C$1162)=0,"",LOOKUP($A35,単価表!$A$5:$A$1162,単価表!$C$5:$C$1162))) ->  | E35: =+E29*2 -> 4 | F35: 台 | G35: =IF(ISBLANK($A35),"",LOOKUP($A35,単価表!$A$5:$A$1162,単価表!$G$5:$G$1162)) -> 765 | H35: 3060
A36: 40000 | C36: =IF(ISBLANK($A36),"",LOOKUP($A36,単価表!$A$5:$A$1162,単価表!$B$5:$B$1162)) -> 油脂燃料 | D36: =IF(ISBLANK($A36),"",IF(LOOKUP($A36,単価表!$A$5:$A$1162,単価表!$C$5:$C$1162)=0,"",LOOKUP($A36,単価表!$A$5:$A$1162,単価表!$C$5:$C$1162))) ->  | E36: =SUM(E33:E35) -> 8 | F36: 台日 | G36: =IF(ISBLANK($A36),"",LOOKUP($A36,単価表!$A$5:$A$1162,単価表!$G$5:$G$1162)) -> 1500 | H36: 12000
A37: 20100 | C37: =IF(ISBLANK($A37),"",LOOKUP($A37,単価表!$A$5:$A$1162,単価表!$B$5:$B$1162)) -> 作業員 昼間 | D37: 3 | E37: =E29*D37 -> 6 | F37: 人 | G37: =IF(ISBLANK($A37),"",LOOKUP($A37,単価表!$A$5:$A$1162,単価表!$G$5:$G$1162)) -> 40500 | H37: 243000
A40: 1 | B40: バリカー設置 | C40: 車止めバリカー設置工 | D40: H800 φ89.1 基礎共 | E40: 10 | F40: 箇所 | G40: =ROUND(H40/E40,0) -> 44795 | H40: =SUM(H41:INDEX(H41:H$83,IFERROR(MATCH(1,$A41:$A$83,0),ROWS($A41:$A$83)+1)-1)) -> 447950
C41: 基礎工 | D41: □400 RC：ｔ=50 ＦＣ=□400*400 | E41: =+E40*2 -> 20 | F41: 箇所 | G41: =IF(E41=0,"",ROUND(SUM(H42:H50)/E41,0)) -> 11385
A42: 80000 | C42: =IF(ISBLANK($A42),"",LOOKUP($A42,単価表!$A$5:$A$1162,単価表!$B$5:$B$1162)) -> 所要日数 | D42: 19.5 | E42: =CEILING(E41/D42,0.01) -> 1.03 | F42: 日 | G42: =IF(ISBLANK($A42),"",LOOKUP($A42,単価表!$A$5:$A$1162,単価表!$G$5:$G$1162)) -> 0 | H42: =IF(ISBLANK($A42),"",ROUND(E42*G42,0)) -> 0
A43: 10200 | C43: =IF(ISBLANK($A43),"",LOOKUP($A43,単価表!$A$5:$A$1162,単価表!$B$5:$B$1162)) -> RC-40(ﾌﾟﾗﾝﾄ) 大型 | D43: =0.4^2*0.05*1.28 -> 0.01024 | E43: =CEILING(E41*D43,0.01) -> 0.21 | F43: ｔ | G43: =IF(ISBLANK($A43),"",LOOKUP($A43,単価表!$A$5:$A$1162,単価表!$G$5:$G$1162)) -> 2250 | H43: 473
A44: 10515 | C44: =IF(ISBLANK($A44),"",LOOKUP($A44,単価表!$A$5:$A$1162,単価表!$B$5:$B$1162)) -> 型枠 Ｂ | D44: =0.4*0.4*4 -> 0.64 | E44: =CEILING(E41*D44,0.01) -> 12.8 | F44: ｍ2 | G44: =IF(ISBLANK($A44),"",LOOKUP($A44,単価表!$A$5:$A$1162,単価表!$G$5:$G$1162)) -> 3000 | H44: 38400
A45: 10500 | C45: =IF(ISBLANK($A45),"",LOOKUP($A45,単価表!$A$5:$A$1162,単価表!$B$5:$B$1162)) -> 生ｺﾝｸﾘｰﾄ 18-8 大型 | D45: =0.4^2*0.4*1.04 -> 0.06656 | E45: =CEILING(E41*D45,0.01) -> 1.34 | F45: ｍ3 | G45: =IF(ISBLANK($A45),"",LOOKUP($A45,単価表!$A$5:$A$1162,単価表!$G$5:$G$1162)) -> 27900 | H45: 37386
A46: 40011 | C46: =IF(ISBLANK($A46),"",LOOKUP($A46,単価表!$A$5:$A$1162,単価表!$B$5:$B$1162)) -> 小旋回0.12ﾊﾞｯｸﾎｳ | D46: =IF(ISBLANK($A46),"",IF(LOOKUP($A46,単価表!$A$5:$A$1162,単価表!$C$5:$C$1162)=0,"",LOOKUP($A46,単価表!$A$5:$A$1162,単価表!$C$5:$C$1162))) ->  | E46: =+E42 -> 1.03 | F46: 台 | G46: =IF(ISBLANK($A46),"",LOOKUP($A46,単価表!$A$5:$A$1162,単価表!$G$5:$G$1162)) -> 9000 | H46: 9270
A47: 41002 | C47: =IF(ISBLANK($A47),"",LOOKUP($A47,単価表!$A$5:$A$1162,単価表!$B$5:$B$1162)) -> 自社ﾀﾞﾝﾌﾟ | D47: =IF(ISBLANK($A47),"",IF(LOOKUP($A47,単価表!$A$5:$A$1162,単価表!$C$5:$C$1162)=0,"",LOOKUP($A47,単価表!$A$5:$A$1162,単価表!$C$5:$C$1162))) ->  | E47: =+E42 -> 1.03 | F47: 台 | G47: =IF(ISBLANK($A47),"",LOOKUP($A47,単価表!$A$5:$A$1162,単価表!$G$5:$G$1162)) -> 9000 | H47: 9270
A48: 40001 | C48: =IF(ISBLANK($A48),"",LOOKUP($A48,単価表!$A$5:$A$1162,単価表!$B$5:$B$1162)) -> ﾗﾝﾏｰ･ﾌﾟﾚｰﾄ | D48: =IF(ISBLANK($A48),"",IF(LOOKUP($A48,単価表!$A$5:$A$1162,単価表!$C$5:$C$1162)=0,"",LOOKUP($A48,単価表!$A$5:$A$1162,単価表!$C$5:$C$1162))) ->  | E48: =+E42*2 -> 2.06 | F48: 台 | G48: =IF(ISBLANK($A48),"",LOOKUP($A48,単価表!$A$5:$A$1162,単価表!$G$5:$G$1162)) -> 765 | H48: 1576
A49: 40000 | C49: =IF(ISBLANK($A49),"",LOOKUP($A49,単価表!$A$5:$A$1162,単価表!$B$5:$B$1162)) -> 油脂燃料 | D49: =IF(ISBLANK($A49),"",IF(LOOKUP($A49,単価表!$A$5:$A$1162,単価表!$C$5:$C$1162)=0,"",LOOKUP($A49,単価表!$A$5:$A$1162,単価表!$C$5:$C$1162))) ->  | E49: =SUM(E46:E48) -> 4.12 | F49: 台日 | G49: =IF(ISBLANK($A49),"",LOOKUP($A49,単価表!$A$5:$A$1162,単価表!$G$5:$G$1162)) -> 1500 | H49: 6180
A50: 20100 | C50: =IF(ISBLANK($A50),"",LOOKUP($A50,単価表!$A$5:$A$1162,単価表!$B$5:$B$1162)) -> 作業員 昼間 | D50: 3 | E50: =E42*D50 -> 3.09 | F50: 人 | G50: =IF(ISBLANK($A50),"",LOOKUP($A50,単価表!$A$5:$A$1162,単価表!$G$5:$G$1162)) -> 40500 | H50: 125145
C51: ﾊﾞﾘｶｰ設置 | E51: =+E40 -> 10 | F51: 箇所 | G51: =IF(E51=0,"",ROUND(SUM(H52:H60)/E51,0)) -> 22025
A52: 80000 | C52: =IF(ISBLANK($A52),"",LOOKUP($A52,単価表!$A$5:$A$1162,単価表!$B$5:$B$1162)) -> 所要日数 | D52: 10 | E52: =CEILING(E51/D52,0.01) -> 1 | F52: 日 | G52: =IF(ISBLANK($A52),"",LOOKUP($A52,単価表!$A$5:$A$1162,単価表!$G$5:$G$1162)) -> 0 | H52: =IF(ISBLANK($A52),"",ROUND(E52*G52,0)) -> 0
A53: 99999 | C53: ﾊﾞﾘｶｰ本体 | E53: =+E51 -> 10 | F53: 基 | G53: 12000 | H53: 120000
A54: 99999 | C54: 諸雑費 | E54: =+E51 -> 10 | F54: 箇所 | G54: 500 | H54: 5000
A55: 40023 | C55: =IF(ISBLANK($A55),"",LOOKUP($A55,単価表!$A$5:$A$1162,単価表!$B$5:$B$1162)) -> 諸機械 発電器,ｅｔｃ | D55: =IF(ISBLANK($A55),"",IF(LOOKUP($A55,単価表!$A$5:$A$1162,単価表!$C$5:$C$1162)=0,"",LOOKUP($A55,単価表!$A$5:$A$1162,単価表!$C$5:$C$1162))) ->  | E55: =+E52 -> 1 | F55: 台 | G55: =IF(ISBLANK($A55),"",LOOKUP($A55,単価表!$A$5:$A$1162,単価表!$G$5:$G$1162)) -> 2250 | H55: 2250
A56: 41002 | C56: =IF(ISBLANK($A56),"",LOOKUP($A56,単価表!$A$5:$A$1162,単価表!$B$5:$B$1162)) -> 自社ﾀﾞﾝﾌﾟ | D56: =IF(ISBLANK($A56),"",IF(LOOKUP($A56,単価表!$A$5:$A$1162,単価表!$C$5:$C$1162)=0,"",LOOKUP($A56,単価表!$A$5:$A$1162,単価表!$C$5:$C$1162))) ->  | E56: =+E52 -> 1 | F56: 台 | G56: =IF(ISBLANK($A56),"",LOOKUP($A56,単価表!$A$5:$A$1162,単価表!$G$5:$G$1162)) -> 9000 | H56: 9000
A57: 40000 | C57: =IF(ISBLANK($A57),"",LOOKUP($A57,単価表!$A$5:$A$1162,単価表!$B$5:$B$1162)) -> 油脂燃料 | D57: =IF(ISBLANK($A57),"",IF(LOOKUP($A57,単価表!$A$5:$A$1162,単価表!$C$5:$C$1162)=0,"",LOOKUP($A57,単価表!$A$5:$A$1162,単価表!$C$5:$C$1162))) ->  | E57: =SUM(E55:E56) -> 2 | F57: 台日 | G57: =IF(ISBLANK($A57),"",LOOKUP($A57,単価表!$A$5:$A$1162,単価表!$G$5:$G$1162)) -> 1500 | H57: 3000
A58: 20100 | C58: =IF(ISBLANK($A58),"",LOOKUP($A58,単価表!$A$5:$A$1162,単価表!$B$5:$B$1162)) -> 作業員 昼間 | D58: 2 | E58: =E52*D58 -> 2 | F58: 人 | G58: =IF(ISBLANK($A58),"",LOOKUP($A58,単価表!$A$5:$A$1162,単価表!$G$5:$G$1162)) -> 40500 | H58: 81000
A61: 1 | B61: 横断防止柵 | C61: ガードパイプ柵 | E61: 37.5 | F61: ｍ | G61: =ROUND(H61/E61,0) -> 14603 | H61: =SUM(H62:INDEX(H62:H$83,IFERROR(MATCH(1,$A62:$A$83,0),ROWS($A62:$A$83)+1)-1)) -> 547604
C62: 基礎工 | D62: □400 RC：ｔ=100 ＦＣ=□300*400 | E62: =CEILING(E61/3+3,1) -> 16 | F62: 箇所 | G62: =IF(E62=0,"",ROUND(SUM(H63:H71)/E62,0)) -> 10184
A63: 80000 | C63: =IF(ISBLANK($A63),"",LOOKUP($A63,単価表!$A$5:$A$1162,単価表!$B$5:$B$1162)) -> 所要日数 | D63: 19.5 | E63: =CEILING(E62/D63,0.01) -> 0.83 | F63: 日 | G63: =IF(ISBLANK($A63),"",LOOKUP($A63,単価表!$A$5:$A$1162,単価表!$G$5:$G$1162)) -> 0 | H63: =IF(ISBLANK($A63),"",ROUND(E63*G63,0)) -> 0
A64: 10200 | C64: =IF(ISBLANK($A64),"",LOOKUP($A64,単価表!$A$5:$A$1162,単価表!$B$5:$B$1162)) -> RC-40(ﾌﾟﾗﾝﾄ) 大型 | D64: =0.3^2*0.05*1.28 -> 0.00576 | E64: =CEILING(E62*D64,0.01) -> 0.1 | F64: ｔ | G64: =IF(ISBLANK($A64),"",LOOKUP($A64,単価表!$A$5:$A$1162,単価表!$G$5:$G$1162)) -> 2250 | H64: 225
A65: 10515 | C65: =IF(ISBLANK($A65),"",LOOKUP($A65,単価表!$A$5:$A$1162,単価表!$B$5:$B$1162)) -> 型枠 Ｂ | D65: =0.3*0.4*4 -> 0.48 | E65: =CEILING(E62*D65,0.01) -> 7.68 | F65: ｍ2 | G65: =IF(ISBLANK($A65),"",LOOKUP($A65,単価表!$A$5:$A$1162,単価表!$G$5:$G$1162)) -> 3000 | H65: 23040
A66: 10501 | C66: =IF(ISBLANK($A66),"",LOOKUP($A66,単価表!$A$5:$A$1162,単価表!$B$5:$B$1162)) -> 生ｺﾝｸﾘｰﾄ 18-8 小型 | D66: =0.3^2*0.4*1.04 -> 0.03744 | E66: =CEILING(E62*D66,0.01) -> 0.6 | F66: ｍ3 | G66: =IF(ISBLANK($A66),"",LOOKUP($A66,単価表!$A$5:$A$1162,単価表!$G$5:$G$1162)) -> 29400 | H66: 17640
A67: 40011 | C67: =IF(ISBLANK($A67),"",LOOKUP($A67,単価表!$A$5:$A$1162,単価表!$B$5:$B$1162)) -> 小旋回0.12ﾊﾞｯｸﾎｳ | D67: =IF(ISBLANK($A67),"",IF(LOOKUP($A67,単価表!$A$5:$A$1162,単価表!$C$5:$C$1162)=0,"",LOOKUP($A67,単価表!$A$5:$A$1162,単価表!$C$5:$C$1162))) ->  | E67: =+E63 -> 0.83 | F67: 台 | G67: =IF(ISBLANK($A67),"",LOOKUP($A67,単価表!$A$5:$A$1162,単価表!$G$5:$G$1162)) -> 9000 | H67: 7470
A68: 41002 | C68: =IF(ISBLANK($A68),"",LOOKUP($A68,単価表!$A$5:$A$1162,単価表!$B$5:$B$1162)) -> 自社ﾀﾞﾝﾌﾟ | D68: =IF(ISBLANK($A68),"",IF(LOOKUP($A68,単価表!$A$5:$A$1162,単価表!$C$5:$C$1162)=0,"",LOOKUP($A68,単価表!$A$5:$A$1162,単価表!$C$5:$C$1162))) ->  | E68: =+E63 -> 0.83 | F68: 台 | G68: =IF(ISBLANK($A68),"",LOOKUP($A68,単価表!$A$5:$A$1162,単価表!$G$5:$G$1162)) -> 9000 | H68: 7470
A69: 40001 | C69: =IF(ISBLANK($A69),"",LOOKUP($A69,単価表!$A$5:$A$1162,単価表!$B$5:$B$1162)) -> ﾗﾝﾏｰ･ﾌﾟﾚｰﾄ | D69: =IF(ISBLANK($A69),"",IF(LOOKUP($A69,単価表!$A$5:$A$1162,単価表!$C$5:$C$1162)=0,"",LOOKUP($A69,単価表!$A$5:$A$1162,単価表!$C$5:$C$1162))) ->  | E69: =+E63*2 -> 1.66 | F69: 台 | G69: =IF(ISBLANK($A69),"",LOOKUP($A69,単価表!$A$5:$A$1162,単価表!$G$5:$G$1162)) -> 765 | H69: 1270
A70: 40000 | C70: =IF(ISBLANK($A70),"",LOOKUP($A70,単価表!$A$5:$A$1162,単価表!$B$5:$B$1162)) -> 油脂燃料 | D70: =IF(ISBLANK($A70),"",IF(LOOKUP($A70,単価表!$A$5:$A$1162,単価表!$C$5:$C$1162)=0,"",LOOKUP($A70,単価表!$A$5:$A$1162,単価表!$C$5:$C$1162))) ->  | E70: =SUM(E67:E69) -> 3.32 | F70: 台日 | G70: =IF(ISBLANK($A70),"",LOOKUP($A70,単価表!$A$5:$A$1162,単価表!$G$5:$G$1162)) -> 1500 | H70: 4980
A71: 20100 | C71: =IF(ISBLANK($A71),"",LOOKUP($A71,単価表!$A$5:$A$1162,単価表!$B$5:$B$1162)) -> 作業員 昼間 | D71: 3 | E71: =E63*D71 -> 2.49 | F71: 人 | G71: =IF(ISBLANK($A71),"",LOOKUP($A71,単価表!$A$5:$A$1162,単価表!$G$5:$G$1162)) -> 40500 | H71: 100845
C72: 横断防止柵設置 | E72: =+E61 -> 37.5 | F72: ｍ | G72: =IF(E72=0,"",ROUND(SUM(H73:H83)/E72,0)) -> 10258
A73: 80000 | C73: =IF(ISBLANK($A73),"",LOOKUP($A73,単価表!$A$5:$A$1162,単価表!$B$5:$B$1162)) -> 所要日数 | D73: 58.5 | E73: =CEILING(E72/D73,0.01) -> 0.65 | F73: 日 | G73: =IF(ISBLANK($A73),"",LOOKUP($A73,単価表!$A$5:$A$1162,単価表!$G$5:$G$1162)) -> 0 | H73: =IF(ISBLANK($A73),"",ROUND(E73*G73,0)) -> 0
A74: 99999 | C74: 横断防止柵 | E74: =+E72 -> 37.5 | F74: ｍ | G74: 7800 | H74: 292500
A75: 40023 | C75: =IF(ISBLANK($A75),"",LOOKUP($A75,単価表!$A$5:$A$1162,単価表!$B$5:$B$1162)) -> 諸機械 発電器,ｅｔｃ | D75: =IF(ISBLANK($A75),"",IF(LOOKUP($A75,単価表!$A$5:$A$1162,単価表!$C$5:$C$1162)=0,"",LOOKUP($A75,単価表!$A$5:$A$1162,単価表!$C$5:$C$1162))) ->  | E75: =+E73 -> 0.65 | F75: 台 | G75: =IF(ISBLANK($A75),"",LOOKUP($A75,単価表!$A$5:$A$1162,単価表!$G$5:$G$1162)) -> 2250 | H75: 1463
A76: 41002 | C76: =IF(ISBLANK($A76),"",LOOKUP($A76,単価表!$A$5:$A$1162,単価表!$B$5:$B$1162)) -> 自社ﾀﾞﾝﾌﾟ | D76: =IF(ISBLANK($A76),"",IF(LOOKUP($A76,単価表!$A$5:$A$1162,単価表!$C$5:$C$1162)=0,"",LOOKUP($A76,単価表!$A$5:$A$1162,単価表!$C$5:$C$1162))) ->  | E76: =+E73 -> 0.65 | F76: 台 | G76: =IF(ISBLANK($A76),"",LOOKUP($A76,単価表!$A$5:$A$1162,単価表!$G$5:$G$1162)) -> 9000 | H76: 5850
A77: 40000 | C77: =IF(ISBLANK($A77),"",LOOKUP($A77,単価表!$A$5:$A$1162,単価表!$B$5:$B$1162)) -> 油脂燃料 | D77: =IF(ISBLANK($A77),"",IF(LOOKUP($A77,単価表!$A$5:$A$1162,単価表!$C$5:$C$1162)=0,"",LOOKUP($A77,単価表!$A$5:$A$1162,単価表!$C$5:$C$1162))) ->  | E77: =SUM(E75:E76) -> 1.3 | F77: 台日 | G77: =IF(ISBLANK($A77),"",LOOKUP($A77,単価表!$A$5:$A$1162,単価表!$G$5:$G$1162)) -> 1500 | H77: 1950
A78: 20100 | C78: =IF(ISBLANK($A78),"",LOOKUP($A78,単価表!$A$5:$A$1162,単価表!$B$5:$B$1162)) -> 作業員 昼間 | D78: 3 | E78: =E73*D78 -> 1.95 | F78: 人 | G78: =IF(ISBLANK($A78),"",LOOKUP($A78,単価表!$A$5:$A$1162,単価表!$G$5:$G$1162)) -> 40500 | H78: 78975
A79: 99999 | C79: 諸経費 | D79: 0.08 | E79: 1 | F79: 式 | G79: 3926 | H79: 3926
D82: =IF(ISBLANK($A82),"",IF(LOOKUP($A82,単価表!$A$5:$A$1162,単価表!$C$5:$C$1162)=0,"",LOOKUP($A82,単価表!$A$5:$A$1162,単価表!$C$5:$C$1162))) ->  | H82: =IF(ISBLANK($A82),"",ROUND(E82*G82,0)) -> 
D83: =IF(ISBLANK($A83),"",IF(LOOKUP($A83,単価表!$A$5:$A$1162,単価表!$C$5:$C$1162)=0,"",LOOKUP($A83,単価表!$A$5:$A$1162,単価表!$C$5:$C$1162))) ->  | H83: =IF(ISBLANK($A83),"",ROUND(E83*G83,0)) -> 

Sheet 植栽工事
A1: 1
A3: コード | B3: 中分類 | C3: 工 種 | D3: 詳 細 | E3: 数量 | F3: 単位 | G3: 単価 | H3: 金額
C4: 植栽工事
C5: 客土工
A7: 1 | B7: 客土工 | C7: 客土 | D7: T300 良質土 | E7: 100 | F7: ｍ2 | G7: =ROUND(H7/E7,0) -> 5306 | H7: =SUM(H8:INDEX(H8:H$16,IFERROR(MATCH(1,$A8:$A$16,0),ROWS($A8:$A$16)+1)-1)) -> 530565
C8: 材料及び処分費 | D8: =0.3 -> 0.3 | E8: =+E7*D8 -> 30 | F8: ｍ3 | G8: =IF(E8=0,"",ROUND(SUM(H9:H9)/E8,0)) -> 7560
A9: 99999 | C9: 黒土購入 10ｔDT | D9: =0.3*1.2 -> 0.36 | E9: =CEILING(E7*D9,0.1) -> 36 | F9: ｍ3 | G9: 6300 | H9: =IF(ISBLANK($A9),"",ROUND(E9*G9,0)) -> 226800
C10: 施工及び機械 | D10: 昼間工事 | E10: =+E9 -> 36 | F10: ｍ3 | G10: =IF(E10=0,"",ROUND(SUM(H11:H16)/E10,0)) -> 8438
A11: 80000 | C11: =IF(ISBLANK($A11),"",LOOKUP($A11,単価表!$A$5:$A$1162,単価表!$B$5:$B$1162)) -> 所要日数 | D11: 23.4 | E11: =CEILING(E10/D11,0.01) -> 1.54 | F11: 日 | G11: =IF(ISBLANK($A11),"",LOOKUP($A11,単価表!$A$5:$A$1162,単価表!$G$5:$G$1162)) -> 0 | H11: =IF(ISBLANK($A11),"",ROUND(E11*G11,0)) -> 0
A12: 41002 | C12: =IF(ISBLANK($A12),"",LOOKUP($A12,単価表!$A$5:$A$1162,単価表!$B$5:$B$1162)) -> 自社ﾀﾞﾝﾌﾟ | D12: 2 | E12: =+E11*D12 -> 3.08 | F12: 台 | G12: =IF(ISBLANK($A12),"",LOOKUP($A12,単価表!$A$5:$A$1162,単価表!$G$5:$G$1162)) -> 9000 | H12: 27720
A13: 40011 | C13: =IF(ISBLANK($A13),"",LOOKUP($A13,単価表!$A$5:$A$1162,単価表!$B$5:$B$1162)) -> 小旋回0.12ﾊﾞｯｸﾎｳ | D13: 1 | E13: =+E11*D13 -> 1.54 | F13: 台 | G13: =IF(ISBLANK($A13),"",LOOKUP($A13,単価表!$A$5:$A$1162,単価表!$G$5:$G$1162)) -> 9000 | H13: 13860
A14: 40023 | C14: =IF(ISBLANK($A14),"",LOOKUP($A14,単価表!$A$5:$A$1162,単価表!$B$5:$B$1162)) -> 諸機械 発電器,ｅｔｃ | D14: 1 | E14: =+E11*D14 -> 1.54 | F14: 台 | G14: =IF(ISBLANK($A14),"",LOOKUP($A14,単価表!$A$5:$A$1162,単価表!$G$5:$G$1162)) -> 2250 | H14: 3465
A15: 40000 | C15: =IF(ISBLANK($A15),"",LOOKUP($A15,単価表!$A$5:$A$1162,単価表!$B$5:$B$1162)) -> 油脂燃料 | D15: =IF(ISBLANK($A15),"",IF(LOOKUP($A15,単価表!$A$5:$A$1162,単価表!$C$5:$C$1162)=0,"",LOOKUP($A15,単価表!$A$5:$A$1162,単価表!$C$5:$C$1162))) ->  | E15: =SUM(E12:E14) -> 6.16 | F15: 台日 | G15: =IF(ISBLANK($A15),"",LOOKUP($A15,単価表!$A$5:$A$1162,単価表!$G$5:$G$1162)) -> 1500 | H15: 9240
A16: 20100 | C16: =IF(ISBLANK($A16),"",LOOKUP($A16,単価表!$A$5:$A$1162,単価表!$B$5:$B$1162)) -> 作業員 昼間 | D16: 4 | E16: =E11*D16 -> 6.16 | F16: 人 | G16: =IF(ISBLANK($A16),"",LOOKUP($A16,単価表!$A$5:$A$1162,単価表!$G$5:$G$1162)) -> 40500 | H16: 249480

Sheet 法面工事
A1: 1
A3: コード | B3: 中分類 | C3: 工 種 | D3: 詳 細 | E3: 数量 | F3: 単位 | G3: 単価 | H3: 金額
C4: 法面工事
C7: 法面保護工
A8: 1 | B8: 法面保護工 | C8: 法面整形工 | D8: 1:1.5～1:1.8 バックホウ整形(参考値・要精査) | E8: 100 | F8: ｍ2 | G8: =ROUND(H8/E8,0) -> 915 | H8: =SUM(H9:INDEX(H9:H$19,IFERROR(MATCH(1,$A9:$A$19,0),ROWS($A9:$A$19)+1)-1)) -> 91500
A9: 80000 | C9: =IF(ISBLANK($A9),"",LOOKUP($A9,単価表!$A$5:$A$1162,単価表!$B$5:$B$1162)) -> 所要日数 | D9: 400 | E9: =CEILING(E8/D9,0.01) -> 0.25 | F9: 日 | G9: =IF(ISBLANK($A9),"",LOOKUP($A9,単価表!$A$5:$A$1162,単価表!$G$5:$G$1162)) -> 0 | H9: =IF(ISBLANK($A9),"",ROUND(E9*G9,0)) -> 0
A10: 40011 | C10: =IF(ISBLANK($A10),"",LOOKUP($A10,単価表!$A$5:$A$1162,単価表!$B$5:$B$1162)) -> 小旋回0.12ﾊﾞｯｸﾎｳ | D10: 1 | E10: 1 | F10: 台 | G10: =IF(ISBLANK($A10),"",LOOKUP($A10,単価表!$A$5:$A$1162,単価表!$G$5:$G$1162)) -> 9000 | H10: =IF(ISBLANK($A10),"",ROUND(E10*G10,0)) -> 9000
A11: 40000 | C11: =IF(ISBLANK($A11),"",LOOKUP($A11,単価表!$A$5:$A$1162,単価表!$B$5:$B$1162)) -> 油脂燃料 | E11: =SUM(E10:E10) -> 1 | F11: 台日 | G11: =IF(ISBLANK($A11),"",LOOKUP($A11,単価表!$A$5:$A$1162,単価表!$G$5:$G$1162)) -> 1500 | H11: =IF(ISBLANK($A11),"",ROUND(E11*G11,0)) -> 1500
A12: 20100 | C12: =IF(ISBLANK($A12),"",LOOKUP($A12,単価表!$A$5:$A$1162,単価表!$B$5:$B$1162)) -> 作業員 昼間 | D12: 2 | E12: 2 | F12: 人 | G12: =IF(ISBLANK($A12),"",LOOKUP($A12,単価表!$A$5:$A$1162,単価表!$G$5:$G$1162)) -> 40500 | H12: =IF(ISBLANK($A12),"",ROUND(E12*G12,0)) -> 81000
A14: 1 | B14: 法枠工 | C14: 現場打法枠工 | D14: プレキャスト法枠 1.0×1.0m格子(参考値・要精査) | E14: 100 | F14: ｍ2 | G14: =ROUND(H14/E14,0) -> 11963 | H14: =SUM(H15:INDEX(H15:H$19,IFERROR(MATCH(1,$A15:$A$19,0),ROWS($A15:$A$19)+1)-1)) -> 1196300
A15: 80000 | C15: =IF(ISBLANK($A15),"",LOOKUP($A15,単価表!$A$5:$A$1162,単価表!$B$5:$B$1162)) -> 所要日数 | D15: 60 | E15: =CEILING(E14/D15,0.01) -> 1.67 | F15: 日 | G15: =IF(ISBLANK($A15),"",LOOKUP($A15,単価表!$A$5:$A$1162,単価表!$G$5:$G$1162)) -> 0 | H15: =IF(ISBLANK($A15),"",ROUND(E15*G15,0)) -> 0
A16: 40049 | C16: =IF(ISBLANK($A16),"",LOOKUP($A16,単価表!$A$5:$A$1162,単価表!$B$5:$B$1162)) -> ﾎﾟﾝﾌﾟ車 | D16: 0.2 | E16: 0.2 | F16: 台 | G16: =IF(ISBLANK($A16),"",LOOKUP($A16,単価表!$A$5:$A$1162,単価表!$G$5:$G$1162)) -> 67500 | H16: =IF(ISBLANK($A16),"",ROUND(E16*G16,0)) -> 13500
A17: 40000 | C17: =IF(ISBLANK($A17),"",LOOKUP($A17,単価表!$A$5:$A$1162,単価表!$B$5:$B$1162)) -> 油脂燃料 | E17: =SUM(E16:E16) -> 0.2 | F17: 台日 | G17: =IF(ISBLANK($A17),"",LOOKUP($A17,単価表!$A$5:$A$1162,単価表!$G$5:$G$1162)) -> 1500 | H17: =IF(ISBLANK($A17),"",ROUND(E17*G17,0)) -> 300
A18: 20100 | C18: =IF(ISBLANK($A18),"",LOOKUP($A18,単価表!$A$5:$A$1162,単価表!$B$5:$B$1162)) -> 作業員 昼間 | D18: 5 | E18: 5 | F18: 人 | G18: =IF(ISBLANK($A18),"",LOOKUP($A18,単価表!$A$5:$A$1162,単価表!$G$5:$G$1162)) -> 40500 | H18: =IF(ISBLANK($A18),"",ROUND(E18*G18,0)) -> 202500
A19: 99999 | C19: プレキャスト法枠材料 | E19: =+E14 -> 100 | F19: ｍ2 | G19: 9800 | H19: =IF(ISBLANK($A19),"",ROUND(E19*G19,0)) -> 980000

Sheet 地盤改良工事
A1: 1
A3: コード | B3: 中分類 | C3: 工 種 | D3: 詳 細 | E3: 数量 | F3: 単位 | G3: 単価 | H3: 金額
C4: 地盤改良工事
C7: 浅層・表層改良工
A8: 1 | B8: 浅層・表層改良工 | C8: 表層地盤改良工 | D8: セメント系固化材 t=50cm 混合攪拌(参考値・要精査) | E8: 100 | F8: ｍ2 | G8: =ROUND(H8/E8,0) -> 3146 | H8: =SUM(H9:INDEX(H9:H$31,IFERROR(MATCH(1,$A9:$A$31,0),ROWS($A9:$A$31)+1)-1)) -> 314550
A9: 80000 | C9: =IF(ISBLANK($A9),"",LOOKUP($A9,単価表!$A$5:$A$1162,単価表!$B$5:$B$1162)) -> 所要日数 | D9: 500 | E9: =CEILING(E8/D9,0.01) -> 0.2 | F9: 日 | G9: =IF(ISBLANK($A9),"",LOOKUP($A9,単価表!$A$5:$A$1162,単価表!$G$5:$G$1162)) -> 0 | H9: =IF(ISBLANK($A9),"",ROUND(E9*G9,0)) -> 0
A10: 40010 | C10: =IF(ISBLANK($A10),"",LOOKUP($A10,単価表!$A$5:$A$1162,単価表!$B$5:$B$1162)) -> ﾌﾞﾙﾄﾞｰｻﾞｰ（6ｔ） | D10: 1 | E10: 1 | F10: 台 | G10: =IF(ISBLANK($A10),"",LOOKUP($A10,単価表!$A$5:$A$1162,単価表!$G$5:$G$1162)) -> 11550 | H10: =IF(ISBLANK($A10),"",ROUND(E10*G10,0)) -> 11550
A11: 40000 | C11: =IF(ISBLANK($A11),"",LOOKUP($A11,単価表!$A$5:$A$1162,単価表!$B$5:$B$1162)) -> 油脂燃料 | E11: =SUM(E10:E10) -> 1 | F11: 台日 | G11: =IF(ISBLANK($A11),"",LOOKUP($A11,単価表!$A$5:$A$1162,単価表!$G$5:$G$1162)) -> 1500 | H11: =IF(ISBLANK($A11),"",ROUND(E11*G11,0)) -> 1500
A12: 20100 | C12: =IF(ISBLANK($A12),"",LOOKUP($A12,単価表!$A$5:$A$1162,単価表!$B$5:$B$1162)) -> 作業員 昼間 | D12: 3 | E12: 3 | F12: 人 | G12: =IF(ISBLANK($A12),"",LOOKUP($A12,単価表!$A$5:$A$1162,単価表!$G$5:$G$1162)) -> 40500 | H12: =IF(ISBLANK($A12),"",ROUND(E12*G12,0)) -> 121500
A13: 99999 | C13: セメント系固化材 100kg/m2 | E13: =+E8 -> 100 | F13: ｍ2 | G13: 1800 | H13: =IF(ISBLANK($A13),"",ROUND(E13*G13,0)) -> 180000
C16: 深層混合処理工
A17: 1 | B17: 深層混合処理工 | C17: 深層混合処理工 | D17: 機械攪拌工法 L=8.0m(参考値・要精査) | E17: 10 | F17: 本 | G17: =ROUND(H17/E17,0) -> 182700 | H17: =SUM(H18:INDEX(H18:H$31,IFERROR(MATCH(1,$A18:$A$31,0),ROWS($A18:$A$31)+1)-1)) -> 1827000
A18: 80000 | C18: =IF(ISBLANK($A18),"",LOOKUP($A18,単価表!$A$5:$A$1162,単価表!$B$5:$B$1162)) -> 所要日数 | D18: 8 | E18: =CEILING(E17/D18,0.01) -> 1.25 | F18: 日 | G18: =IF(ISBLANK($A18),"",LOOKUP($A18,単価表!$A$5:$A$1162,単価表!$G$5:$G$1162)) -> 0 | H18: =IF(ISBLANK($A18),"",ROUND(E18*G18,0)) -> 0
A19: 99999 | C19: 深層混合処理機 リース | D19: 1 | E19: =+E17 -> 10 | F19: 台 | G19: 120000 | H19: =IF(ISBLANK($A19),"",ROUND(E19*G19,0)) -> 1200000
A20: 40000 | C20: =IF(ISBLANK($A20),"",LOOKUP($A20,単価表!$A$5:$A$1162,単価表!$B$5:$B$1162)) -> 油脂燃料 | E20: =+E17 -> 10 | F20: 台日 | G20: =IF(ISBLANK($A20),"",LOOKUP($A20,単価表!$A$5:$A$1162,単価表!$G$5:$G$1162)) -> 1500 | H20: =IF(ISBLANK($A20),"",ROUND(E20*G20,0)) -> 15000
A21: 20100 | C21: =IF(ISBLANK($A21),"",LOOKUP($A21,単価表!$A$5:$A$1162,単価表!$B$5:$B$1162)) -> 作業員 昼間 | D21: 4 | E21: 4 | F21: 人 | G21: =IF(ISBLANK($A21),"",LOOKUP($A21,単価表!$A$5:$A$1162,単価表!$G$5:$G$1162)) -> 40500 | H21: =IF(ISBLANK($A21),"",ROUND(E21*G21,0)) -> 162000
A22: 99999 | C22: セメント系固化材 | E22: =+E17 -> 10 | F22: 本 | G22: 45000 | H22: =IF(ISBLANK($A22),"",ROUND(E22*G22,0)) -> 450000
C25: サンドコンパクションパイル工
A26: 1 | B26: サンドコンパクションパイル工 | C26: サンドコンパクションパイル工 | D26: φ400 L=6.0m(参考値・要精査) | E26: 10 | F26: 本 | G26: =ROUND(H26/E26,0) -> 181650 | H26: =SUM(H27:INDEX(H27:H$31,IFERROR(MATCH(1,$A27:$A$31,0),ROWS($A27:$A$31)+1)-1)) -> 1816500
A27: 80000 | C27: =IF(ISBLANK($A27),"",LOOKUP($A27,単価表!$A$5:$A$1162,単価表!$B$5:$B$1162)) -> 所要日数 | D27: 10 | E27: =CEILING(E26/D27,0.01) -> 1 | F27: 日 | G27: =IF(ISBLANK($A27),"",LOOKUP($A27,単価表!$A$5:$A$1162,単価表!$G$5:$G$1162)) -> 0 | H27: =IF(ISBLANK($A27),"",ROUND(E27*G27,0)) -> 0
A28: 99999 | C28: SCP専用機 リース | D28: 1 | E28: =+E26 -> 10 | F28: 台 | G28: 150000 | H28: =IF(ISBLANK($A28),"",ROUND(E28*G28,0)) -> 1500000
A29: 40000 | C29: =IF(ISBLANK($A29),"",LOOKUP($A29,単価表!$A$5:$A$1162,単価表!$B$5:$B$1162)) -> 油脂燃料 | E29: =+E26 -> 10 | F29: 台日 | G29: =IF(ISBLANK($A29),"",LOOKUP($A29,単価表!$A$5:$A$1162,単価表!$G$5:$G$1162)) -> 1500 | H29: =IF(ISBLANK($A29),"",ROUND(E29*G29,0)) -> 15000
A30: 20100 | C30: =IF(ISBLANK($A30),"",LOOKUP($A30,単価表!$A$5:$A$1162,単価表!$B$5:$B$1162)) -> 作業員 昼間 | D30: 3 | E30: 3 | F30: 人 | G30: =IF(ISBLANK($A30),"",LOOKUP($A30,単価表!$A$5:$A$1162,単価表!$G$5:$G$1162)) -> 40500 | H30: =IF(ISBLANK($A30),"",ROUND(E30*G30,0)) -> 121500
A31: 99999 | C31: 砂材料 | E31: =+E26 -> 10 | F31: 本 | G31: 18000 | H31: =IF(ISBLANK($A31),"",ROUND(E31*G31,0)) -> 180000

Sheet 選択リスト (hidden)
A1: 大分類マスタ | WL1: 仮設工事リスト | ZX1: 中分類_撤去工事 | ZY1: 中分類_土工事 | ZZ1: 中分類_擁壁工事 | AAA1: 中分類_排水工事 | AAB1: 中分類_付帯工事 | AAC1: 中分類_舗装工事 | AAD1: 中分類_仮設工事 | AAE1: 中分類_景観金物 | AAF1: 中分類_植栽工事 | AAG1: 中分類_法面工事 | AAH1: 中分類_地盤改良工事 | BXX1: 工種名_撤去工事_舗装版撤去 | BXY1: 工種名_撤去工事_構造物取壊し | BXZ1: 工種名_土工事_切土工 | BYA1: 工種名_土工事_床堀工 | BYB1: 工種名_土工事_盛土工 | BYC1: 工種名_土工事_埋戻工 | BYD1: 工種名_擁壁工事_RC擁壁 | BYE1: 工種名_擁壁工事_型枠CB | BYF1: 工種名_擁壁工事_石積擁壁 | BYG1: 工種名_擁壁工事_プレキャスト擁壁 | BYH1: 工種名_排水工事_Ｌ型側溝工 | BYI1: 工種名_排水工事_集水桝 | BYJ1: 工種名_排水工事_組立人孔 | BYK1: 工種名_付帯工事_縁石工 | BYL1: 工種名_付帯工事_囲障工事 | BYM1: 工種名_舗装工事_舗装打換工 | BYN1: 工種名_舗装工事_車道舗装 | BYO1: 工種名_舗装工事_歩道及び小規模舗装 | BYP1: 工種名_舗装工事_コンクリート舗装 | BYQ1: 工種名_仮設工事_仮囲工 | BYR1: 工種名_仮設工事_山留め | BYS1: 工種名_仮設工事_その他仮設 | BYT1: 工種名_景観金物_メッシュフェンス | BYU1: 工種名_景観金物_ネットフェンス | BYV1: 工種名_景観金物_独立基礎築造 | BYW1: 工種名_景観金物_バリカー設置 | BYX1: 工種名_景観金物_横断防止柵 | BYY1: 工種名_植栽工事_客土工 | BYZ1: 工種名_法面工事_法面保護工 | BZA1: 工種名_法面工事_法枠工 | BZB1: 工種名_地盤改良工事_浅層・表層改良工 | BZC1: 工種名_地盤改良工事_深層混合処理工 | BZD1: 工種名_地盤改良工事_サンドコンパクションパイル工 | EWV1: 詳細_撤去工事_舗装版撤去_既設舗装版撤去 | EWW1: 詳細_撤去工事_構造物取壊し_構造物取壊し | EWX1: 詳細_土工事_切土工_残土処分 | EWY1: 詳細_土工事_床堀工_根切り | EWZ1: 詳細_土工事_盛土工_埋戻し | EXA1: 詳細_土工事_埋戻工_路体（流用土） | EXB1: 詳細_擁壁工事_RC擁壁_コンクリート立上り | EXC1: 詳細_擁壁工事_型枠CB_型枠CB擁壁 | EXD1: 詳細_擁壁工事_石積擁壁_石積擁壁工 | EXE1: 詳細_擁壁工事_プレキャスト擁壁_プレキャスト擁壁 | EXF1: 詳細_排水工事_Ｌ型側溝工_Ｌ型側溝工 | EXG1: 詳細_排水工事_集水桝_雨水桝 | EXH1: 詳細_排水工事_組立人孔_汚水人孔設置工 | EXI1: 詳細_付帯工事_縁石工_地先境界ブロック | EXJ1: 詳細_付帯工事_囲障工事_化粧CB２段積 | EXK1: 詳細_舗装工事_舗装打換工_道路舗装打換工 | EXL1: 詳細_舗装工事_車道舗装_下層路盤(車道・路肩部) | EXM1: 詳細_舗装工事_歩道及び小規模舗装_下層路盤(歩道部) | EXN1: 詳細_舗装工事_コンクリート舗装_歩道コンクリート舗装工 | EXO1: 詳細_仮設工事_仮囲工_仮囲万能鋼板設置工 | EXP1: 詳細_仮設工事_山留め_H鋼横矢板土留 | EXQ1: 詳細_仮設工事_その他仮設_木柵工 | EXR1: 詳細_景観金物_メッシュフェンス_メッシュフェンス | EXS1: 詳細_景観金物_ネットフェンス_ネットフェンス | EXT1: 詳細_景観金物_独立基礎築造_フェンス独立基礎設置 | EXU1: 詳細_景観金物_バリカー設置_車止めバリカー設置工 | EXV1: 詳細_景観金物_横断防止柵_ガードパイプ柵 | EXW1: 詳細_植栽工事_客土工_客土 | EXX1: 詳細_法面工事_法面保護工_法面整形工 | EXY1: 詳細_法面工事_法枠工_現場打法枠工 | EXZ1: 詳細_地盤改良工事_浅層・表層改良工_表層地盤改良工 | EYA1: 詳細_地盤改良工事_深層混合処理工_深層混合処理工 | EYB1: 詳細_地盤改良工事_サンドコンパクションパイル工_サンドコンパクションパイル工
A2: 撤去工事 | WL2: 機械回送（ﾄﾚｰﾗｰ）｜スタビライザー｜回｜300000 | ZX2: 舗装版撤去 | ZY2: 切土工 | ZZ2: RC擁壁 | AAA2: Ｌ型側溝工 | AAB2: 縁石工 | AAC2: 舗装打換工 | AAD2: 仮囲工 | AAE2: メッシュフェンス | AAF2: 客土工 | AAG2: 法面保護工 | AAH2: 浅層・表層改良工 | BXX2: 既設舗装版撤去 | BXY2: 構造物取壊し | BXZ2: 残土処分 | BYA2: 根切り | BYB2: 埋戻し | BYC2: 路体（流用土） | BYD2: コンクリート立上り | BYE2: 型枠CB擁壁 | BYF2: 石積擁壁工 | BYG2: プレキャスト擁壁 | BYH2: Ｌ型側溝工 | BYI2: 雨水桝 | BYJ2: 汚水人孔設置工 | BYK2: 地先境界ブロック | BYL2: 化粧CB２段積 | BYM2: 道路舗装打換工 | BYN2: 下層路盤(車道・路肩部) | BYO2: 下層路盤(歩道部) | BYP2: 歩道コンクリート舗装工 | BYQ2: 仮囲万能鋼板設置工 | BYR2: H鋼横矢板土留 | BYS2: 木柵工 | BYT2: メッシュフェンス | BYU2: ネットフェンス | BYV2: フェンス独立基礎設置 | BYW2: 車止めバリカー設置工 | BYX2: ガードパイプ柵 | BYY2: 客土 | BYZ2: 法面整形工 | BZA2: 現場打法枠工 | BZB2: 表層地盤改良工 | BZC2: 深層混合処理工 | BZD2: サンドコンパクションパイル工 | EWV2: AS：t=5cm AS廃材運搬処分共 | EWW2: 廃材運搬処分共 | EWX2: 鋤取り土工含 発生土運搬処分共 | EWY2: 人力土工 | EWZ2: 人力土工 | EXA2: 4.0≦W | EXB2: H=890 t=150 打放し 掘削土工共 | EXC2: H=2.0ｍﾀｲﾌﾟ | EXD2: H=2.00ｍ 65゜ 基礎共 | EXE2: 地上高さ H=2.0ｍ | EXF2: タイプ１ | EXG2: ﾀｲﾌﾟ1 | EXH2: 組立２号人孔1箇所 | EXI2: 120*120*600 基礎共 | EXJ2: H＝400 | EXK2: AS：t=50 表層のみ 廃材運搬処分共 | EXL2: 再生ｸﾗｯｼｬﾗﾝ RC-40 仕上り厚 400ｍｍ | EXM2: 再生ｸﾗｯｼｬﾗﾝ RC-40 仕上り厚 100ｍｍ | EXN2: CO：t=100 RC-40：t=100 | EXO2: 安全鋼板(塗装品) H=2000 資材購入 | EXP2: H=3000 L=8.0ｍ | EXQ2: H=1300 | EXR2: H=1500 CB上施工 | EXS2: H=1200 □180*450独立基礎共 | EXT2: □300*500 独立基礎共 | EXU2: H800 φ89.1 基礎共 | EXW2: T300 良質土 | EXX2: 1:1.5～1:1.8 バックホウ整形(参考値・要精査) | EXY2: プレキャスト法枠 1.0×1.0m格子(参考値・要精査) | EXZ2: セメント系固化材 t=50cm 混合攪拌(参考値・要精査) | EYA2: 機械攪拌工法 L=8.0m(参考値・要精査) | EYB2: φ400 L=6.0m(参考値・要精査)
A3: 土工事 | WL3: 機械回送（ﾄﾚｰﾗｰ）｜ASF｜回｜60000 | ZX3: 構造物取壊し | ZY3: 床堀工 | ZZ3: 型枠CB | AAA3: 集水桝 | AAB3: 囲障工事 | AAC3: 車道舗装 | AAD3: 山留め | AAE3: ネットフェンス | AAG3: 法枠工 | AAH3: 深層混合処理工
A4: 擁壁工事 | WL4: 機械回送（ｾﾐﾄﾚｰﾗｰ）｜MASF｜回｜40000 | ZY4: 盛土工 | ZZ4: 石積擁壁 | AAA4: 組立人孔 | AAC4: 歩道及び小規模舗装 | AAD4: その他仮設 | AAE4: 独立基礎築造 | AAH4: サンドコンパクションパイル工
A5: 排水工事 | WL5: 機械回送（自走）｜グレーダー｜回｜45000 | ZY5: 埋戻工 | ZZ5: プレキャスト擁壁 | AAC5: コンクリート舗装 | AAE5: バリカー設置
A6: 付帯工事 | WL6: 機械回送（ﾄﾚｰﾗｰ）｜0.7BH｜回｜80000 | AAE6: 横断防止柵
A7: 舗装工事 | WL7: 機械回送（ﾄﾚｰﾗｰ）｜6ｔブル｜回｜80000
A8: 仮設工事 | WL8: 機械回送（ﾄﾚｰﾗｰ）｜0.45BH｜回｜70000
A9: 景観金物 | WL9: 機械回送（大）｜0.25BH｜回｜50000
A10: 植栽工事 | WL10: 機械回送（大）｜TS+4ｔMR、3ｔTR+0.2｜回｜40000
A11: 法面工事 | WL11: 機械回送（中）｜0.18BH、TS｜回｜18000
A12: 地盤改良工事 | WL12: 資材運搬｜｜式｜100000
WL13: 仮設資材運搬｜｜式｜=430000+120000
WL14: 機械回送｜小機械｜回｜8000
WL15: 資材運搬費※別途集計表より｜｜式｜
WL16: 保安要員｜ｶﾞｰﾄﾞﾏﾝ｜名｜20000
WL17: 安全対策費｜｜名｜22000
WL18: 安全対策費（下請）｜｜名｜22000
WL19: 道路清掃｜｜名｜22000
WL20: 仮囲い設置撤去｜｜名｜22000
WL21: 安全費｜保安資材｜月｜80000
WL22: 仮設機械｜｜月｜150000
WL23: 産廃処分費｜8ｍ3コンテナ（廃ﾌﾟﾗｽﾁｯｸ）｜台｜=10000+21000+7000*8
WL24: 産廃処分費｜8ｍ3コンテナ（木くず）｜台｜=10000+21000+5000*8
WL25: 産廃処分費｜8ｍ3コンテナ（混合廃棄物）｜台｜=10000+21000+15000*8
WL26: 試験費｜ＣＯ試験150ｍ3/回｜回｜30000
WL27: 試験費｜発生土有害物質試験｜式｜304000
WL28: 試験費｜平板載荷・密度試験・ふるい分け｜式｜150000
WL29: 測量費｜｜ヶ月｜150000
WL30: 仮設材損耗｜｜式｜100000
WL31: 敷き鉄板｜｜式｜100000
WL32: 仮設タンク｜ポンプ・ノッチタンク｜ヶ月｜150000
WL33: 仮設ハウス｜｜ヶ月｜100000
WL34: 仮設水道・電気｜｜ヶ月｜100000
WL35: 仮設トイレ搬入｜｜回｜35000
WL36: 仮設トイレリース｜｜月｜6000
WL37: 駐車料金｜｜台日｜1500

Sheet 選択マップ (hidden)
A1: 大分類名 | B1: 列 | C1: 件数 | E1: 大分類名 | F1: 中分類名 | G1: 列 | H1: 件数 | J1: 大分類名 | K1: 中分類名 | L1: 工種名 | M1: 列 | N1: 件数
A2: 撤去工事 | B2: ZX | C2: 2 | E2: 撤去工事 | F2: 舗装版撤去 | G2: BXX | H2: 1 | J2: 撤去工事 | K2: 舗装版撤去 | L2: 既設舗装版撤去 | M2: EWV | N2: 1
A3: 土工事 | B3: ZY | C3: 4 | E3: 撤去工事 | F3: 構造物取壊し | G3: BXY | H3: 1 | J3: 撤去工事 | K3: 構造物取壊し | L3: 構造物取壊し | M3: EWW | N3: 1
A4: 擁壁工事 | B4: ZZ | C4: 4 | E4: 土工事 | F4: 切土工 | G4: BXZ | H4: 1 | J4: 土工事 | K4: 切土工 | L4: 残土処分 | M4: EWX | N4: 1
A5: 排水工事 | B5: AAA | C5: 3 | E5: 土工事 | F5: 床堀工 | G5: BYA | H5: 1 | J5: 土工事 | K5: 床堀工 | L5: 根切り | M5: EWY | N5: 1
A6: 付帯工事 | B6: AAB | C6: 2 | E6: 土工事 | F6: 盛土工 | G6: BYB | H6: 1 | J6: 土工事 | K6: 盛土工 | L6: 埋戻し | M6: EWZ | N6: 1
A7: 舗装工事 | B7: AAC | C7: 4 | E7: 土工事 | F7: 埋戻工 | G7: BYC | H7: 1 | J7: 土工事 | K7: 埋戻工 | L7: 路体（流用土） | M7: EXA | N7: 1
A8: 仮設工事 | B8: AAD | C8: 3 | E8: 擁壁工事 | F8: RC擁壁 | G8: BYD | H8: 1 | J8: 擁壁工事 | K8: RC擁壁 | L8: コンクリート立上り | M8: EXB | N8: 1
A9: 景観金物 | B9: AAE | C9: 5 | E9: 擁壁工事 | F9: 型枠CB | G9: BYE | H9: 1 | J9: 擁壁工事 | K9: 型枠CB | L9: 型枠CB擁壁 | M9: EXC | N9: 1
A10: 植栽工事 | B10: AAF | C10: 1 | E10: 擁壁工事 | F10: 石積擁壁 | G10: BYF | H10: 1 | J10: 擁壁工事 | K10: 石積擁壁 | L10: 石積擁壁工 | M10: EXD | N10: 1
A11: 法面工事 | B11: AAG | C11: 2 | E11: 擁壁工事 | F11: プレキャスト擁壁 | G11: BYG | H11: 1 | J11: 擁壁工事 | K11: プレキャスト擁壁 | L11: プレキャスト擁壁 | M11: EXE | N11: 1
A12: 地盤改良工事 | B12: AAH | C12: 3 | E12: 排水工事 | F12: Ｌ型側溝工 | G12: BYH | H12: 1 | J12: 排水工事 | K12: Ｌ型側溝工 | L12: Ｌ型側溝工 | M12: EXF | N12: 1
E13: 排水工事 | F13: 集水桝 | G13: BYI | H13: 1 | J13: 排水工事 | K13: 集水桝 | L13: 雨水桝 | M13: EXG | N13: 1
E14: 排水工事 | F14: 組立人孔 | G14: BYJ | H14: 1 | J14: 排水工事 | K14: 組立人孔 | L14: 汚水人孔設置工 | M14: EXH | N14: 1
E15: 付帯工事 | F15: 縁石工 | G15: BYK | H15: 1 | J15: 付帯工事 | K15: 縁石工 | L15: 地先境界ブロック | M15: EXI | N15: 1
E16: 付帯工事 | F16: 囲障工事 | G16: BYL | H16: 1 | J16: 付帯工事 | K16: 囲障工事 | L16: 化粧CB２段積 | M16: EXJ | N16: 1
E17: 舗装工事 | F17: 舗装打換工 | G17: BYM | H17: 1 | J17: 舗装工事 | K17: 舗装打換工 | L17: 道路舗装打換工 | M17: EXK | N17: 1
E18: 舗装工事 | F18: 車道舗装 | G18: BYN | H18: 1 | J18: 舗装工事 | K18: 車道舗装 | L18: 下層路盤(車道・路肩部) | M18: EXL | N18: 1
E19: 舗装工事 | F19: 歩道及び小規模舗装 | G19: BYO | H19: 1 | J19: 舗装工事 | K19: 歩道及び小規模舗装 | L19: 下層路盤(歩道部) | M19: EXM | N19: 1
E20: 舗装工事 | F20: コンクリート舗装 | G20: BYP | H20: 1 | J20: 舗装工事 | K20: コンクリート舗装 | L20: 歩道コンクリート舗装工 | M20: EXN | N20: 1
E21: 仮設工事 | F21: 仮囲工 | G21: BYQ | H21: 1 | J21: 仮設工事 | K21: 仮囲工 | L21: 仮囲万能鋼板設置工 | M21: EXO | N21: 1
E22: 仮設工事 | F22: 山留め | G22: BYR | H22: 1 | J22: 仮設工事 | K22: 山留め | L22: H鋼横矢板土留 | M22: EXP | N22: 1
E23: 仮設工事 | F23: その他仮設 | G23: BYS | H23: 1 | J23: 仮設工事 | K23: その他仮設 | L23: 木柵工 | M23: EXQ | N23: 1
E24: 景観金物 | F24: メッシュフェンス | G24: BYT | H24: 1 | J24: 景観金物 | K24: メッシュフェンス | L24: メッシュフェンス | M24: EXR | N24: 1
E25: 景観金物 | F25: ネットフェンス | G25: BYU | H25: 1 | J25: 景観金物 | K25: ネットフェンス | L25: ネットフェンス | M25: EXS | N25: 1
E26: 景観金物 | F26: 独立基礎築造 | G26: BYV | H26: 1 | J26: 景観金物 | K26: 独立基礎築造 | L26: フェンス独立基礎設置 | M26: EXT | N26: 1
E27: 景観金物 | F27: バリカー設置 | G27: BYW | H27: 1 | J27: 景観金物 | K27: バリカー設置 | L27: 車止めバリカー設置工 | M27: EXU | N27: 1
E28: 景観金物 | F28: 横断防止柵 | G28: BYX | H28: 1 | J28: 景観金物 | K28: 横断防止柵 | L28: ガードパイプ柵 | M28: EXV | N28: 1
E29: 植栽工事 | F29: 客土工 | G29: BYY | H29: 1 | J29: 植栽工事 | K29: 客土工 | L29: 客土 | M29: EXW | N29: 1
E30: 法面工事 | F30: 法面保護工 | G30: BYZ | H30: 1 | J30: 法面工事 | K30: 法面保護工 | L30: 法面整形工 | M30: EXX | N30: 1
E31: 法面工事 | F31: 法枠工 | G31: BZA | H31: 1 | J31: 法面工事 | K31: 法枠工 | L31: 現場打法枠工 | M31: EXY | N31: 1
E32: 地盤改良工事 | F32: 浅層・表層改良工 | G32: BZB | H32: 1 | J32: 地盤改良工事 | K32: 浅層・表層改良工 | L32: 表層地盤改良工 | M32: EXZ | N32: 1
E33: 地盤改良工事 | F33: 深層混合処理工 | G33: BZC | H33: 1 | J33: 地盤改良工事 | K33: 深層混合処理工 | L33: 深層混合処理工 | M33: EYA | N33: 1
E34: 地盤改良工事 | F34: サンドコンパクションパイル工 | G34: BZD | H34: 1 | J34: 地盤改良工事 | K34: サンドコンパクションパイル工 | L34: サンドコンパクションパイル工 | M34: EYB | N34: 1

Sheet 単価表_分類マップ (hidden)
A1: No | B1: 表示ラベル | C1: 開始行 | D1: 終了行 | E1: ファミリー上限コード
A2: 1 | B2: 合材・砕石単価登録｜10100番台(密粒13･20mm) | C2: 5 | D2: 21 | E2: 10199
A3: 2 | B3: 合材・砕石単価登録｜10200番台(再生砂 大型) | C3: 22 | D3: 28 | E3: 10299 | ZX3: 33
A4: 3 | B4: 合材・砕石単価登録｜10300番台(中目砂 大型) | C4: 29 | D4: 49 | E4: 10399
A5: 4 | B5: 合材・砕石単価登録｜10400番台(乳剤PK-3) | C5: 50 | D5: 53 | E5: 10499
A6: 5 | B6: その他材料単価登録｜10500番台(生ｺﾝｸﾘｰﾄ 18-8 大型) | C6: 56 | D6: 80 | E6: 10599
A7: 6 | B7: その他材料単価登録｜12100番台(鉄筋工 小規模(ｔ)) | C7: 81 | D7: 87 | E7: 12199
A8: 7 | B8: その他材料単価登録｜12500番台(VU100 片口) | C8: 88 | D8: 112 | E8: 12599
A9: 8 | B9: その他材料単価登録｜12600番台(未使用) | C9: 113 | D9: 120 | E9: 12699
A10: 9 | B10: その他材料単価登録｜13000番台(地先Aﾌﾞﾛｯｸ) | C10: 121 | D10: 132 | E10: 13099
A11: 10 | B11: その他材料単価登録｜13100番台(植樹・並木ブロック) | C11: 133 | D11: 137 | E11: 13199
A12: 11 | B12: その他材料単価登録｜13200番台(Ｕ字側溝 150) | C12: 138 | D12: 176 | E12: 13299
A13: 12 | B13: その他材料単価登録｜13400番台(未使用) | C13: 177 | D13: 198 | E13: 13499
A14: 13 | B14: その他材料単価登録｜14000番台(未使用) | C14: 199 | D14: 204 | E14: 14099
A15: 14 | B15: その他材料単価登録｜15000番台(未使用) | C15: 205 | D15: 215 | E15: 15099
A16: 15 | B16: その他材料単価登録｜15100番台(未使用) | C16: 216 | D16: 219 | E16: 15199
A17: 16 | B17: その他材料単価登録｜15200番台(未使用) | C17: 220 | D17: 221 | E17: 15299
A18: 17 | B18: その他材料単価登録｜16000番台(未使用) | C18: 222 | D18: 224 | E18: 16099
A19: 18 | B19: 作業員単価登録｜20100番台(作業員 昼間) | C19: 227 | D19: 228 | E19: 20199
A20: 19 | B20: 作業員単価登録｜20200番台(作業員 昼間) | C20: 229 | D20: 230 | E20: 20299
A21: 20 | B21: 作業員単価登録｜20300番台(ｶﾞｰﾄﾞﾏﾝ) | C21: 231 | D21: 234 | E21: 20399
A22: 21 | B22: 作業員単価登録｜20500番台(土木一般世話役) | C22: 235 | D22: 241 | E22: 20599
A23: 22 | B23: 外注・処分費単価登録｜30100番台(ＡＳ舗装切断(半日)) | C23: 244 | D23: 259 | E23: 30199
A24: 23 | B24: 外注・処分費単価登録｜30200番台(残土処分 大型) | C24: 260 | D24: 282 | E24: 30299
A25: 24 | B25: 機械・その他単価登録｜40000番台(油脂燃料) | C25: 285 | D25: 343 | E25: 40099
A26: 25 | B26: 機械・その他単価登録｜41000番台(ｽﾌﾟﾚｰﾔｰ) | C26: 344 | D26: 347 | E26: 41099
A27: 26 | B27: 機械・その他単価登録｜42000番台(２ｔﾀﾞﾝﾌﾟ（ﾘｰｽ)) | C27: 348 | D27: 354 | E27: 42099
A28: 27 | B28: 機械・その他単価登録｜50000番台(未使用) | C28: 355 | D28: 357 | E28: 50099
A29: 28 | B29: 機械・その他単価登録｜60000番台(未使用) | C29: 358 | D29: 361 | E29: 60099
A30: 29 | B30: 機械・その他単価登録｜70000番台(未使用) | C30: 362 | D30: 362 | E30: 70099
A31: 30 | B31: 機械・その他単価登録｜80000番台(所要日数) | C31: 363 | D31: 364 | E31: 80099
A32: 31 | B32: 機械・その他単価登録｜81000番台(未使用) | C32: 365 | D32: 369 | E32: 81099
A33: 32 | B33: 工種ｅｔｃ．単価登録｜90000番台(掘削・鋤取発生土（ｍ3）) | C33: 372 | D33: 397 | E33: 90099

Sheet 工種の追加 (hidden)

Sheet 工種の新規登録 (hidden)

Sheet 単価の追加 (hidden)
